Date Spend Occurred,Department Incurring Spend,Beneficiary Name,Summary of Purpose of Spend,Merchant Category, Gross Amount 
01/10/2019,BUS SUPP & CUST SERV,A R Cook & Son (Plant Hire) Ltd,Contractor,Individual - NEC," 1,680.00 "
01/10/2019,BUS SUPP & CUST SERV,A R Cook & Son (Plant Hire) Ltd,Contractor,Individual - NEC," 1,740.00 "
01/10/2019,SE AREA SEN MGT,Action on Hearing Loss,Home Base Care,Supp Living - MH," 1,524.76 "
01/10/2019,PSSS PD,Active Design Ltd,Equipment,Furniture - Office," 2,874.00 "
01/10/2019,Practice Improvement,Affinity Healthcare Solutions Ltd,Agency Staff Providing Project Support,Temp Ops OM Cover," 2,340.00 "
01/10/2019,Practice Improvement,Affinity Healthcare Solutions Ltd,Agency Staff Providing Project Support,Temp Ops OM Cover," 2,730.00 "
01/10/2019,ASC Market Managemen,Affinity Healthcare Solutions Ltd,Agency Staff Providing Project Support,Temp Ops OM Cover," 2,340.00 "
01/10/2019,Practice Improvement,Affinity Healthcare Solutions Ltd,Agency Staff Providing Project Support,Temp Ops OM Cover," 3,120.00 "
01/10/2019,Practice Improvement,Affinity Healthcare Solutions Ltd,Agency Staff Providing Project Support,Temp Ops OM Cover," 3,510.00 "
01/10/2019,Practice Improvement,Affinity Healthcare Solutions Ltd,Agency Staff Providing Project Support,Temp Ops OM Cover, 780.00 
01/10/2019,Customer Experience,Agilisys,Agency Staff Providing Project Support,Professional Project," 6,000.00 "
01/10/2019,CORONER,Alere Forensics Ltd,Inquest Exps.,General Support, 447.00 
01/10/2019,CORONER,Alere Forensics Ltd,Inquest Exps.,General Support, 723.00 
01/10/2019,CORONER,Alere Forensics Ltd,Inquest Exps.,General Support, 471.00 
01/10/2019,CORONER,Alere Forensics Ltd,Inquest Exps.,General Support, 621.00 
01/10/2019,CORONER,Alere Forensics Ltd,Inquest Exps.,General Support, 519.00 
01/10/2019,AGENCY NON CWD SC,ARC HD Services Ltd,Residential Placements,Res Care," 4,798.05 "
01/10/2019,SY SAFEGRDING CH BD,Assoc of Independent LSCB Chairs Lt,Subscriptions to an Organisation,Subscriptions," 1,500.00 "
01/10/2019,EAST CWD NONLAC CARE,At your Service Taxis Ltd,Non-Staff Related Transport Costs,Residential - OP, 360.00 
01/10/2019,HR-COUNTYWIDE TRNG,B4W Ltd,Training Expenses - External General,Staff Training," 1,008.00 "
01/10/2019,ADOPTION TEAM,Back Care Solutions Ltd,Equipment,CWD Equipment, 699.60 
01/10/2019,ADOPTION SUPP FUND,Beacon House Psychological Services,Other Community Care - Priv,Family Support, 576.00 
01/10/2019,ADOPTION SUPP FUND,Beacon House Psychological Services,Other Community Care - Priv,Family Support, 288.00 
01/10/2019,ADOPTION SUPP FUND,Beacon House Psychological Services,Other Community Care - Priv,Family Support, 672.00 
01/10/2019,SE AGENCY PLACE-ED,Bedelsford School,Local Authorities,SEN Specialist Supp," 15,807.90 "
01/10/2019,PSSS PD,BES Rehab Ltd,Equipment,SEN Equipment, 565.20 
01/10/2019,PSSS PD,BES Rehab Ltd,Equipment,SEN Equipment, 300.00 
01/10/2019,WALLACE FIELDS FIRST,Bilfinger Europa Facility,Buyback Inspections,Edu Establishments, 558.34 
01/10/2019,NULL,Bilfinger Europa Facility,NULL,Edu Establishments," 17,043.20 "
01/10/2019,COUNTY HALL,Bilfinger Europa Facility,Term Contract Inspections,Edu Establishments," 10,095.84 "
01/10/2019,NULL,Bilfinger Europa Facility,NULL,Edu Establishments," 3,853.55 "
01/10/2019,PHOENIX CENTRE PRU,Bilfinger Europa Facility,Buyback Works Responsive,Edu Establishments, 296.48 
01/10/2019,ESHER GREEN ESHER,Bilfinger Europa Facility,Corporate Responsive Maintenance,Edu Establishments," 1,506.71 "
01/10/2019,NEXUS DAY CENTRE,Bilfinger Europa Facility,Corporate Responsive Maintenance,Edu Establishments, 387.10 
01/10/2019,ASHFORD FC,Bilfinger Europa Facility,Corporate Responsive Maintenance,Edu Establishments," 1,929.89 "
01/10/2019,WALTON LEIGH SCHOOL,Bilfinger Europa Facility,Buyback Works Term,Edu Establishments, 301.19 
01/10/2019,NULL,Bilfinger Europa Facility,NULL,Edu Establishments," 3,617.60 "
01/10/2019,HORLEY INF,Bilfinger Europa Facility,Buyback Works Responsive,Edu Establishments, 259.74 
01/10/2019,NULL,Bilfinger Europa Facility,NULL,Edu Establishments," 3,843.54 "
01/10/2019,NULL,Bilfinger Europa Facility,NULL,Edu Establishments," 3,271.15 "
01/10/2019,THE MANSION L'HEAD,Bilfinger Europa Facility,Corporate Responsive Maintenance,Edu Establishments, 253.37 
01/10/2019,FURZEFIELD  CP,Bilfinger Europa Facility,Buyback Works Responsive,Edu Establishments," 1,326.25 "
01/10/2019,OATLANDS SCHOOL,Bilfinger Europa Facility,Buyback Works Responsive,Edu Establishments, 274.49 
01/10/2019,DRILL HALL DORKING,Bilfinger Europa Facility,Corporate Responsive Maintenance,Edu Establishments, 671.40 
01/10/2019,ASHFORD FC,Bilfinger Europa Facility,Corporate Responsive Maintenance,Edu Establishments," 1,611.71 "
01/10/2019,STAMFORD GREEN PRY,Bilfinger Europa Facility,Buyback Works Responsive,Edu Establishments," 1,943.96 "
01/10/2019,FURZEFIELD  CP,Bilfinger Europa Facility,Buyback Works Responsive,Edu Establishments," 1,504.73 "
01/10/2019,SALFORDS FIRE STATIO,Bilfinger Europa Facility,Corporate Responsive Maintenance,Edu Establishments, 253.37 
01/10/2019,ST MARTINS CEP DORK,Bilfinger Europa Facility,Buyback Works Responsive,Edu Establishments," 1,347.68 "
01/10/2019,LIMPSFIELD GRANGE,Bilfinger Europa Facility,Buyback Works Term,Edu Establishments, 794.95 
01/10/2019,KINGSWOOD PRY SCH,Bilfinger Europa Facility,Buyback Works Responsive,Edu Establishments, 450.43 
01/10/2019,ASH11 CLOCK HOUSE LN,Bilfinger Europa Facility,Term Contract Inspections,Edu Establishments," 2,041.20 "
01/10/2019,Keswick,Bilfinger Europa Facility,Corporate Responsive Maintenance,Edu Establishments," 1,527.83 "
01/10/2019,LIMPSFIELD GRANGE,Bilfinger Europa Facility,Buyback Works Planned,Edu Establishments," 7,709.42 "
01/10/2019,WELLS HOUSE,Bilfinger Europa Facility,Corporate Responsive Maintenance,Edu Establishments," 1,889.00 "
01/10/2019,NULL,Bilfinger Europa Facility,NULL,Edu Establishments," 5,282.39 "
01/10/2019,NULL,Bilfinger Europa Facility,NULL,Edu Establishments," 3,982.52 "
01/10/2019,MANOR MEAD,Bilfinger Europa Facility,Buyback Works Responsive,Edu Establishments," 1,228.76 "
01/10/2019,THAMES DITTON JUNSCH,Bilfinger Europa Facility,Buyback Works Responsive,Edu Establishments, 272.26 
01/10/2019,HOLLAND JUN,Bilfinger Europa Facility,Buyback Works Responsive,Edu Establishments, 358.94 
01/10/2019,TSU / governance/ Cu,Bloom Procurement Services Ltd,Consultants,Staff Training," 20,880.00 "
01/10/2019,TSU / governance/ Cu,Bloom Procurement Services Ltd,Consultants,Staff Training," 72,000.00 "
01/10/2019,Chalkmead Res,Blue Arrow Ltd,Legal Exps - Vacancy Cover,Vacancy Cover, 404.16 
01/10/2019,PLANNING POLICY TEAM,BPP Consulting LLP,Consultants,Org & Bus Consult," 6,164.16 "
01/10/2019,AGENCY NON CWD SC,Brighter Futures Foster Care Ltd,Foster Care Placements,Sup Living Children," 3,197.34 "
01/10/2019,AGENCY NON CWD SC,Brighter Futures Foster Care Ltd,Foster Care Placements,Sup Living Children," 4,207.01 "
01/10/2019,AGENCY NON CWD SC,Brighter Futures Foster Care Ltd,Foster Care Placements,Sup Living Children," 3,029.01 "
01/10/2019,AGENCY NON CWD SC,Brighter Futures Foster Care Ltd,Foster Care Placements,Sup Living Children," 3,808.66 "
01/10/2019,SE AGENCY PLACE-ED,Brighton & Hove City Council,Local Authorities,Local Government," 13,625.00 "
01/10/2019,HfH Red Cross,British Red Cross Society,Home Base Care,H & S Maint," 22,000.00 "
01/10/2019,HfH Red Cross,British Red Cross Society,Home Base Care,H & S Maint," 22,000.00 "
01/10/2019,FIN TM-CENT RECHGS,BT Global Services,Telecommunication Charges,Networking - WAN," 54,797.01 "
01/10/2019,COUNTY HALL,BT UK Business Accounts,Telecommunication Charges,Telecare," 1,972.64 "
01/10/2019,TRAINING AND DEV,Buffets4business,New GR/IR Account,Catering Supplies," 1,001.82 "
01/10/2019,NULL,Burstow Primary School,NULL,Schools," 13,340.00 "
01/10/2019,ADOPTION SUPP FUND,Cain Snipp Therapeutic Services,Other Community Care - Priv,Psychiatric Therapy, 263.50 
01/10/2019,ADOPTION SUPP FUND,Cain Snipp Therapeutic Services,Other Community Care - Priv,Psychiatric Therapy, 354.25 
01/10/2019,ADOPTION SUPP FUND,Cain Snipp Therapeutic Services,Other Community Care - Priv,Psychiatric Therapy, 395.00 
01/10/2019,SERV DELIVERY RES,Camberley Fire Station,Car Allowances,Fire Service, 348.69 
01/10/2019,SERV DELIVERY RES,Camberley Fire Station,Car Allowances,Fire Service, 320.41 
01/10/2019,SCC PENSIONS,Capita Business Services Ltd,Equipment,Appl Serv Provision, 535.60 
01/10/2019,TRAINING AND DEV,Cardiff County Council,Training Expenses - External General,Local Government," 2,592.00 "
01/10/2019,NE AGENCY PLACE-ED,Carew Academy,Local Authorities,SEN OLA," 3,333.33 "
01/10/2019,NE AGENCY PLACE-ED,Carew Academy,Local Authorities,SEN OLA," 2,496.00 "
01/10/2019,NE AGENCY PLACE-ED,Carew Academy,Local Authorities,SEN OLA," 2,861.33 "
01/10/2019,RENTWOOD,Castle Water Ltd,Water Charges,Utilities - Water, 827.98 
01/10/2019,MOLE VALLEY,Castle Water Ltd,Water Charges,Utilities - Water, 380.85 
01/10/2019,DRILL HALL DORKING,Castle Water Ltd,Water Charges,Utilities - Water, 926.38 
01/10/2019,PAINSHILL FIRE STN,Castle Water Ltd,Water Charges,Utilities - Water, 363.58 
01/10/2019,LEATHERHEAD FIRE STN,Castle Water Ltd,Water Charges,Utilities - Water, 264.96 
01/10/2019,FAIRMOUNT HOUSE,Castle Water Ltd,Water Charges,Utilities - Water," 1,049.52 "
01/10/2019,MH CONTRACTS,Catalyst,Other Community Care,Rehab Services," 53,285.75 "
01/10/2019,MH CONTRACTS,Catalyst,Other Community Care,Rehab Services," 137,079.25 "
01/10/2019,MH CONTRACTS,Catalyst,Other Community Care,Rehab Services," 96,554.25 "
01/10/2019,LINK MANAGEMENT TEAM,Central Surrey Health Ltd,Public Health Contract Payments,Occupational Therapy," 10,956.00 "
01/10/2019,WEST CWD NONLAC CARE,Central Surrey Health Ltd,Public Health Contract Payments,Occupational Therapy," 10,556.00 "
01/10/2019,SERV DELIVERY RES,Chertsey Fire Station,Meals,Fire Service, 299.41 
01/10/2019,CAMHS RAP TEAM,City of Westminster,Residential,Venue Hire, 264.00 
01/10/2019,STRAT TREE MTC - NPR,Connick Tree Care Ltd,Upkeep of Grounds,Green Works," 3,778.33 "
01/10/2019,STRAT TREE MTC - NPR,Connick Tree Care Ltd,Upkeep of Grounds,Green Works, 273.60 
01/10/2019,DOLS TEAM,Contractor Umbrella Ltd,Fees,Specialist Serv," 1,500.00 "
01/10/2019,PLANNING POLICY TEAM,Cool Planet Resources Ltd,Consultants,Env Consultancy," 1,193.76 "
01/10/2019,PLANNING POLICY TEAM,Cool Planet Resources Ltd,Consultants,Env Consultancy," 3,372.84 "
01/10/2019,PLANNING POLICY TEAM,Cool Planet Resources Ltd,Consultants,Env Consultancy," 1,313.76 "
01/10/2019,RECRUITMENT FUND,Corporate Document Services Ltd,Publicity,Printing & Repro, 476.13 
01/10/2019,UNEARTHED,Corporate Document Services Ltd,Printing,Printing & Repro, 458.83 
01/10/2019,ST JOHNS REDHIL,Court Catering Equipment Ltd,Equipment,Cat Equip Supply&Fit," 1,511.18 "
01/10/2019,PSSS ICT SUPPORT,Crick Software Ltd,Equipment,Appl Serv Provision," 4,200.00 "
01/10/2019,PHYSICAL CONTACT,Crisis Prevention Institute Inc,Books,Staff Training," 1,800.00 "
01/10/2019,PHYSICAL CONTACT,Crisis Prevention Institute Inc,Books,Staff Training," 3,319.20 "
01/10/2019,Digital,Dell Computer Corporation Ltd,Computer Hardware,Hardware - Sys," 8,580.06 "
01/10/2019,GUILDFORD CARE OP,Dene Place Nursing Home,Home Base Care,Residential - LD, 828.57 
01/10/2019,CHILD ARRANGE ORDERS,Duncan Lewis Solicitors,Fees,Asylum, 315.36 
01/10/2019,NULL,DWF LLP,Miscellaneous Insurance,General Support," 2,213.40 "
01/10/2019,NULL,DWF LLP,Miscellaneous Insurance,General Support," 8,436.00 "
01/10/2019,PROPERTY MOVES,Edward Baden Ltd,Removal Expenses,Premise Removal Serv, 805.33 
01/10/2019,Family Resilience (E,Ekim Consulting Ltd,Agency Staff Providing Project Support,Org & Bus Consult," 13,200.00 "
01/10/2019,NULL,Elmbridge Borough Council,NULL,Local Government, 280.00 
01/10/2019,HYTHE SCHOOL,Elygra Ltd,Publicity,Cat Equip Supply&Fit, 255.84 
01/10/2019,CORONER,Forensic Pathology Services,Inquest Exps.,Coroners Services, 353.88 
01/10/2019,NULL,G E Building Services,NULL,General Build Maint," 5,781.14 "
01/10/2019,SEND Sustainability,Gatenby Sanderson Ltd,Agency Staff Providing Project Support,Prof OM Cover," 13,845.00 "
01/10/2019,SEND Sustainability,Gatenby Sanderson Ltd,Agency Staff Providing Project Support,Prof OM Cover," 10,140.00 "
01/10/2019,DOLS TEAM,GKM Medical Ltd,Fees,Specialist Serv," 1,040.22 "
01/10/2019,FAIRCROFT,Glendale Countryside Ltd,Upkeep of Grounds,Green Works, 555.23 
01/10/2019,WOODLANDS HOUSE,Glendale Countryside Ltd,Upkeep of Grounds,Green Works, 719.72 
01/10/2019,MALLOW CS DMHS 25-30,Glendale Countryside Ltd,Upkeep of Grounds,Green Works, 296.02 
01/10/2019,COUNTY HALL,Glendale Countryside Ltd,Upkeep of Grounds,Green Works, 738.92 
01/10/2019,THE MANSION L'HEAD,Glendale Countryside Ltd,Upkeep of Grounds,Green Works, 381.24 
01/10/2019,WELLS HOUSE,Glendale Countryside Ltd,Upkeep of Grounds,Green Works, 346.69 
01/10/2019,QUADRANT CT WOKING,Glendale Countryside Ltd,Upkeep of Grounds,Green Works, 493.54 
01/10/2019,FAIRMOUNT HOUSE,Glendale Countryside Ltd,Upkeep of Grounds,Green Works, 286.91 
01/10/2019,BENTLEY DAY CENTRE,Glendale Countryside Ltd,Upkeep of Grounds,Green Works, 402.94 
01/10/2019,PARK HALL,Glendale Countryside Ltd,Upkeep of Grounds,Green Works, 290.11 
01/10/2019,PERM SURP LAND,Glendale Countryside Ltd,Upkeep of Grounds,Green Works, 324.90 
01/10/2019,ASH YOUTH CENTRE,Glendale Countryside Ltd,Upkeep of Grounds,Green Works, 337.98 
01/10/2019,HIGH ASHURST OEC,Glendale Countryside Ltd,Upkeep of Grounds,Green Works," 1,355.96 "
01/10/2019,COVEHAM COBHAM,Glendale Countryside Ltd,Upkeep of Grounds,Green Works, 295.55 
01/10/2019,RYLSTON WEYBRIDGE,Glendale Countryside Ltd,Upkeep of Grounds,Green Works, 348.00 
01/10/2019,ARUNDEL BANSTEAD,Glendale Countryside Ltd,Upkeep of Grounds,Green Works, 305.28 
01/10/2019,PLAYING FLD LAKESIDE,Glendale Countryside Ltd,Upkeep of Grounds,Green Works, 277.91 
01/10/2019,Smallholdings Gen,Glendale Countryside Ltd,Upkeep of Grounds,Green Works, 344.54 
01/10/2019,RUNNYMEDE GYPSIES,Glendale Countryside Ltd,Upkeep of Grounds,Green Works, 303.91 
01/10/2019,HAYES BRIDGE BC-BUS,Glendale Countryside Ltd,Upkeep of Grounds,Green Works, 648.14 
01/10/2019,WEST HOUSE COMPLEX,Glendale Countryside Ltd,Upkeep of Grounds,Green Works, 537.12 
01/10/2019,WRAY PARK COMPLEX,Glendale Countryside Ltd,Upkeep of Grounds,Green Works," 1,744.70 "
01/10/2019,COLEBROOK DAY CENTRE,Glendale Countryside Ltd,Upkeep of Grounds,Green Works, 261.76 
01/10/2019,MEATH GREEN,Glendale Countryside Ltd,Upkeep of Grounds,Green Works, 322.38 
01/10/2019,HIGHFIELD,Glendale Countryside Ltd,Upkeep of Grounds,Green Works, 412.32 
01/10/2019,BROCKHURST CARE HOME,Glendale Countryside Ltd,Upkeep of Grounds,Green Works, 289.26 
01/10/2019,MERSTHAM YOUTH CENTR,Glendale Countryside Ltd,Upkeep of Grounds,Green Works, 456.31 
01/10/2019,PERM SURP LAND,Glendale Countryside Ltd,Upkeep of Grounds,Green Works, 708.55 
01/10/2019,FARNHAM LIB,Glendale Countryside Ltd,Upkeep of Grounds,Green Works, 376.37 
01/10/2019,SURREY HISTORY CTR,Glendale Countryside Ltd,Upkeep of Grounds,Green Works, 396.59 
01/10/2019,MAYFORD CENTRE-BUS,Glendale Countryside Ltd,Upkeep of Grounds,Green Works," 1,615.50 "
01/10/2019,MERSTHAM HUB,Glendale Countryside Ltd,Upkeep of Grounds,Green Works, 256.20 
01/10/2019,Guildford C&G OP,Guildford Borough Council,Day Care,Grants-Member Allocs," 12,864.75 "
01/10/2019,NULL,Guildford Borough Council - Council,NULL,Local Government, 472.00 
01/10/2019,NULL,Guildford Borough Council - Council,NULL,Local Government, 385.00 
01/10/2019,NULL,Guildford Borough Council - Council,NULL,Local Government, 279.00 
01/10/2019,NULL,Guildford Borough Council - Council,NULL,Local Government, 342.00 
01/10/2019,SERV DELIVERY RES,Guildford Fire Station,Car Allowances,Fire Service, 348.44 
01/10/2019,NE AGENCY PLACE-ED,Hawley Hurst School,Agency Placement Expenditure,Doc Archive & Store," 8,131.66 "
01/10/2019,NE AGENCY PLACE-ED,Hawley Hurst School,Agency Placement Expenditure,Doc Archive & Store," 9,815.33 "
01/10/2019,NE AGENCY PLACE-ED,Hawley Hurst School,Agency Placement Expenditure,Doc Archive & Store," 7,090.33 "
01/10/2019,NULL,Hazell & Jefferies Ltd,CE02 Works,Surface Treatment," 8,220.00 "
01/10/2019,ASC OPEN PROGRAMME,Herts Handling Training Ltd,Training Expenses - External General,Staff Training, 508.00 
01/10/2019,ASC OPEN PROGRAMME,Herts Handling Training Ltd,Training Expenses - External General,Staff Training, 508.00 
01/10/2019,ASC OPEN PROGRAMME,Herts Handling Training Ltd,Training Expenses - External General,Staff Training, 388.00 
01/10/2019,SW IPSB - OUT COUNTY,Highfield & Brookham Schools,Agency Placement Expenditure,SEND Agncy Placement," 5,656.70 "
01/10/2019,REIGATE & BD C&G OP,Housing & Care 21,Home Base Care,Residential - LD," 1,009.80 "
01/10/2019,QUADRANT CT WOKING,Hunter Communication Services Ltd,Security Alarm Maintenance,Access Control Serv, 266.88 
01/10/2019,TRANSPORT,Hydraulic Crane Services Ltd,Vehicle Repairs and Maintenance,Fire Service Vehicle, 543.85 
01/10/2019,SW AGENCY PLACE-ED,I Can Services Ltd,Agency Placement Expenditure,Sup Living Children," 9,430.57 "
01/10/2019,PROP OPERATIONS TEAM,IHS Global Ltd,Computer Software,IT Consultancy," 16,879.14 "
01/10/2019,NE AGENCY PLACE-ED,Ingfield Manor School,Agency Placement Expenditure,School Support Serv," 18,814.00 "
01/10/2019,ADOPTION SUPP FUND,Insight4Children Ltd,Other Community Care - Priv,Inter-Agency fee," 1,720.00 "
01/10/2019,ASC OPEN PROGRAMME,In-Trac Training & Consultancy Ltd,Training Expenses - External General,Staff Training," 1,920.00 "
01/10/2019,ASSET STRAT & PL MGR,Investigo Ltd,Agency Staff Providing Project Support,Professional Project," 2,529.74 "
01/10/2019,ASSET STRAT & PL MGR,Investigo Ltd,Agency Staff Providing Project Support,Professional Project," 2,016.00 "
01/10/2019,ASSET STRAT & PL MGR,Investigo Ltd,Agency Staff Providing Project Support,Professional Project," 2,520.00 "
01/10/2019,PSSS PD,James Leckey Design Ltd,Equipment,Green Works, 375.60 
01/10/2019,PSSS PD,James Leckey Design Ltd,Equipment,Green Works," 1,297.20 "
01/10/2019,PSSS PD,James Leckey Design Ltd,Equipment,Green Works," 1,446.00 "
01/10/2019,PSSS PD,James Leckey Design Ltd,Equipment,Green Works," 2,985.60 "
01/10/2019,PSSS PD,Jenx Ltd,Equipment,Furniture - Office," 2,920.80 "
01/10/2019,PSSS PD,Jenx Ltd,Equipment,Furniture - Office," 2,148.00 "
01/10/2019,NW TRANSPORT,John Winstanley & Co Ltd,Security Alarm Maintenance,H & S Products, 339.99 
01/10/2019,SW TRANSPORT,John Winstanley & Co Ltd,Security Alarm Maintenance,H & S Products, 254.99 
01/10/2019,SW TRANSPORT,John Winstanley & Co Ltd,Security Alarm Maintenance,H & S Products, 254.99 
01/10/2019,SE TRANSPORT,John Winstanley & Co Ltd,Security Alarm Maintenance,H & S Products, 254.99 
01/10/2019,BUS SUPP & CUST SERV,Kane Construction Services Ltd,Contractor,Highway Maintenance, 595.20 
01/10/2019,NULL,Kenward Groundworks,CE02 Works,Green Works," 10,548.00 "
01/10/2019,NE S17 CARE,Koosa Kids Ltd,Respite Nursing - Priv,After School Clubs, 387.00 
01/10/2019,ROW MAINTENANCE,Leith Hill Plant Ltd,Upkeep of Grounds,Highway - Construct, 261.60 
01/10/2019,EPSOM HOSP,Leonard Cheshire Foundation,Home Base Care,Residential - MH," 2,781.10 "
01/10/2019,TS SERVICE MGMT,London Fire & Emergency Planning Au,Fees,Fire Serv Spec Equip, 375.00 
01/10/2019,Fire Service,London Fire & Emergency Planning Au,Local Authorities,Fire Serv Spec Equip," 22,373.64 "
01/10/2019,SW AGENCY PLACE-ED,LVS Hassocks,Agency Placement Expenditure,SEND Agncy Placement," 7,076.76 "
01/10/2019,SW AGENCY PLACE-ED,LVS Hassocks,Agency Placement Expenditure,SEND Agncy Placement," 6,734.76 "
01/10/2019,SW AGENCY PLACE-ED,LVS Hassocks,Agency Placement Expenditure,SEND Agncy Placement," 10,156.76 "
01/10/2019,SW AGENCY PLACE-ED,LVS Hassocks,Agency Placement Expenditure,SEND Agncy Placement," 8,730.00 "
01/10/2019,NW CARE - LAC,Mars Secure Transport & Recruitemen,Non-Staff Related Transport Costs,Taxi Escorts Only, 991.20 
01/10/2019,SURREY HEATH,Millane Contract Services Ltd,Corporate Planned Maintenance,General Build Maint," 19,857.60 "
01/10/2019,SURREY HEATH,Millane Contract Services Ltd,Corporate Responsive Maintenance,General Build Maint, 420.00 
01/10/2019,SURREY HEATH,Millane Contract Services Ltd,Corporate Responsive Maintenance,General Build Maint, 455.42 
01/10/2019,SURREY HEATH,Millane Contract Services Ltd,Corporate Responsive Maintenance,General Build Maint," 1,039.88 "
01/10/2019,COUNTY CES POOLED,Millbrook Healthcare,Equipment - Independent Sector,Complex," 786,533.64 "
01/10/2019,GROWTH STRATEGY NHB,Minnerva Ltd,Computer Software,Staff Training," 1,352.05 "
01/10/2019,ASC OPEN PROGRAMME,Mole Valley District Council,Venue Costs (including Hire of Rooms),Grants-Member Allocs, 444.00 
01/10/2019,CSF TRAINING PROG,Mole Valley District Council,Venue Costs (including Hire of Rooms),Grants-Member Allocs, 961.80 
01/10/2019,CSF TRAINING PROG,Mole Valley District Council,Venue Costs (including Hire of Rooms),Grants-Member Allocs, 497.26 
01/10/2019,NULL,Mole Valley District Council - Tax,NULL,Local Government, 284.00 
01/10/2019,NULL,Mole Valley District Council - Tax,NULL,Local Government, 946.31 
01/10/2019,NULL,Mole Valley District Council - Tax,NULL,Local Government, 487.00 
01/10/2019,NULL,Mole Valley District Council - Tax,NULL,Local Government, 294.00 
01/10/2019,ES - ASC CAPITAL,NHS East Surrey CCG,Other Community Care,Customised & Bespoke," 15,000.00 "
01/10/2019,ES - ASC CAPITAL,NHS East Surrey CCG,Other Community Care,Customised & Bespoke," 37,343.00 "
01/10/2019,Orchard Court Res,Nisbets,Equipment,Subscriptions," 1,696.77 "
01/10/2019,Barnfield Res,Nisbets,Equipment,Subscriptions, 975.58 
01/10/2019,NULL,NPS South East Ltd,NULL,M-D (Property), 474.00 
01/10/2019,NULL,NPS South East Ltd,NULL,M-D (Property), 576.00 
01/10/2019,ACL CENTRAL EXP,Oasis Coffee & Vending,E25 Catering Equipment,Cat Vending Machines, 253.59 
01/10/2019,ACL CENTRAL EXP,Oasis Coffee & Vending,E25 Catering Equipment,Cat Vending Machines, 570.41 
01/10/2019,UNICORN SCC,Packet Media Ltd,Telecommunication Charges,Appl Serv Provision," 3,752.50 "
01/10/2019,S.D. EAST AREA MGMT,Painshill Fire Station,Meals,Fire Service, 285.12 
01/10/2019,Asset & Place Strate,Penna Plc,Agency Support Staff Covering OM Post,Temp Ops OM Cover," 4,812.00 "
01/10/2019,Asset & Place Strate,Penna Plc,Agency Staff & Contractors,Temp Ops OM Cover," 15,398.40 "
01/10/2019,CORP INCOME AND EXP,Penna Plc,Agency Staff Providing Project Support,Temp Ops OM Cover," 8,292.60 "
01/10/2019,ORB FIN ASST DIR,Penna Plc,Agency Staff Providing Project Support,Temp Ops OM Cover," 15,584.40 "
01/10/2019,TSU / governance/ Cu,Penna Plc,Agency Staff Non-OM (Irregular Cover),Temp Ops OM Cover," 17,249.90 "
01/10/2019,DOLS TEAM,Phillips Brown Social Care Ltd,Fees,Specialist Serv," 2,726.94 "
01/10/2019,Heathside Res,Prism UK Medical Ltd,Equipment,Staff Training," 1,034.65 "
01/10/2019,TRAINING AND DEV,Probrand Ltd,Training Expenses - External General,Mobile User Devices," 2,030.76 "
01/10/2019,ACL CENTRAL EXP,Reading Stained Glass Ltd,Day To Day Maintenance,Arts & Crafts, 441.72 
01/10/2019,NE FOSTERING CARE,Redacted Personal Data,Third Party Payments-Other Agencies,Family Support, 330.00 
01/10/2019,COMMUNITY PARTNERSHI,Redacted Personal Data,Miscellaneous Staff Travel,Staff Expenses, 421.73 
01/10/2019,ASYLUM SEEKERS 18+,Redacted Personal Data,Independent Living Placements,CYP Indiv Carers, 280.00 
01/10/2019,NE CARE - LAC,Redacted Personal Data,Education Season Tickets,Individual - NEC, 651.00 
01/10/2019,SINGING PROGRAMMES,Redacted Personal Data,Educ Visits/Hols/Camps/Toys,Performing Arts, 600.00 
01/10/2019,ACCESS PROGRAMMES,Redacted Personal Data,Fees,Performing Arts, 810.00 
01/10/2019,ACCESS PROGRAMMES,Redacted Personal Data,Fees,Performing Arts, 510.00 
01/10/2019,COMMUNITY PARTNERSHI,Redacted Personal Data,Miscellaneous Staff Travel,Staff Expenses, 256.02 
01/10/2019,DOLS TEAM,Redacted Personal Data,Fees,Specialist Serv, 262.15 
01/10/2019,COMMUNITY PARTNERSHI,Redacted Personal Data,Miscellaneous Staff Travel,Staff Expenses, 291.40 
01/10/2019,CORP INCOME AND EXP,Redacted Personal Data,Write Offs,Psychiatric Therapy, 432.00 
01/10/2019,CORP INCOME AND EXP,Redacted Personal Data,Write Offs,Psychiatric Therapy," 1,512.00 "
01/10/2019,NW NRPF FAM CARE,Redacted Personal Data,Independent Living Placements,Individual - NEC," 1,200.00 "
01/10/2019,NE CARE - CPCRT LAC,Redacted Personal Data,Independent Living Placements,Invoicing Plan Req., 330.30 
01/10/2019,SOLD PROF TRNG DELV,Redacted Personal Data,Printing,Non-Staff Training, 660.00 
01/10/2019,TRNG DELIVERY STAFF,Redacted Personal Data,Fees,Interpret & Transl S, 780.00 
01/10/2019,COMMUNITY PARTNERSHI,Redacted Personal Data,Miscellaneous Staff Travel,Staff Expenses, 260.45 
01/10/2019,NW ALTERNATIVE SEN,Redacted Personal Data,Agency Placement Expenditure,SEN Specialist Supp," 1,462.60 "
01/10/2019,COMMUNITY PARTNERSHI,Redacted Personal Data,Miscellaneous Staff Travel,Staff Expenses, 250.12 
01/10/2019,COMMUNITY PARTNERSHI,Redacted Personal Data,Miscellaneous Staff Travel,Staff Expenses, 331.02 
01/10/2019,COMMUNITY PARTNERSHI,Redacted Personal Data,Miscellaneous Staff Travel,Staff Expenses, 272.09 
01/10/2019,COMMUNITY PARTNERSHI,Redacted Personal Data,Miscellaneous Staff Travel,Staff Expenses, 440.40 
01/10/2019,COMMUNITY PARTNERSHI,Redacted Personal Data,Miscellaneous Staff Travel,Staff Expenses, 287.40 
01/10/2019,COMMUNITY PARTNERSHI,Redacted Personal Data,Miscellaneous Staff Travel,Pensions, 537.65 
01/10/2019,COMMUNITY PARTNERSHI,Redacted Personal Data,Miscellaneous Staff Travel,Staff Expenses, 417.57 
01/10/2019,COMMUNITY PARTNERSHI,Redacted Personal Data,Miscellaneous Staff Travel,Staff Expenses, 406.17 
01/10/2019,COMMUNITY PARTNERSHI,Redacted Personal Data,Miscellaneous Staff Travel,Staff Expenses, 508.30 
01/10/2019,COMMUNITY PARTNERSHI,Redacted Personal Data,Miscellaneous Staff Travel,Staff Expenses, 334.24 
01/10/2019,COMMUNITY PARTNERSHI,Redacted Personal Data,Miscellaneous Staff Travel,Staff Expenses, 260.10 
01/10/2019,COMMUNITY PARTNERSHI,Redacted Personal Data,Miscellaneous Staff Travel,Staff Expenses, 467.00 
01/10/2019,COMMUNITY PARTNERSHI,Redacted Personal Data,Miscellaneous Staff Travel,Staff Expenses, 398.73 
01/10/2019,COMMUNITY PARTNERSHI,Redacted Personal Data,Miscellaneous Staff Travel,Staff Expenses, 366.30 
01/10/2019,COMMUNITY PARTNERSHI,Redacted Personal Data,Miscellaneous Staff Travel,Staff Expenses, 255.15 
01/10/2019,COMMUNITY PARTNERSHI,Redacted Personal Data,Miscellaneous Staff Travel,Staff Expenses, 293.50 
01/10/2019,COMMUNITY PARTNERSHI,Redacted Personal Data,Miscellaneous Staff Travel,Staff Expenses, 284.80 
01/10/2019,COMMUNITY PARTNERSHI,Redacted Personal Data,Miscellaneous Staff Travel,Staff Expenses, 342.90 
01/10/2019,COMMUNITY PARTNERSHI,Redacted Personal Data,Miscellaneous Staff Travel,Staff Expenses, 435.47 
01/10/2019,COMMUNITY PARTNERSHI,Redacted Personal Data,Miscellaneous Staff Travel,Staff Expenses, 285.40 
01/10/2019,COMMUNITY PARTNERSHI,Redacted Personal Data,Miscellaneous Staff Travel,Staff Expenses, 316.29 
01/10/2019,COMMUNITY PARTNERSHI,Redacted Personal Data,Miscellaneous Staff Travel,Staff Expenses, 344.85 
01/10/2019,COMMUNITY PARTNERSHI,Redacted Personal Data,Miscellaneous Staff Travel,Staff Expenses, 307.20 
01/10/2019,SE FAM SAFEG TEAM 1,Redacted Personal Data,"SCC Required Car upto 8,000 miles",Staff Expenses, 278.00 
01/10/2019,SE FAM SAFEG TEAM 1,Redacted Personal Data,"SCC Required Car upto 8,000 miles",Staff Expenses, 504.90 
01/10/2019,COMMUNITY PARTNERSHI,Redacted Personal Data,Miscellaneous Staff Travel,Staff Expenses, 297.15 
01/10/2019,SW ALTERNATIVE SEN,Redacted Personal Data,Agency Placement Expenditure,Invoicing Plan Req.," 2,295.00 "
01/10/2019,ADOPTION CARE,Redacted Personal Data,Other Community Care - Priv,Individual - NEC, 490.00 
01/10/2019,SW CARE - CPCRT NONL,Redacted Personal Data,Other Community Care - Vol,Adult direct payment, 278.80 
01/10/2019,CWD CONTRACTS/SLA'S,Redacted Personal Data,Direct Payments - Carers of Disabled Children,Misc One-off, 278.00 
01/10/2019,NE AREA SEN MGT,Redacted Personal Data,Compensation and Ex-Gratia,Non-Staff Expenses, 500.00 
01/10/2019,NE TRANSPORT,Redacted Personal Data,Non-Staff Related Transport Costs,Childrens Indiv Tran, 270.00 
01/10/2019,CORONER,Redacted Personal Data,Inquest Exps.,Individual - NEC, 315.00 
01/10/2019,COMMUNITY PARTNERSHI,Redacted Personal Data,Miscellaneous Staff Travel,Staff Expenses, 254.96 
01/10/2019,NULL,Reigate & Banstead Borough Council,NULL,Local Government, 566.00 
01/10/2019,NULL,Reigate & Banstead Borough Council,NULL,Local Government, 647.00 
01/10/2019,NE ALTERNATIVE SEN,Rosebery School,Agency Placement Expenditure,Schools," 2,770.00 "
01/10/2019,LOCAL DELIVERY TEAM,Royal British Legion,Day To Day Maintenance,Residential - LD, 379.82 
01/10/2019,NULL,Runnymede Borough Council,NULL,Local Government, 287.00 
01/10/2019,NULL,Runnymede Borough Council,NULL,Local Government, 470.00 
01/10/2019,COMMUNITY TRANSPT,Runnymede Borough Council,Contractor,Local Government," 7,115.98 "
01/10/2019,ASSET INV & REGN MGR,Runnymede Borough Council,Fees,Local Government," 1,500.00 "
01/10/2019,NULL,Ryall & Edwards Ltd,CE02 Works,General Build Maint," 1,418.04 "
01/10/2019,ASYLUM SKRS 16-17,S P Homes Ltd,Independent Living Placements,Sup Living Children," 1,927.27 "
01/10/2019,ASYLUM SKRS 16-17,S P Homes Ltd,Independent Living Placements,Sup Living Children, 398.66 
01/10/2019,SCC PENSIONS,Sammons Pensions Ltd,Agency Staff Providing Project Support,Recruit & Assessment," 3,300.00 "
01/10/2019,SCC PENSIONS,Sammons Pensions Ltd,Agency Staff Providing Project Support,Recruit & Assessment," 2,640.00 "
01/10/2019,CARE LEAVER PACKAGES,Sanctuary Affordable Housing,Independent Living Placements,Residential - MH, 580.75 
01/10/2019,SHALFORD INF,SCC Shalford Infant School,Training Expenses - External General,Schools," 2,712.55 "
01/10/2019,ST FRANCIS CTH PRY C,SCC ST Francis Catholic Primary Sch,Agency Supply Cover Teaching,Schools," 2,878.57 "
01/10/2019,ST JAMES CEP ELSTEAD,SCC St James COE (A) Primary School,Recruitment And Retention,Schools, 969.78 
01/10/2019,ST JAMES CEP ELSTEAD,SCC St James COE (A) Primary School,Ctkers Hndmn Cleanrs,Schools," 1,742.85 "
01/10/2019,ST MICHAEL RCP ASHFD,SCC St Michael's RC School,Recruitment And Retention,Extra Care," 4,084.87 "
01/10/2019,ST MICHAEL RCP ASHFD,SCC St Michael's RC School,Additional Staff Payments,Extra Care, 716.46 
01/10/2019,PSSS PD,Schuchmann LLP,Equipment,SEN Equipment," 3,004.80 "
01/10/2019,SE S17 CARE,SE Area Children's Reigate,Other Community Care - Vol,NT - Internal Pymt," 1,151.12 "
01/10/2019,PINEHURST,Secure Site UK Ltd,Security Alarm Maintenance,Security Equipment, 744.00 
01/10/2019,COBGATES,Secure Site UK Ltd,Security Alarm Maintenance,Security Equipment, 744.00 
01/10/2019,BUS SUPP & CUST SERV,Signal Services Ltd,Contractor,Highway Maintenance," 1,701.60 "
01/10/2019,BUS SUPP & CUST SERV,Signal Services Ltd,Contractor,Highway Maintenance, 786.00 
01/10/2019,BUS SUPP & CUST SERV,Signal Services Ltd,Contractor,Highway Maintenance," 1,617.60 "
01/10/2019,BUS SUPP & CUST SERV,Signal Services Ltd,Contractor,Highway Maintenance," 1,526.00 "
01/10/2019,BUS SUPP & CUST SERV,Signal Services Ltd,Contractor,Highway Maintenance," 1,633.20 "
01/10/2019,BUS SUPP & CUST SERV,Signal Services Ltd,Contractor,Highway Maintenance," 1,503.60 "
01/10/2019,BUS SUPP & CUST SERV,Signal Services Ltd,Contractor,Highway Maintenance," 1,538.40 "
01/10/2019,BUS SUPP & CUST SERV,Signal Services Ltd,Contractor,Highway Maintenance," 1,638.00 "
01/10/2019,BUS SUPP & CUST SERV,Signal Services Ltd,Contractor,Highway Maintenance," 1,598.40 "
01/10/2019,BUS SUPP & CUST SERV,Signal Services Ltd,Contractor,Highway Maintenance," 1,207.20 "
01/10/2019,NULL,Softcat Ltd,CE04 Capital ICT,Appl Serv Provision," 5,066.51 "
01/10/2019,LD-Aut Cntr Tm Care,Solent Mind,Other Community Care,Social Care Consult, 916.40 
01/10/2019,CSF OPEN PROGRAMME,Solicitude Training Ltd,New GR/IR Account,Staff Training, 600.00 
01/10/2019,NULL,Spelthorne Borough Council,NULL,Grants-Member Allocs, 415.00 
01/10/2019,NULL,Spelthorne Borough Council,NULL,Grants-Member Allocs, 351.00 
01/10/2019,NULL,Spelthorne Borough Council,NULL,Grants-Member Allocs, 456.00 
01/10/2019,ADOPTION TEAM,St Johns Church Centre,Venue Costs (including Hire of Rooms),Venue Hire, 980.00 
01/10/2019,SERV DELIVERY RES,Staines Fire Station,Car Allowances,Fire Service, 381.45 
01/10/2019,ASYLUM SEEKERS 18+,Step Ahead Services Ltd,Independent Living Placements,Youth Offending Serv," 1,513.68 "
01/10/2019,NRPF 18+ CARE,Step Ahead Services Ltd,Independent Living Placements,Youth Offending Serv, 463.20 
01/10/2019,NIL REC PF 18+ ASYLM,Step Ahead Services Ltd,Independent Living Placements,Youth Offending Serv," 2,444.57 "
01/10/2019,NIL REC PF 18+ ASYLM,Step Ahead Services Ltd,Independent Living Placements,Youth Offending Serv," 2,444.57 "
01/10/2019,ASYLUM SEEKERS 18+,Step Ahead Services Ltd,Independent Living Placements,Youth Offending Serv, 968.80 
01/10/2019,ASYLUM SKRS 16-17,Step Ahead Services Ltd,Independent Living Placements,Youth Offending Serv," 2,736.85 "
01/10/2019,ASYLUM SKRS 16-17,Step Ahead Services Ltd,Independent Living Placements,Youth Offending Serv," 2,471.15 "
01/10/2019,SE UASC UNDER 18,Step Ahead Services Ltd,Independent Living Placements,Youth Offending Serv, 289.50 
01/10/2019,ASYLUM SEEKERS 18+,Step Ahead Services Ltd,Independent Living Placements,Youth Offending Serv," 1,002.21 "
01/10/2019,AGENCY NON CWD SC,Step Ahead Services Ltd,Independent Living Placements,Youth Offending Serv," 3,075.42 "
01/10/2019,SW AGENCY PLACE-ED,Stepping Stones School,Agency Placement Expenditure,SEN Specialist Supp," 10,946.00 "
01/10/2019,NW AGENCY PLACE-ED,Stepping Stones School,Agency Placement Expenditure,SEN Specialist Supp," 8,805.00 "
01/10/2019,SW AGENCY PLACE-ED,Stepping Stones School,Agency Placement Expenditure,SEN Specialist Supp," 8,924.00 "
01/10/2019,NW AGENCY PLACE-ED,Stepping Stones School,Agency Placement Expenditure,SEN Specialist Supp," 10,178.00 "
01/10/2019,SW AGENCY PLACE-ED,Stepping Stones School,Agency Placement Expenditure,SEN Specialist Supp," 10,305.00 "
01/10/2019,SW AGENCY PLACE-ED,Stepping Stones School,Agency Placement Expenditure,SEN Specialist Supp," 10,230.00 "
01/10/2019,SW AGENCY PLACE-ED,Stepping Stones School,Agency Placement Expenditure,SEN Specialist Supp," 10,906.00 "
01/10/2019,SW AGENCY PLACE-ED,Stepping Stones School,Agency Placement Expenditure,SEN Specialist Supp," 9,386.00 "
01/10/2019,NW AGENCY PLACE-ED,Stepping Stones School,Agency Placement Expenditure,SEN Specialist Supp," 9,735.00 "
01/10/2019,SW AGENCY PLACE-ED,Stepping Stones School,Agency Placement Expenditure,SEN Specialist Supp," 9,386.00 "
01/10/2019,SW AGENCY PLACE-ED,Stepping Stones School,Agency Placement Expenditure,SEN Specialist Supp," 8,753.00 "
01/10/2019,NE AGENCY PLACE-ED,Stepping Stones School,Agency Placement Expenditure,SEN Specialist Supp," 10,843.00 "
01/10/2019,SW AGENCY PLACE-ED,Stepping Stones School,Agency Placement Expenditure,SEN Specialist Supp," 8,320.00 "
01/10/2019,SW AGENCY PLACE-ED,Stepping Stones School,Agency Placement Expenditure,SEN Specialist Supp," 9,988.00 "
01/10/2019,SW AGENCY PLACE-ED,Stepping Stones School,Agency Placement Expenditure,SEN Specialist Supp," 9,936.00 "
01/10/2019,SW AGENCY PLACE-ED,Stepping Stones School,Agency Placement Expenditure,SEN Specialist Supp," 10,452.00 "
01/10/2019,SW AGENCY PLACE-ED,Stepping Stones School,Agency Placement Expenditure,SEN Specialist Supp," 9,703.00 "
01/10/2019,BUS SUPP & CUST SERV,Stone Surfacing,Contractor,Highways Structures," 2,760.00 "
01/10/2019,PVI FAMILY CENTRES,Surrey Care Trust,Other Community Care - Vol,Grants-Member Allocs," 56,161.00 "
01/10/2019,NULL,Surrey Heath Borough Council - Tax,NULL,Local Government, 332.00 
01/10/2019,STREET LIGHTING PFI,Surrey Lighting Services Ltd,Contractor,Building Signage," 1,144,232.38 "
01/10/2019,NULL,Tandridge District Council,NULL,Local Government, 435.00 
01/10/2019,NULL,Tandridge District Council,NULL,Local Government, 585.00 
01/10/2019,NULL,Teachers Pensions,NULL,Pensions," 3,939.88 "
01/10/2019,NULL,Teachers Pensions,NULL,Pensions," 24,235.28 "
01/10/2019,NULL,Teachers Pensions,NULL,Pensions," 30,780.72 "
01/10/2019,NULL,Teachers Pensions,NULL,Pensions," 22,636.98 "
01/10/2019,NULL,Teachers Pensions,NULL,Pensions," 13,171.53 "
01/10/2019,NULL,Teachers Pensions,NULL,Pensions," 5,966.04 "
01/10/2019,NULL,Teachers Pensions,NULL,Pensions," 17,514.07 "
01/10/2019,NULL,Teachers Pensions,NULL,Pensions," 9,485.09 "
01/10/2019,NULL,Teachers Pensions,NULL,Pensions," 34,990.94 "
01/10/2019,NULL,Teachers Pensions,NULL,Pensions," 11,276.65 "
01/10/2019,NULL,Teachers Pensions,NULL,Pensions," 22,623.85 "
01/10/2019,NULL,Teachers Pensions,NULL,Pensions," 6,619.63 "
01/10/2019,NULL,Teachers Pensions,NULL,Pensions," 2,585.63 "
01/10/2019,NULL,Teachers Pensions,NULL,Pensions," 6,266.10 "
01/10/2019,NULL,Teachers Pensions,NULL,Pensions," 9,499.84 "
01/10/2019,NULL,Teachers Pensions,NULL,Pensions," 5,146.44 "
01/10/2019,NULL,Teachers Pensions,NULL,Pensions, 458.38 
01/10/2019,NULL,Teachers Pensions,NULL,Pensions," 3,509.92 "
01/10/2019,NULL,Teachers Pensions,NULL,Pensions," 40,011.93 "
01/10/2019,NULL,Teachers Pensions,NULL,Pensions," 2,517.88 "
01/10/2019,NULL,Teachers Pensions,NULL,Pensions," 3,794.71 "
01/10/2019,NULL,Teachers Pensions,NULL,Pensions," 4,050.97 "
01/10/2019,NULL,Teachers Pensions,NULL,Pensions," 3,988.70 "
01/10/2019,NULL,Teachers Pensions,NULL,Pensions," 2,819.71 "
01/10/2019,NULL,Teachers Pensions,NULL,Pensions," 8,235.92 "
01/10/2019,NULL,Teachers Pensions,NULL,Pensions," 6,986.86 "
01/10/2019,NULL,Teachers Pensions,NULL,Pensions," 5,656.86 "
01/10/2019,NULL,Teachers Pensions,NULL,Pensions," 4,231.49 "
01/10/2019,NULL,Teachers Pensions,NULL,Pensions," 3,301.99 "
01/10/2019,NULL,Teachers Pensions,NULL,Pensions," 19,757.01 "
01/10/2019,NULL,Teachers Pensions,NULL,Pensions," 5,199.63 "
01/10/2019,NULL,Teachers Pensions,NULL,Pensions," 3,802.07 "
01/10/2019,NULL,Teachers Pensions,NULL,Pensions," 1,163.44 "
01/10/2019,NULL,Teachers Pensions,NULL,Pensions," 6,406.05 "
01/10/2019,NULL,Teachers Pensions,NULL,Pensions," 12,194.77 "
01/10/2019,NULL,Teachers Pensions,NULL,Pensions," 14,867.05 "
01/10/2019,NULL,Teachers Pensions,NULL,Pensions, 689.27 
01/10/2019,NULL,Teachers Pensions,NULL,Pensions," 4,425.54 "
01/10/2019,NULL,Teachers Pensions,NULL,Pensions," 5,890.80 "
01/10/2019,NULL,Teachers Pensions,NULL,Pensions," 2,963.39 "
01/10/2019,NULL,Teachers Pensions,NULL,Pensions," 5,218.50 "
01/10/2019,NULL,Teachers Pensions,NULL,Pensions," 2,312.36 "
01/10/2019,NULL,Teachers Pensions,NULL,Pensions," 5,618.25 "
01/10/2019,NULL,Teachers Pensions,NULL,Pensions," 8,650.72 "
01/10/2019,NULL,Teachers Pensions,NULL,Pensions," 4,184.43 "
01/10/2019,NULL,Teachers Pensions,NULL,Pensions," 74,706.54 "
01/10/2019,NULL,Teachers Pensions,NULL,Pensions," 32,228.40 "
01/10/2019,NULL,Teachers Pensions,NULL,Pensions," 5,596.88 "
01/10/2019,NULL,Teachers Pensions,NULL,Pensions," 9,285.86 "
01/10/2019,NULL,Teachers Pensions,NULL,Pensions," 44,226.34 "
01/10/2019,NULL,Teachers Pensions,NULL,Pensions," 14,394.35 "
01/10/2019,NULL,Teachers Pensions,NULL,Pensions," 6,338.33 "
01/10/2019,NULL,Teachers Pensions,NULL,Pensions," 13,947.28 "
01/10/2019,NULL,Teachers Pensions,NULL,Pensions," 6,432.37 "
01/10/2019,NULL,Teachers Pensions,NULL,Pensions," 15,507.99 "
01/10/2019,NULL,Teachers Pensions,NULL,Pensions," 7,211.47 "
01/10/2019,NULL,Teachers Pensions,NULL,Pensions," 13,085.28 "
01/10/2019,NULL,Teachers Pensions,NULL,Pensions," 8,424.66 "
01/10/2019,NULL,Teachers Pensions,NULL,Pensions," 17,578.41 "
01/10/2019,NULL,Teachers Pensions,NULL,Pensions," 18,735.62 "
01/10/2019,NULL,Teachers Pensions,NULL,Pensions," 32,412.57 "
01/10/2019,NULL,Teachers Pensions,NULL,Pensions," 20,815.33 "
01/10/2019,NULL,Teachers Pensions,NULL,Pensions," 35,980.82 "
01/10/2019,NULL,Teachers Pensions,NULL,Pensions," 18,736.45 "
01/10/2019,NULL,Teachers Pensions,NULL,Pensions," 8,366.36 "
01/10/2019,NULL,Teachers Pensions,NULL,Pensions," 8,631.17 "
01/10/2019,NULL,Teachers Pensions,NULL,Pensions," 2,514.46 "
01/10/2019,NULL,Teachers Pensions,NULL,Pensions," 3,898.81 "
01/10/2019,NULL,Teachers Pensions,NULL,Pensions," 3,269.10 "
01/10/2019,NULL,Teachers Pensions,NULL,Pensions," 23,404.16 "
01/10/2019,NULL,Teachers Pensions,NULL,Pensions," 28,150.64 "
01/10/2019,NULL,Teachers Pensions,NULL,Pensions," 17,549.57 "
01/10/2019,NULL,Teachers Pensions,NULL,Pensions," 2,563.66 "
01/10/2019,NULL,Teachers Pensions,NULL,Pensions," 5,905.52 "
01/10/2019,NULL,Teachers Pensions,NULL,Pensions," 2,641.35 "
01/10/2019,NULL,Teachers Pensions,NULL,Pensions," 2,403.02 "
01/10/2019,NULL,Teachers Pensions,NULL,Pensions," 3,208.43 "
01/10/2019,NULL,Teachers Pensions,NULL,Pensions," 26,704.18 "
01/10/2019,NULL,Teachers Pensions,NULL,Pensions," 9,439.97 "
01/10/2019,NULL,Teachers Pensions,NULL,Pensions," 25,491.72 "
01/10/2019,NULL,Teachers Pensions,NULL,Pensions," 21,793.02 "
01/10/2019,NULL,Teachers Pensions,NULL,Pensions," 5,984.57 "
01/10/2019,NULL,Teachers Pensions,NULL,Pensions," 5,124.22 "
01/10/2019,NULL,Teachers Pensions,NULL,Pensions," 5,280.64 "
01/10/2019,NULL,Teachers Pensions,NULL,Pensions," 10,068.88 "
01/10/2019,NULL,Teachers Pensions,NULL,Pensions," 1,049.08 "
01/10/2019,NULL,Teachers Pensions,NULL,Pensions," 3,699.89 "
01/10/2019,NULL,Teachers Pensions,NULL,Pensions," 7,353.02 "
01/10/2019,NULL,Teachers Pensions,NULL,Pensions," 21,125.34 "
01/10/2019,NULL,Teachers Pensions,NULL,Pensions," 18,546.83 "
01/10/2019,NULL,Teachers Pensions,NULL,Pensions," 28,173.78 "
01/10/2019,NULL,Teachers Pensions,NULL,Pensions," 1,646.99 "
01/10/2019,NULL,Teachers Pensions,NULL,Pensions," 5,538.84 "
01/10/2019,NULL,Teachers Pensions,NULL,Pensions," 2,406.24 "
01/10/2019,NULL,Teachers Pensions,NULL,Pensions," 2,772.97 "
01/10/2019,NULL,Teachers Pensions,NULL,Pensions," 6,966.13 "
01/10/2019,NULL,Teachers Pensions,NULL,Pensions," 7,974.45 "
01/10/2019,NULL,Teachers Pensions,NULL,Pensions, 431.13 
01/10/2019,NULL,Teachers Pensions,NULL,Pensions," 3,718.89 "
01/10/2019,NULL,Teachers Pensions,NULL,Pensions," 28,374.75 "
01/10/2019,NULL,Teachers Pensions,NULL,Pensions," 4,281.22 "
01/10/2019,NULL,Teachers Pensions,NULL,Pensions," 2,096.18 "
01/10/2019,NULL,Teachers Pensions,NULL,Pensions," 31,123.12 "
01/10/2019,NULL,Teachers Pensions,NULL,Pensions," 8,805.52 "
01/10/2019,NULL,Teachers Pensions,NULL,Pensions," 6,429.23 "
01/10/2019,NULL,Teachers Pensions,NULL,Pensions," 2,474.31 "
01/10/2019,NULL,Teachers Pensions,NULL,Pensions," 5,234.71 "
01/10/2019,NULL,Teachers Pensions,NULL,Pensions," 1,008.42 "
01/10/2019,NULL,Teachers Pensions,NULL,Pensions," 3,490.99 "
01/10/2019,NULL,Teachers Pensions,NULL,Pensions," 4,706.50 "
01/10/2019,NULL,Teachers Pensions,NULL,Pensions," 5,153.31 "
01/10/2019,NULL,Teachers Pensions,NULL,Pensions," 2,744.11 "
01/10/2019,NULL,Teachers Pensions,NULL,Pensions," 4,811.10 "
01/10/2019,NULL,Teachers Pensions,NULL,Pensions," 20,796.30 "
01/10/2019,NULL,Teachers Pensions,NULL,Pensions," 2,784.22 "
01/10/2019,NULL,Teachers Pensions,NULL,Pensions," 3,510.22 "
01/10/2019,NULL,Teachers Pensions,NULL,Pensions," 2,816.20 "
01/10/2019,NULL,Teachers Pensions,NULL,Pensions," 3,646.12 "
01/10/2019,NULL,Teachers Pensions,NULL,Pensions," 3,180.45 "
01/10/2019,NULL,Teachers Pensions,NULL,Pensions," 2,019.82 "
01/10/2019,NULL,Teachers Pensions,NULL,Pensions," 5,479.55 "
01/10/2019,NULL,Teachers Pensions,NULL,Pensions," 6,443.27 "
01/10/2019,NULL,Teachers Pensions,NULL,Pensions," 50,297.38 "
01/10/2019,NULL,Teachers Pensions,NULL,Pensions," 55,318.76 "
01/10/2019,NULL,Teachers Pensions,NULL,Pensions," 90,904.93 "
01/10/2019,NULL,Teachers Pensions,NULL,Pensions," 4,932.74 "
01/10/2019,NULL,Teachers Pensions,NULL,Pensions," 5,172.74 "
01/10/2019,NULL,Teachers Pensions,NULL,Pensions, 970.82 
01/10/2019,NULL,Teachers Pensions,NULL,Pensions," 5,466.68 "
01/10/2019,NULL,Teachers Pensions,NULL,Pensions," 3,223.52 "
01/10/2019,NULL,Teachers Pensions,NULL,Pensions," 8,509.48 "
01/10/2019,NULL,Teachers Pensions,NULL,Pensions," 35,456.99 "
01/10/2019,NULL,Teachers Pensions,NULL,Pensions," 4,170.92 "
01/10/2019,NULL,Teachers Pensions,NULL,Pensions," 3,694.37 "
01/10/2019,NULL,Teachers Pensions,NULL,Pensions," 1,822.22 "
01/10/2019,NULL,Teachers Pensions,NULL,Pensions," 13,700.36 "
01/10/2019,NULL,Teachers Pensions,NULL,Pensions," 4,364.28 "
01/10/2019,NULL,Teachers Pensions,NULL,Pensions," 3,089.63 "
01/10/2019,NULL,Teachers Pensions,NULL,Pensions," 4,570.55 "
01/10/2019,NULL,Teachers Pensions,NULL,Pensions," 25,147.56 "
01/10/2019,NULL,Teachers Pensions,NULL,Pensions," 2,539.17 "
01/10/2019,NULL,Teachers Pensions,NULL,Pensions," 4,449.98 "
01/10/2019,NULL,Teachers Pensions,NULL,Pensions," 5,599.14 "
01/10/2019,NULL,Teachers Pensions,NULL,Pensions," 25,370.71 "
01/10/2019,NULL,Teachers Pensions,NULL,Pensions," 5,067.13 "
01/10/2019,NULL,Teachers Pensions,NULL,Pensions," 47,036.78 "
01/10/2019,NULL,Teachers Pensions,NULL,Pensions," 21,906.16 "
01/10/2019,NULL,Teachers Pensions,NULL,Pensions," 63,645.61 "
01/10/2019,NULL,Teachers Pensions,NULL,Pensions," 56,393.63 "
01/10/2019,NULL,Teachers Pensions,NULL,Pensions," 57,387.21 "
01/10/2019,NULL,Teachers Pensions,NULL,Pensions," 18,198.75 "
01/10/2019,NULL,Teachers Pensions,NULL,Pensions," 6,234.98 "
01/10/2019,NULL,Teachers Pensions,NULL,Pensions," 10,152.14 "
01/10/2019,NULL,Teachers Pensions,NULL,Pensions," 8,203.59 "
01/10/2019,NULL,Teachers Pensions,NULL,Pensions," 46,680.07 "
01/10/2019,NULL,Teachers Pensions,NULL,Pensions," 8,445.03 "
01/10/2019,NULL,Teachers Pensions,NULL,Pensions," 56,614.26 "
01/10/2019,NULL,Teachers Pensions,NULL,Pensions," 13,863.57 "
01/10/2019,NULL,Teachers Pensions,NULL,Pensions," 6,396.62 "
01/10/2019,NULL,Teachers Pensions,NULL,Pensions," 8,503.28 "
01/10/2019,NULL,Teachers Pensions,NULL,Pensions," 47,279.83 "
01/10/2019,NULL,Teachers Pensions,NULL,Pensions," 15,676.81 "
01/10/2019,NULL,Teachers Pensions,NULL,Pensions," 10,036.78 "
01/10/2019,NULL,Teachers Pensions,NULL,Pensions," 28,275.77 "
01/10/2019,NULL,Teachers Pensions,NULL,Pensions," 12,367.22 "
01/10/2019,NULL,Teachers Pensions,NULL,Pensions," 6,469.08 "
01/10/2019,NULL,Teachers Pensions,NULL,Pensions," 12,326.34 "
01/10/2019,NULL,Teachers Pensions,NULL,Pensions," 24,017.14 "
01/10/2019,NULL,Teachers Pensions,NULL,Pensions," 57,749.49 "
01/10/2019,NULL,Teachers Pensions,NULL,Pensions," 28,271.53 "
01/10/2019,NULL,Teachers Pensions,NULL,Pensions," 22,358.94 "
01/10/2019,NULL,Teachers Pensions,NULL,Pensions," 49,579.30 "
01/10/2019,NULL,Teachers Pensions,NULL,Pensions," 9,276.87 "
01/10/2019,NULL,Teachers Pensions,NULL,Pensions," 15,308.69 "
01/10/2019,NULL,Teachers Pensions,NULL,Pensions," 8,480.09 "
01/10/2019,NULL,Teachers Pensions,NULL,Pensions," 10,452.98 "
01/10/2019,NULL,Teachers Pensions,NULL,Pensions," 2,325.60 "
01/10/2019,NULL,Teachers Pensions,NULL,Pensions," 4,858.96 "
01/10/2019,NULL,Teachers Pensions,NULL,Pensions," 9,813.46 "
01/10/2019,NULL,Teachers Pensions,NULL,Pensions," 1,262.17 "
01/10/2019,NULL,Teachers Pensions,NULL,Pensions," 100,250.15 "
01/10/2019,NULL,Teachers Pensions,NULL,Pensions," 4,549.23 "
01/10/2019,NULL,Teachers Pensions,NULL,Pensions," 10,262.00 "
01/10/2019,NULL,Teachers Pensions,NULL,Pensions," 7,401.24 "
01/10/2019,NULL,Teachers Pensions,NULL,Pensions," 21,684.78 "
01/10/2019,NULL,Teachers Pensions,NULL,Pensions," 17,510.60 "
01/10/2019,NULL,Teachers Pensions,NULL,Pensions," 62,294.03 "
01/10/2019,NULL,Teachers Pensions,NULL,Pensions," 5,521.94 "
01/10/2019,NULL,Teachers Pensions,NULL,Pensions," 67,719.46 "
01/10/2019,NULL,Teachers Pensions,NULL,Pensions," 11,805.84 "
01/10/2019,NULL,Teachers Pensions,NULL,Pensions," 10,315.27 "
01/10/2019,NULL,Teachers Pensions,NULL,Pensions," 10,002.24 "
01/10/2019,NULL,Teachers Pensions,NULL,Pensions," 23,774.78 "
01/10/2019,NULL,Teachers Pensions,NULL,Pensions," 13,313.23 "
01/10/2019,NULL,Teachers Pensions,NULL,Pensions," 16,943.20 "
01/10/2019,NULL,Teachers Pensions,NULL,Pensions," 6,589.09 "
01/10/2019,NULL,Teachers Pensions,NULL,Pensions," 2,770.18 "
01/10/2019,NULL,Teachers Pensions,NULL,Pensions," 12,467.32 "
01/10/2019,NULL,Teachers Pensions,NULL,Pensions," 13,741.87 "
01/10/2019,NULL,Teachers Pensions,NULL,Pensions," 74,674.81 "
01/10/2019,NULL,Teachers Pensions,NULL,Pensions," 89,663.74 "
01/10/2019,NULL,Teachers Pensions,NULL,Pensions," 10,989.20 "
01/10/2019,NULL,Teachers Pensions,NULL,Pensions," 8,187.90 "
01/10/2019,NULL,Teachers Pensions,NULL,Pensions," 8,567.05 "
01/10/2019,NULL,Teachers Pensions,NULL,Pensions," 15,844.84 "
01/10/2019,NULL,Teachers Pensions,NULL,Pensions," 9,236.92 "
01/10/2019,NULL,Teachers Pensions,NULL,Pensions," 6,455.22 "
01/10/2019,NULL,Teachers Pensions,NULL,Pensions," 66,599.30 "
01/10/2019,NULL,Teachers Pensions,NULL,Pensions," 24,031.69 "
01/10/2019,NULL,Teachers Pensions,NULL,Pensions," 63,903.44 "
01/10/2019,NULL,Teachers Pensions,NULL,Pensions," 15,831.62 "
01/10/2019,NULL,Teachers Pensions,NULL,Pensions, 645.33 
01/10/2019,NULL,Teachers Pensions,NULL,Pensions, 313.08 
01/10/2019,NULL,Teachers Pensions,NULL,Pensions, 847.10 
01/10/2019,NULL,Teachers Pensions,NULL,Pensions, 617.51 
01/10/2019,NULL,Teachers Pensions,NULL,Pensions," 5,570.07 "
01/10/2019,NULL,Teachers Pensions,NULL,Pensions," 4,691.58 "
01/10/2019,NULL,Teachers Pensions,NULL,Pensions," 5,314.10 "
01/10/2019,NULL,Teachers Pensions,NULL,Pensions," 4,981.83 "
01/10/2019,NULL,Teachers Pensions,NULL,Pensions," 4,990.00 "
01/10/2019,NULL,Teachers Pensions,NULL,Pensions," 26,530.25 "
01/10/2019,NULL,Teachers Pensions,NULL,Pensions," 5,282.36 "
01/10/2019,NULL,Teachers Pensions,NULL,Pensions," 47,280.70 "
01/10/2019,NULL,Teachers Pensions,NULL,Pensions," 764,692.92 "
01/10/2019,NULL,Teachers Pensions,NULL,Pensions," 1,579.27 "
01/10/2019,NULL,Teachers Pensions,NULL,Pensions," 14,917.72 "
01/10/2019,NULL,Teachers Pensions,NULL,Pensions," 19,874.86 "
01/10/2019,NULL,Teachers Pensions,NULL,Pensions," 5,665.90 "
01/10/2019,NULL,Teachers Pensions,NULL,Pensions," 78,835.69 "
01/10/2019,NULL,Teachers Pensions,NULL,Pensions," 14,758.36 "
01/10/2019,NULL,Teachers Pensions,NULL,Pensions," 48,407.26 "
01/10/2019,NULL,Teachers Pensions,NULL,Pensions," 12,733.02 "
01/10/2019,NULL,Teachers Pensions,NULL,Pensions," 13,942.02 "
01/10/2019,NULL,Teachers Pensions,NULL,Pensions," 9,373.63 "
01/10/2019,NULL,Teachers Pensions,NULL,Pensions," 6,994.75 "
01/10/2019,NULL,Teachers Pensions,NULL,Pensions," 3,318.31 "
01/10/2019,NULL,Teachers Pensions,NULL,Pensions," 9,841.02 "
01/10/2019,NULL,Teachers Pensions,NULL,Pensions," 8,520.42 "
01/10/2019,NULL,Teachers Pensions,NULL,Pensions," 23,161.11 "
01/10/2019,NULL,Teachers Pensions,NULL,Pensions," 30,531.20 "
01/10/2019,NULL,Teachers Pensions,NULL,Pensions," 7,433.19 "
01/10/2019,NULL,Teachers Pensions,NULL,Pensions," 1,444.43 "
01/10/2019,NULL,Teachers Pensions,NULL,Pensions," 7,220.43 "
01/10/2019,NULL,Teachers Pensions,NULL,Pensions," 23,011.01 "
01/10/2019,NULL,Teachers Pensions,NULL,Pensions," 4,952.39 "
01/10/2019,NULL,Teachers Pensions,NULL,Pensions," 11,830.09 "
01/10/2019,NULL,Teachers Pensions,NULL,Pensions," 6,513.47 "
01/10/2019,NULL,Teachers Pensions,NULL,Pensions," 12,784.60 "
01/10/2019,NULL,Teachers Pensions,NULL,Pensions," 7,856.76 "
01/10/2019,NULL,Teachers Pensions,NULL,Pensions," 13,351.97 "
01/10/2019,NULL,Teachers Pensions,NULL,Pensions," 11,640.48 "
01/10/2019,NULL,Teachers Pensions,NULL,Pensions, 352.61 
01/10/2019,NULL,Teachers Pensions,NULL,Pensions, 344.99 
01/10/2019,NULL,Teachers Pensions,NULL,Pensions, 266.75 
01/10/2019,NULL,Teachers Pensions,NULL,Pensions, 522.70 
01/10/2019,NULL,Teachers Pensions,NULL,Pensions," 5,432.68 "
01/10/2019,NULL,Teachers Pensions,NULL,Pensions," 24,603.73 "
01/10/2019,NULL,Teachers Pensions,NULL,Pensions," 22,576.69 "
01/10/2019,NULL,Teachers Pensions,NULL,Pensions," 12,619.72 "
01/10/2019,NULL,Teachers Pensions,NULL,Pensions," 4,731.47 "
01/10/2019,NULL,Teachers Pensions,NULL,Pensions," 14,551.10 "
01/10/2019,NULL,Teachers Pensions,NULL,Pensions," 4,440.55 "
01/10/2019,NULL,Teachers Pensions,NULL,Pensions," 56,755.22 "
01/10/2019,NULL,Teachers Pensions,NULL,Pensions, 649.09 
01/10/2019,NULL,Teachers Pensions,NULL,Pensions, 356.60 
01/10/2019,NULL,Teachers Pensions,NULL,Pensions," 7,999.56 "
01/10/2019,NULL,Teachers Pensions,NULL,Pensions," 11,410.91 "
01/10/2019,NULL,Teachers Pensions,NULL,Pensions," 52,537.16 "
01/10/2019,NULL,Teachers Pensions,NULL,Pensions," 11,377.19 "
01/10/2019,NULL,Teachers Pensions,NULL,Pensions," 17,098.20 "
01/10/2019,NULL,Teachers Pensions,NULL,Pensions," 27,999.19 "
01/10/2019,NULL,Teachers Pensions,NULL,Pensions," 14,783.57 "
01/10/2019,NULL,Teachers Pensions,NULL,Pensions," 15,700.85 "
01/10/2019,NULL,Teachers Pensions,NULL,Pensions," 24,138.83 "
01/10/2019,NULL,Teachers Pensions,NULL,Pensions," 2,673.42 "
01/10/2019,NULL,Teachers Pensions,NULL,Pensions," 13,917.05 "
01/10/2019,NULL,Teachers Pensions,NULL,Pensions," 8,516.85 "
01/10/2019,NULL,Teachers Pensions,NULL,Pensions," 13,274.10 "
01/10/2019,NULL,Teachers Pensions,NULL,Pensions," 37,468.19 "
01/10/2019,NULL,Teachers Pensions,NULL,Pensions," 12,476.09 "
01/10/2019,NULL,Teachers Pensions,NULL,Pensions," 51,581.17 "
01/10/2019,NULL,Teachers Pensions,NULL,Pensions," 4,938.69 "
01/10/2019,NULL,Teachers Pensions,NULL,Pensions," 11,776.36 "
01/10/2019,NULL,Teachers Pensions,NULL,Pensions," 33,514.16 "
01/10/2019,NULL,Teachers Pensions,NULL,Pensions," 8,046.32 "
01/10/2019,NULL,Teachers Pensions,NULL,Pensions," 9,076.36 "
01/10/2019,NULL,Teachers Pensions,NULL,Pensions," 9,607.09 "
01/10/2019,NULL,Teachers Pensions,NULL,Pensions," 12,432.55 "
01/10/2019,NULL,Teachers Pensions,NULL,Pensions," 7,374.39 "
01/10/2019,NULL,Teachers Pensions,NULL,Pensions," 14,031.73 "
01/10/2019,NULL,Teachers Pensions,NULL,Pensions," 80,864.80 "
01/10/2019,NULL,Teachers Pensions,NULL,Pensions, 976.80 
01/10/2019,NULL,Teachers Pensions,NULL,Pensions," 7,491.49 "
01/10/2019,NULL,Teachers Pensions,NULL,Pensions," 85,267.16 "
01/10/2019,NULL,Teachers Pensions,NULL,Pensions," 13,792.74 "
01/10/2019,NULL,Teachers Pensions,NULL,Pensions," 9,632.94 "
01/10/2019,NULL,Teachers Pensions,NULL,Pensions," 10,215.52 "
01/10/2019,NULL,Teachers Pensions,NULL,Pensions," 14,815.78 "
01/10/2019,NULL,Teachers Pensions,NULL,Pensions," 14,689.25 "
01/10/2019,NULL,Teachers Pensions,NULL,Pensions, 535.87 
01/10/2019,NULL,Teachers Pensions,NULL,Pensions, 289.80 
01/10/2019,NULL,Teachers Pensions,NULL,Pensions," 3,602.11 "
01/10/2019,NULL,Teachers Pensions,NULL,Pensions," 24,968.40 "
01/10/2019,NULL,Teachers Pensions,NULL,Pensions," 4,821.79 "
01/10/2019,NULL,Teachers Pensions,NULL,Pensions," 3,606.70 "
01/10/2019,NULL,Teachers Pensions,NULL,Pensions," 2,784.55 "
01/10/2019,NULL,Teachers Pensions,NULL,Pensions," 32,352.93 "
01/10/2019,NULL,Teachers Pensions,NULL,Pensions," 32,479.14 "
01/10/2019,NULL,Teachers Pensions,NULL,Pensions," 14,023.29 "
01/10/2019,NULL,Teachers Pensions,NULL,Pensions," 13,170.62 "
01/10/2019,NULL,Teachers Pensions,NULL,Pensions," 67,498.63 "
01/10/2019,NULL,Teachers Pensions,NULL,Pensions," 56,887.38 "
01/10/2019,NULL,Teachers Pensions,NULL,Pensions," 14,378.55 "
01/10/2019,NULL,Teachers Pensions,NULL,Pensions," 1,991,078.20 "
01/10/2019,NULL,Teachers Pensions,NULL,Pensions," 60,870.25 "
01/10/2019,NULL,Teachers Pensions,NULL,Pensions," 6,748.45 "
01/10/2019,NULL,Teachers Pensions,NULL,Pensions," 19,866.77 "
01/10/2019,NULL,Teachers Pensions,NULL,Pensions," 22,311.44 "
01/10/2019,NULL,Teachers Pensions,NULL,Pensions," 19,712.70 "
01/10/2019,NULL,Teachers Pensions,NULL,Pensions," 25,871.82 "
01/10/2019,NULL,Teachers Pensions,NULL,Pensions," 3,725.69 "
01/10/2019,NULL,Teachers Pensions,NULL,Pensions," 5,731.14 "
01/10/2019,NULL,Teachers Pensions,NULL,Pensions," 3,074.76 "
01/10/2019,NULL,Teachers Pensions,NULL,Pensions," 3,393.10 "
01/10/2019,NULL,Teachers Pensions,NULL,Pensions," 4,055.36 "
01/10/2019,NULL,Teachers Pensions,NULL,Pensions," 2,089.70 "
01/10/2019,NULL,Teachers Pensions,NULL,Pensions," 3,451.17 "
01/10/2019,NULL,Teachers Pensions,NULL,Pensions," 12,752.27 "
01/10/2019,NULL,Teachers Pensions,NULL,Pensions," 1,777.23 "
01/10/2019,NULL,Teachers Pensions,NULL,Pensions," 2,341.23 "
01/10/2019,NULL,Teachers Pensions,NULL,Pensions," 6,265.17 "
01/10/2019,NULL,Teachers Pensions,NULL,Pensions," 11,329.57 "
01/10/2019,NULL,Teachers Pensions,NULL,Pensions," 4,900.89 "
01/10/2019,NULL,Teachers Pensions,NULL,Pensions," 5,203.63 "
01/10/2019,NULL,Teachers Pensions,NULL,Pensions," 24,082.25 "
01/10/2019,NULL,Teachers Pensions,NULL,Pensions," 5,259.02 "
01/10/2019,NULL,Teachers Pensions,NULL,Pensions," 6,579.41 "
01/10/2019,NULL,Teachers Pensions,NULL,Pensions," 4,402.53 "
01/10/2019,NULL,Teachers Pensions,NULL,Pensions," 2,667.80 "
01/10/2019,NULL,Teachers Pensions,NULL,Pensions," 5,212.51 "
01/10/2019,NULL,Teachers Pensions,NULL,Pensions," 2,128.43 "
01/10/2019,NULL,Teachers Pensions,NULL,Pensions," 5,663.85 "
01/10/2019,NULL,Teachers Pensions,NULL,Pensions," 3,134.77 "
01/10/2019,NULL,Teachers Pensions,NULL,Pensions," 4,357.62 "
01/10/2019,NULL,Teachers Pensions,NULL,Pensions," 3,841.92 "
01/10/2019,NULL,Teachers Pensions,NULL,Pensions," 6,522.91 "
01/10/2019,NULL,Teachers Pensions,NULL,Pensions," 11,750.11 "
01/10/2019,NULL,Teachers Pensions,NULL,Pensions," 5,755.38 "
01/10/2019,NULL,Teachers Pensions,NULL,Pensions," 6,031.65 "
01/10/2019,NULL,Teachers Pensions,NULL,Pensions," 5,053.04 "
01/10/2019,NULL,Teachers Pensions,NULL,Pensions," 4,716.31 "
01/10/2019,NULL,Teachers Pensions,NULL,Pensions," 2,709.82 "
01/10/2019,NULL,Teachers Pensions,NULL,Pensions," 3,376.42 "
01/10/2019,NULL,Teachers Pensions,NULL,Pensions," 3,262.02 "
01/10/2019,NULL,Teachers Pensions,NULL,Pensions," 29,783.98 "
01/10/2019,NULL,Teachers Pensions,NULL,Pensions," 2,779.51 "
01/10/2019,NULL,Teachers Pensions,NULL,Pensions," 1,902.82 "
01/10/2019,NULL,Teachers Pensions,NULL,Pensions," 10,667.21 "
01/10/2019,NULL,Teachers Pensions,NULL,Pensions," 3,213.69 "
01/10/2019,NULL,Teachers Pensions,NULL,Pensions," 3,175.29 "
01/10/2019,NULL,Teachers Pensions,NULL,Pensions," 2,454.03 "
01/10/2019,NULL,Teachers Pensions,NULL,Pensions," 4,044.88 "
01/10/2019,NULL,Teachers Pensions,NULL,Pensions," 33,368.67 "
01/10/2019,NULL,Teachers Pensions,NULL,Pensions," 3,940.02 "
01/10/2019,NULL,Teachers Pensions,NULL,Pensions," 5,488.01 "
01/10/2019,NULL,Teachers Pensions,NULL,Pensions," 45,697.76 "
01/10/2019,NULL,Teachers Pensions,NULL,Pensions," 79,081.15 "
01/10/2019,NULL,Teachers Pensions,NULL,Pensions," 85,456.13 "
01/10/2019,NULL,Teachers Pensions,NULL,Pensions," 54,813.28 "
01/10/2019,NULL,Teachers Pensions,NULL,Pensions," 15,563.05 "
01/10/2019,NULL,Teachers Pensions,NULL,Pensions," 6,866.35 "
01/10/2019,NULL,Teachers Pensions,NULL,Pensions," 14,945.19 "
01/10/2019,NULL,Teachers Pensions,NULL,Pensions," 23,767.36 "
01/10/2019,NULL,Teachers Pensions,NULL,Pensions," 32,293.26 "
01/10/2019,NULL,Teachers Pensions,NULL,Pensions," 19,015.39 "
01/10/2019,NULL,Teachers Pensions,NULL,Pensions," 71,036.94 "
01/10/2019,NULL,Teachers Pensions,NULL,Pensions," 51,903.17 "
01/10/2019,NULL,Teachers Pensions,NULL,Pensions," 71,656.72 "
01/10/2019,NULL,Teachers Pensions,NULL,Pensions," 6,326.24 "
01/10/2019,NULL,Teachers Pensions,NULL,Pensions," 6,749.89 "
01/10/2019,NULL,Teachers Pensions,NULL,Pensions," 15,590.92 "
01/10/2019,NULL,Teachers Pensions,NULL,Pensions," 10,840.34 "
01/10/2019,NULL,Teachers Pensions,NULL,Pensions," 6,876.18 "
01/10/2019,NULL,Teachers Pensions,NULL,Pensions," 13,725.49 "
01/10/2019,NULL,Teachers Pensions,NULL,Pensions," 16,957.93 "
01/10/2019,NULL,Teachers Pensions,NULL,Pensions," 11,550.78 "
01/10/2019,NULL,Teachers Pensions,NULL,Pensions," 7,399.02 "
01/10/2019,NULL,Teachers Pensions,NULL,Pensions," 22,977.19 "
01/10/2019,NULL,Teachers Pensions,NULL,Pensions," 1,134.23 "
01/10/2019,NULL,Teachers Pensions,NULL,Pensions," 62,554.58 "
01/10/2019,NULL,Teachers Pensions,NULL,Pensions," 73,200.19 "
01/10/2019,NULL,Teachers Pensions,NULL,Pensions," 9,142.93 "
01/10/2019,NULL,Teachers Pensions,NULL,Pensions," 15,670.85 "
01/10/2019,NULL,Teachers Pensions,NULL,Pensions," 12,982.91 "
01/10/2019,NULL,Teachers Pensions,NULL,Pensions," 12,756.86 "
01/10/2019,NULL,Teachers Pensions,NULL,Pensions," 9,064.33 "
01/10/2019,NULL,Teachers Pensions,NULL,Pensions," 9,031.69 "
01/10/2019,NULL,Teachers Pensions,NULL,Pensions," 17,119.75 "
01/10/2019,NULL,Teachers Pensions,NULL,Pensions," 7,245.59 "
01/10/2019,NULL,Teachers Pensions,NULL,Pensions," 9,508.19 "
01/10/2019,NULL,Teachers Pensions,NULL,Pensions," 8,579.71 "
01/10/2019,NULL,Teachers Pensions,NULL,Pensions," 7,708.44 "
01/10/2019,NULL,Teachers Pensions,NULL,Pensions," 6,417.89 "
01/10/2019,NULL,Teachers Pensions,NULL,Pensions," 11,456.89 "
01/10/2019,NULL,Teachers Pensions,NULL,Pensions," 15,056.18 "
01/10/2019,NULL,Teachers Pensions,NULL,Pensions," 5,542.52 "
01/10/2019,NULL,Teachers Pensions,NULL,Pensions," 14,687.73 "
01/10/2019,NULL,Teachers Pensions,NULL,Pensions," 17,016.80 "
01/10/2019,NULL,Teachers Pensions,NULL,Pensions, 286.60 
01/10/2019,NULL,Teachers Pensions,NULL,Pensions, 504.00 
01/10/2019,NULL,Teachers Pensions,NULL,Pensions, 561.00 
01/10/2019,NULL,Teachers Pensions,NULL,Pensions," 13,094.54 "
01/10/2019,NULL,Teachers Pensions,NULL,Pensions," 1,696.67 "
01/10/2019,NULL,Teachers Pensions,NULL,Pensions," 23,752.69 "
01/10/2019,NULL,Teachers Pensions,NULL,Pensions," 7,599.69 "
01/10/2019,NULL,Teachers Pensions,NULL,Pensions," 22,257.07 "
01/10/2019,NULL,Teachers Pensions,NULL,Pensions," 62,775.54 "
01/10/2019,NULL,Teachers Pensions,NULL,Pensions," 13,258.95 "
01/10/2019,NULL,Teachers Pensions,NULL,Pensions," 60,566.87 "
01/10/2019,NULL,Teachers Pensions,NULL,Pensions," 130,206.81 "
01/10/2019,NULL,Teachers Pensions,NULL,Pensions," 19,930.92 "
01/10/2019,BUS SUPP & CUST SERV,Thamesway Contractors Ltd,Contractor,Highway - Construct," 1,554.00 "
01/10/2019,BUS SUPP & CUST SERV,Thamesway Contractors Ltd,Contractor,Highway - Construct," 2,070.00 "
01/10/2019,ACT,The Aim Project,Training Expenses - External General,Staff Training," 2,700.00 "
01/10/2019,STAFF OFFICE,The Improvement & Development Agenc,Subscriptions to an Organisation,Customised & Bespoke," 4,962.48 "
01/10/2019,BUS OPS TRAINING,The Knowledge Academy Ltd,Training Expenses - External General,Staff Training," 1,434.00 "
01/10/2019,Asset & Place Strate,The Oyster Partnership,Agency Staff Providing Project Support,Professional Project," 3,744.00 "
01/10/2019,NE ALTERNATIVE SEN,The Sensory Smart Child Ltd,Agency Placement Expenditure,Subscriptions, 350.00 
01/10/2019,NE ALTERNATIVE SEN,The Sensory Smart Child Ltd,Agency Placement Expenditure,Subscriptions, 350.00 
01/10/2019,NE ALTERNATIVE SEN,The Sensory Smart Child Ltd,Agency Placement Expenditure,Subscriptions, 350.00 
01/10/2019,NE ALTERNATIVE SEN,The Sensory Smart Child Ltd,Agency Placement Expenditure,Subscriptions, 350.00 
01/10/2019,NE ALTERNATIVE SEN,The Sensory Smart Child Ltd,Agency Placement Expenditure,Subscriptions, 350.00 
01/10/2019,ADOPTION TEAM,The Speech Centre,Training Expenses - External General,Venue Hire, 900.00 
01/10/2019,HR-COUNTYWIDE TRNG,Think Change Consulting Ltd,Training Expenses - External General,Staff Training, 999.30 
01/10/2019,NULL,TMP Worldwide,NULL,Advert Promo & Rec, 740.53 
01/10/2019,TRAFFIC REG ORDERS,TMP Worldwide,Advertising (Statutory Notices),Advert Promo & Rec, 452.71 
01/10/2019,NW IPSB - PLAYGROUPS,Totterdown Pre school Ltd,Agency Placement Nursery Exp,Nursery, 768.60 
01/10/2019,AGENCY NON CWD SC,Transform Housing & Support,Independent Living Placements,Grants-Member Allocs, 562.24 
01/10/2019,AGENCY NON CWD SC,Transform Housing & Support,Independent Living Placements,Grants-Member Allocs, 657.16 
01/10/2019,ASSET STRAT & PL MGR,Tristone Nash Ltd,Agency Staff Non-OM (Irregular Cover),Staff Training," 2,328.00 "
01/10/2019,ASSET STRAT & PL MGR,Tristone Nash Ltd,Agency Staff Non-OM (Irregular Cover),Staff Training," 2,448.00 "
01/10/2019,ASSET STRAT & PL MGR,Tristone Nash Ltd,Agency Staff Non-OM (Irregular Cover),Staff Training," 2,400.00 "
01/10/2019,TRANSPORT,Tructyre Fleet Management Ltd,Vehicle Repairs and Maintenance,Fire Service Vehicle, 410.80 
01/10/2019,TRANSPORT,Tructyre Fleet Management Ltd,Vehicle Repairs and Maintenance,Fire Service Vehicle, 821.59 
01/10/2019,ASSET STRAT & PL MGR,Vail Williams LLP - SCC Client Depo,Fees,M-D (Property), 600.00 
01/10/2019,SE S17 CARE,Vandu Language Services Ltd,Fees,Interpret & Transl S, 924.67 
01/10/2019,Schools Projects Rev,Velocity Transport Planning Ltd,Consultants,M-D (Property)," 4,860.00 "
01/10/2019,NE AGENCY PLACE-ED,Wandle Valley School,Agency Placement Expenditure,SEN Specialist Supp," 5,433.33 "
01/10/2019,DRCT CSTS CONC FARES,Wasp Community Bus,Contractor,After School Clubs, 313.58 
01/10/2019,NULL,Waverley Borough Council,NULL,Grants-Member Allocs, 786.00 
01/10/2019,PVI FAMILY CENTRES,Welcare in East Surrey,Other Community Care - Vol,Grants - Community," 69,794.00 "
01/10/2019,Chalkmead Res,Wightman & Parrish Ltd,Cleaning Materials,Cleaning Equipment, 505.49 
01/10/2019,ACL CENTRAL EXP,Wightman & Parrish Ltd,Cleaning Materials,Cleaning Equipment, 264.20 
01/10/2019,Barnfield Res,Wightman & Parrish Ltd,Cleaning Materials,Cleaning Equipment, 375.84 
01/10/2019,Keswick Res,Wightman & Parrish Ltd,Cleaning Materials,Cleaning Equipment, 495.10 
01/10/2019,NULL,Willmott Dixon Construction Ltd,NULL,Edu Establishments," 15,984.00 "
01/10/2019,NULL,Woking Borough Council,NULL,Local Government, 390.53 
01/10/2019,NULL,Woking Borough Council,NULL,Local Government, 565.00 
01/10/2019,NULL,Woking Borough Council,NULL,Local Government, 434.00 
01/10/2019,Woking C&G OP,Woking Borough Council,Day Care,Local Government," 1,962.75 "
01/10/2019,S.D. WEST AREA MGMT,Woking Fire Station,Meals,Fire Service, 287.93 
01/10/2019,PVI FAMILY CENTRES,YMCA East Surrey,Other Community Care - Vol,Grants-Member Allocs," 30,172.00 "
02/10/2019,NE UASC NRPF 18+ CRE,AA Global Language Services Ltd,Fees,Staff Expenses," 9,395.70 "
02/10/2019,SE CARE - LAC,Activate Learning,Agency Placement Expenditure,Further Education16+," 4,860.00 "
02/10/2019,RNYMD - MEMBS ALLOCS,Addlestone Community Association,Grants-Third Sector and Voluntary Orgs/Charities,Grants-Member Allocs," 1,000.00 "
02/10/2019,EPSOM HOSP,Alpenbest Ltd,Home Base Care,Dom Care - Adults, 575.10 
02/10/2019,RESOURCES FUND,Askews & Holts Library Services Ltd,Library Resources,Publications: Books," 48,191.05 "
02/10/2019,LAC REVWS & CP CONF,Attenti Ltd,Consultants,Accountancy Project," 1,684.80 "
02/10/2019,NE CARE - LAC,Bain & Dahle Partnership Social Car,Fees,Supervised Contact, 855.00 
02/10/2019,PVI FAMILY CENTRES,Barnardo Services Ltd,Other Community Care - Vol,School Support Serv," 132,478.00 "
02/10/2019,SE IPSB - OUT COUNTY,Biggin Hill Primary School,Local Authorities,SEN OLA," 3,167.00 "
02/10/2019,SE IPSB - OUT COUNTY,Biggin Hill Primary School,Local Authorities,SEN OLA, 298.01 
02/10/2019,NW IPSB - PLAYGROUPS,Bizz Kidz Ltd,Agency Placement Nursery Exp,Nursery," 2,498.00 "
02/10/2019,AGENCY NON CWD SC,Brighter Futures Foster Care Ltd,Foster Care Placements,Sup Living Children," 3,762.90 "
02/10/2019,NULL,Building & Property Maintenance,NULL,M-D (Property), 768.00 
02/10/2019,MOLE VALLEY,Castle Water Ltd,Water Charges,Utilities - Water, 633.87 
02/10/2019,PARK HALL,Castle Water Ltd,Water Charges,Utilities - Water, 963.33 
02/10/2019,HORSELL VILLAGE,Celsius Commercial Refrigeration,Equipment,Cat Equip Supply&Fit," 1,488.00 "
02/10/2019,Chalkmead Res,Chalkmead Residential Home,Transport Social Care-Taxi,Non-Staff Expenses, 280.03 
02/10/2019,HQ PYMNT OF INS CLMS,Claims Management - OTV BACS,Ins Claims Other Insured Paid,NULL, 550.00 
02/10/2019,NULL,Colours Decorating Ltd,NULL,"Comm, Res & Inv Prop"," 74,512.08 "
02/10/2019,LD COST OF CARE LD,Communities Homes of Intensive Care,Residential,Residential - MH, 464.86 
02/10/2019,LD COST OF CARE LD,Communities Homes of Intensive Care,Residential,Residential - MH," 1,275.53 "
02/10/2019,LD COST OF CARE LD,Communities Homes of Intensive Care,Residential,Residential - MH," 1,375.10 "
02/10/2019,LD COST OF CARE LD,Communities Homes of Intensive Care,Residential,Residential - MH," 4,663.10 "
02/10/2019,LD COST OF CARE LD,Communities Homes of Intensive Care,Supported Living,Residential - MH," 1,460.10 "
02/10/2019,LD COST OF CARE LD,Communities Homes of Intensive Care,Residential,Residential - MH," 1,471.12 "
02/10/2019,LD COST OF CARE LD,Communities Homes of Intensive Care,Residential,Residential - MH," 8,313.39 "
02/10/2019,LD COST OF CARE LD,Communities Homes of Intensive Care,Residential,Residential - MH," 1,792.94 "
02/10/2019,LD COST OF CARE LD,Communities Homes of Intensive Care,Residential,Residential - MH," 4,293.56 "
02/10/2019,LD COST OF CARE LD,Compton House,Residential,Residential - MH," 2,218.17 "
02/10/2019,LD COST OF CARE LD,Compton House,Residential,Residential - MH," 5,266.22 "
02/10/2019,LD COST OF CARE LD,Compton House,Residential,Residential - MH, 976.07 
02/10/2019,PSSS PD,Cordwalles Junior School,Other Internal Transfers,Grants-Member Allocs," 10,193.25 "
02/10/2019,TRANSPORT,Cranleigh Radio Ltd t/a Safe & Soun,Computer Hardware,Customised & Bespoke, 475.80 
02/10/2019,NULL,Crown Gas & Power,NULL,Utilities - Gas," 19,919.88 "
02/10/2019,ESTATES DELIVERY MGR,DAC Beachcroft LLP,Fees,Insuff In-House," 3,219.60 "
02/10/2019,NULL,Davitt Jones Bould - (Solicitor),NULL,General Support, 765.40 
02/10/2019,HEAD OF COMM & PREV,Delphinus Caeruleus LLP,Consultants,Staff Training," 5,426.11 "
02/10/2019,HQ PYMNT OF INS CLMS,Department for Work & Pensions,Ins Claims Other Insured Paid,Central Government, 688.00 
02/10/2019,NULL,Detection Drains Services Ltd,NULL,Property Management," 10,200.00 "
02/10/2019,LD COST OF CARE LD,Downham Lodge,Residential,Residential - OP," 1,406.31 "
02/10/2019,DOMESTIC ABUSE,East Surrey Domestic Abuse Services,Grants-Third Sector and Voluntary Orgs/Charities,Staff Training," 191,000.00 "
02/10/2019,WELLS HOUSE,Epsom & Ewell Borough Council,Trade Refuse,Grants-Member Allocs, 833.50 
02/10/2019,LD COST OF CARE LD,Fountain View,Residential,Residential - LD," 3,164.00 "
02/10/2019,LD COST OF CARE LD,Fountain View,Residential,Residential - LD," 2,513.61 "
02/10/2019,NULL,G E Building Services,NULL,General Build Maint," 30,077.76 "
02/10/2019,Barnfield,Gazprom Energy,Gas,Utilities - Gas, 525.33 
02/10/2019,HOPE SERVICE,Great Clean & Maintenance Ltd,Cleaning and Domestic Supplies,Building Cleaning, 697.00 
02/10/2019,HOPE SERVICE,Great Clean & Maintenance Ltd,Cleaning and Domestic Supplies,Building Cleaning, 697.00 
02/10/2019,YTH OFF SERVICE CARE,Guildford Diocesan Board Of Finance,Third Party Payments-Other Agencies,Rent," 30,452.50 "
02/10/2019,ORB FIN ASST DIR,Hays Purchasing & Supply,Agency Staff Providing Project Support,Temp Ops OM Cover," 3,928.34 "
02/10/2019,LD COST OF CARE LD,Heywood Sumner House,Residential,Residential - LD," 1,900.95 "
02/10/2019,SE CARE - CPCRT LAC,HM Courts & Tribunals Service,Legal Expenses,Court Fees," 2,055.00 "
02/10/2019,S CHOICES TRANSPORT,Home 2 School Ltd,Creditors Control Account,Multi-purpose Veh," 5,342.40 "
02/10/2019,SIT,Home Office,Computer Services,Central Government," 52,715.77 "
02/10/2019,Commissioning,Impower Consulting Ltd,Consultants,Staff Training," 17,450.72 "
02/10/2019,EAST CWD NONLAC CARE,Interserve Healthcare Ltd,Home Care - Priv,Grants - Community, 309.00 
02/10/2019,BUSINESS IMPROVEMNTS,J & J Franks Ltd,Third Party Payments-Other Agencies,Fire Service Vehicle, 678.00 
02/10/2019,GUILDFORD FIRE STN,JB Industrial Doors Ltd,Term Contract Works,General Build Maint," 1,701.60 "
02/10/2019,BUS SUPP & CUST SERV,Jennings Surfacing Ltd,Contractor,Highway Maintenance," 5,148.00 "
02/10/2019,CARE LEAVER PACKAGES,Key2 Futures Ltd,Independent Living Placements,Res Care," 3,030.31 "
02/10/2019,COUNTY HALL,Kier Facilities Services Ltd,Corporate Responsive Maintenance,General Build Maint," 61,388.18 "
02/10/2019,SW AGENCY PLACE-ED,Knowl Hill School,Agency Placement Expenditure,School Support Serv," 11,325.00 "
02/10/2019,NULL,Land Use Consultants Ltd,NULL,Org & Bus Consult," 11,542.50 "
02/10/2019,SE ALT PROV TRANS,Leatherhead Trinity School & Childr,Other Community Care - Priv,Health Visiting," 1,417.50 "
02/10/2019,DRCT CSTS CONC FARES,London Buses Services Ltd,Contractor,Local Bus," 67,742.73 "
02/10/2019,Meadowside Res,Meadowside Residential Home,Refreshment Costs,Non-Staff Expenses, 896.57 
02/10/2019,LD COST OF CARE LD,Mencap,Residential,Residential - MH, 976.53 
02/10/2019,LD COST OF CARE LD,Mencap,Residential,Residential - MH, 354.67 
02/10/2019,LD COST OF CARE LD,Mencap,Residential,Residential - MH," 3,816.94 "
02/10/2019,LD COST OF CARE LD,Mencap,Residential,Residential - MH, 837.93 
02/10/2019,LD COST OF CARE LD,Mencap,Residential,Residential - MH, 937.81 
02/10/2019,LD COST OF CARE LD,Mencap,Residential,Residential - MH, 356.11 
02/10/2019,LD COST OF CARE LD,Mencap,Residential,Residential - MH, 356.11 
02/10/2019,LD COST OF CARE LD,Mencap,Supported Living,Residential - MH, 356.11 
02/10/2019,LD COST OF CARE LD,Mencap,Residential,Residential - MH, 356.11 
02/10/2019,LD COST OF CARE LD,Mencap,Supported Living,Residential - MH," 2,651.71 "
02/10/2019,LD COST OF CARE LD,Mencap,Supported Living,Residential - MH," 2,137.91 "
02/10/2019,LD COST OF CARE LD,Mencap,Residential,Residential - MH, 976.54 
02/10/2019,LD COST OF CARE LD,Mencap,Residential,Residential - MH," 1,256.62 "
02/10/2019,LD COST OF CARE LD,Mencap,Residential,Residential - MH," 2,960.58 "
02/10/2019,LD COST OF CARE LD,Mencap,Residential,Residential - MH," 2,678.58 "
02/10/2019,LD COST OF CARE LD,Mencap,Residential,Residential - MH, 497.40 
02/10/2019,LD COST OF CARE LD,Mencap,Residential,Residential - MH, 459.40 
02/10/2019,LD COST OF CARE LD,Mencap,Residential,Residential - MH, 356.11 
02/10/2019,LD COST OF CARE LD,Mencap,Residential,Residential - MH," 4,158.51 "
02/10/2019,LD COST OF CARE LD,Mencap,Residential,Residential - MH, 915.40 
02/10/2019,LD COST OF CARE LD,Mencap,Residential,Residential - MH," 1,025.20 "
02/10/2019,LD COST OF CARE LD,Mencap,Residential,Residential - MH, 356.11 
02/10/2019,LD COST OF CARE LD,Mencap,Residential,Residential - MH, 342.56 
02/10/2019,LD COST OF CARE LD,Mencap,Supported Living,Residential - MH," 5,365.91 "
02/10/2019,LD COST OF CARE LD,Mencap,Supported Living,Residential - MH," 3,510.81 "
02/10/2019,LD COST OF CARE LD,Mencap,Supported Living,Residential - MH," 3,089.93 "
02/10/2019,LD COST OF CARE LD,Mencap,Supported Living,Residential - MH," 5,365.91 "
02/10/2019,LD COST OF CARE LD,Mencap,Supported Living,Residential - MH," 5,365.91 "
02/10/2019,LD COST OF CARE LD,Mencap,Supported Living,Residential - MH," 27,402.79 "
02/10/2019,LD COST OF CARE LD,Mencap,Supported Living,Residential - MH," 2,280.77 "
02/10/2019,LD COST OF CARE LD,Mencap,Supported Living,Residential - MH," 5,282.23 "
02/10/2019,LD COST OF CARE LD,Mencap,Supported Living,Residential - MH," 3,999.14 "
02/10/2019,LD COST OF CARE LD,Mencap,Supported Living,Residential - MH," 1,710.58 "
02/10/2019,LD COST OF CARE LD,Mencap,Supported Living,Residential - MH," 1,217.83 "
02/10/2019,LD COST OF CARE LD,Mencap,Supported Living,Residential - MH, 487.13 
02/10/2019,LD COST OF CARE LD,Mencap,Supported Living,Residential - MH," 5,286.25 "
02/10/2019,LD COST OF CARE LD,Mencap,Supported Living,Residential - MH," 7,910.05 "
02/10/2019,LD COST OF CARE LD,Mencap,Supported Living,Residential - MH," 10,067.11 "
02/10/2019,LD COST OF CARE LD,Mencap,Supported Living,Residential - MH," 2,280.77 "
02/10/2019,LD COST OF CARE LD,Mencap,Supported Living,Residential - MH," 1,824.62 "
02/10/2019,LD COST OF CARE LD,Mencap,Supported Living,Residential - MH," 2,565.24 "
02/10/2019,LD COST OF CARE LD,Mencap,Supported Living,Residential - MH," 10,977.40 "
02/10/2019,LD COST OF CARE LD,Mencap,Supported Living,Residential - MH, 399.76 
02/10/2019,LD COST OF CARE LD,Mencap,Supported Living,Residential - MH," 1,254.42 "
02/10/2019,LD COST OF CARE LD,Mencap,Supported Living,Residential - MH," 2,166.73 "
02/10/2019,LD COST OF CARE LD,Mencap,Supported Living,Residential - MH," 4,554.98 "
02/10/2019,LD COST OF CARE LD,Mencap,Supported Living,Residential - MH," 6,897.79 "
02/10/2019,LD COST OF CARE LD,Mencap,Supported Living,Residential - MH," 4,683.81 "
02/10/2019,LD COST OF CARE LD,Mencap,Supported Living,Residential - MH," 8,092.79 "
02/10/2019,LD COST OF CARE LD,Mencap,Supported Living,Residential - MH," 2,337.16 "
02/10/2019,LD COST OF CARE LD,Mencap,Residential,Residential - MH, 489.20 
02/10/2019,LD COST OF CARE LD,Mencap,Residential,Residential - MH, 782.60 
02/10/2019,LD COST OF CARE LD,Mencap,Residential,Residential - MH, 916.12 
02/10/2019,LD COST OF CARE LD,Mencap,Residential,Residential - MH, 310.02 
02/10/2019,LD COST OF CARE LD,Mencap,Residential,Residential - MH, 543.12 
02/10/2019,LD COST OF CARE LD,Mencap,Residential,Residential - MH, 670.95 
02/10/2019,LD COST OF CARE LD,Mencap,Residential,Residential - MH," 1,153.71 "
02/10/2019,LD COST OF CARE LD,Mencap,Residential,Residential - MH, 552.44 
02/10/2019,LD COST OF CARE LD,Mencap,Residential,Residential - MH, 398.30 
02/10/2019,LD COST OF CARE LD,Mencap,Residential,Residential - MH, 552.44 
02/10/2019,LD COST OF CARE LD,Mencap,Supported Living,Residential - MH," 6,734.37 "
02/10/2019,LD COST OF CARE LD,Mencap,Supported Living,Residential - MH," 2,337.16 "
02/10/2019,LD COST OF CARE LD,Mencap,Supported Living,Residential - MH," 5,187.21 "
02/10/2019,LD COST OF CARE LD,Mencap,Supported Living,Residential - MH," 4,388.94 "
02/10/2019,LD COST OF CARE LD,Mencap,Supported Living,Residential - MH, 570.19 
02/10/2019,LD COST OF CARE LD,Mencap,Supported Living,Residential - MH," 2,280.77 "
02/10/2019,LD COST OF CARE LD,Mencap,Supported Living,Residential - MH," 2,358.21 "
02/10/2019,LD COST OF CARE LD,Mencap,Supported Living,Residential - MH," 4,850.60 "
02/10/2019,LD COST OF CARE LD,Mencap,Supported Living,Residential - MH," 1,225.60 "
02/10/2019,Educational Effectiv,Mercer Ltd,Training Expenses - External General,Org & Bus Consult, 600.00 
02/10/2019,ELMBRIDGE,Millane Contract Services Ltd,Corporate Responsive Maintenance,General Build Maint," 2,412.96 "
02/10/2019,RUNNYMEDE GYPSIES,Millane Contract Services Ltd,Corporate Responsive Maintenance,General Build Maint," 3,114.00 "
02/10/2019,TRANS CHALLENGE AWD,Minted Box Ltd,Consultants,Comm Off-The-Shelf," 6,000.00 "
02/10/2019,SE AGENCY PLACE-ED,Moor House School & College,Agency Placement Expenditure,School Support Serv," 11,139.67 "
02/10/2019,FOSTERING SERV CENT,NAPT Ltd,Subscriptions to an Organisation,Subscriptions," 4,000.00 "
02/10/2019,TRANSPT M/STRM-SEC,Naughton Bus & Coach Hire,Creditors Control Account,Education Buses & Co," 3,822.42 "
02/10/2019,TRANSPT M/STRM-SEC,Naughton Bus & Coach Hire,Creditors Control Account,Education Buses & Co," 3,380.00 "
02/10/2019,TRANSPT M/STRM-SEC,Naughton Bus & Coach Hire,Creditors Control Account,Education Buses & Co," 7,297.90 "
02/10/2019,WEST CWD NONLAC CARE,Newcross Healthcare Solutions Ltd,Home Care - Priv,Youth Offending Serv, 312.18 
02/10/2019,WEST CWD NONLAC CARE,Newcross Healthcare Solutions Ltd,Home Care - Priv,Youth Offending Serv, 705.90 
02/10/2019,LD COST OF CARE LD,Oakley Lodge,Residential,Residential - LD," 2,934.26 "
02/10/2019,LD COST OF CARE LD,Oakley Lodge,Residential,Residential - LD," 2,112.31 "
02/10/2019,LD COST OF CARE LD,Oakley Lodge,Residential,Residential - LD," 1,285.08 "
02/10/2019,LD COST OF CARE LD,Oakley Lodge,Residential,Residential - LD," 1,892.12 "
02/10/2019,LD COST OF CARE LD,Oakley Lodge,Residential,Residential - LD," 1,075.00 "
02/10/2019,LD COST OF CARE LD,Oakley Lodge,Residential,Residential - LD," 1,488.19 "
02/10/2019,LD COST OF CARE LD,Orchard End Ltd,Residential,Residential - MH," 1,347.16 "
02/10/2019,LD COST OF CARE LD,Orchard End Ltd,Residential,Residential - MH," 1,279.13 "
02/10/2019,LD COST OF CARE LD,Otterbourne House,Residential,Residential - MH," 2,402.02 "
02/10/2019,ASYLUM SEEKERS 18+,Pathways To Independence Housing UK,Independent Living Placements,Sup Living Children," 1,102.67 "
02/10/2019,ASYLUM SEEKERS 18+,Pathways To Independence Housing UK,Independent Living Placements,Sup Living Children," 1,139.43 "
02/10/2019,ASYLUM SEEKERS 18+,Pathways To Independence Housing UK,Independent Living Placements,Sup Living Children," 1,102.67 "
02/10/2019,ASYLUM SEEKERS 18+,Pathways To Independence Housing UK,Independent Living Placements,Sup Living Children, 977.01 
02/10/2019,Personal Budget (SW),Redacted Personal Data,Agency Placement Expenditure,Invoicing Plan Req.," 2,375.00 "
02/10/2019,SW NRPF FAM CARE,Redacted Personal Data,Independent Living Placements,Individual - NEC," 1,300.00 "
02/10/2019,DEM SERVICES TEAM,Redacted Personal Data,Miscellaneous Staff Travel,Staff Expenses, 270.95 
02/10/2019,HOMELESSNESS PROJECT,Redacted Personal Data,"SCC Required Car upto 8,000 miles",Individual - NEC, 457.20 
02/10/2019,NE ALTERNATIVE SEN,Redacted Personal Data,Agency Placement Expenditure,SEND Agncy Placement, 270.00 
02/10/2019,LD COST OF CARE LD,Redacted Personal Data,Residential,Residential - MH," 1,185.23 "
02/10/2019,DEM SERVICES TEAM,Redacted Personal Data,Miscellaneous Staff Travel,Staff Expenses, 413.69 
02/10/2019,DEM SERVICES TEAM,Redacted Personal Data,Miscellaneous Staff Travel,Staff Expenses, 288.20 
02/10/2019,DEM SERVICES TEAM,Redacted Personal Data,Miscellaneous Staff Travel,Staff Expenses, 307.30 
02/10/2019,DEM SERVICES TEAM,Redacted Personal Data,Miscellaneous Staff Travel,Staff Expenses, 561.00 
02/10/2019,DEM SERVICES TEAM,Redacted Personal Data,Miscellaneous Staff Travel,Staff Expenses, 283.50 
02/10/2019,DEM SERVICES TEAM,Redacted Personal Data,Miscellaneous Staff Travel,Staff Expenses, 306.00 
02/10/2019,DEM SERVICES TEAM,Redacted Personal Data,Miscellaneous Staff Travel,Staff Expenses, 498.30 
02/10/2019,DEM SERVICES TEAM,Redacted Personal Data,Miscellaneous Staff Travel,Staff Expenses, 298.54 
02/10/2019,DEM SERVICES TEAM,Redacted Personal Data,Miscellaneous Staff Travel,Staff Expenses, 263.75 
02/10/2019,DEM SERVICES TEAM,Redacted Personal Data,Miscellaneous Staff Travel,Staff Expenses, 287.38 
02/10/2019,DEM SERVICES TEAM,Redacted Personal Data,Miscellaneous Staff Travel,Staff Expenses, 274.81 
02/10/2019,DEM SERVICES TEAM,Redacted Personal Data,Miscellaneous Staff Travel,Staff Expenses, 345.95 
02/10/2019,DEM SERVICES TEAM,Redacted Personal Data,Miscellaneous Staff Travel,Staff Expenses, 303.15 
02/10/2019,DEM SERVICES TEAM,Redacted Personal Data,Miscellaneous Staff Travel,Staff Expenses, 325.80 
02/10/2019,DEM SERVICES TEAM,Redacted Personal Data,Miscellaneous Staff Travel,Staff Expenses, 373.50 
02/10/2019,DEM SERVICES TEAM,Redacted Personal Data,Miscellaneous Staff Travel,Staff Expenses, 301.79 
02/10/2019,DEM SERVICES TEAM,Redacted Personal Data,Miscellaneous Staff Travel,Staff Expenses, 482.10 
02/10/2019,DEM SERVICES TEAM,Redacted Personal Data,Miscellaneous Staff Travel,Staff Expenses, 314.84 
02/10/2019,DEM SERVICES TEAM,Redacted Personal Data,Miscellaneous Staff Travel,Staff Expenses, 319.20 
02/10/2019,DEM SERVICES TEAM,Redacted Personal Data,Miscellaneous Staff Travel,Staff Expenses, 341.15 
02/10/2019,DEM SERVICES TEAM,Redacted Personal Data,Miscellaneous Staff Travel,Staff Expenses, 258.45 
02/10/2019,CWD CONTRACTS/SLA'S,Redacted Personal Data,Direct Payments - Carers of Disabled Children,CYP Indiv Carers, 300.00 
02/10/2019,NRPF 18+ CARE,Redacted Personal Data,Children Act Sec 24 Payments,Invoicing Plan Req., 289.50 
02/10/2019,NW CARE - LAC,Redacted Personal Data,Children Act Sec 24 Payments,Invoicing Plan Req., 289.50 
02/10/2019,CWD CONTRACTS/SLA'S,Redacted Personal Data,Direct Payments - Carers of Disabled Children,Invoicing Plan Req., 300.00 
02/10/2019,CWD CONTRACTS/SLA'S,Redacted Personal Data,Direct Payments - Carers of Disabled Children,Invoicing Plan Req., 300.00 
02/10/2019,CWD CONTRACTS/SLA'S,Redacted Personal Data,Direct Payments - Carers of Disabled Children,Invoicing Plan Req., 300.00 
02/10/2019,CWD CONTRACTS/SLA'S,Redacted Personal Data,Direct Payments - Carers of Disabled Children,Invoicing Plan Req., 300.00 
02/10/2019,NE CARE - LAC,Redacted Personal Data,Children Act Sec 24 Payments,Invoicing Plan Req., 289.50 
02/10/2019,CWD CONTRACTS/SLA'S,Redacted Personal Data,Direct Payments - Carers of Disabled Children,Invoicing Plan Req., 273.00 
02/10/2019,CWD CONTRACTS/SLA'S,Redacted Personal Data,Direct Payments - Carers of Disabled Children,Invoicing Plan Req., 300.00 
02/10/2019,NE ALTERNATIVE SEN,Redacted Personal Data,Agency Placement Expenditure,SEND Agncy Placement," 2,250.00 "
02/10/2019,UNEARTHED,Redacted Personal Data,Publicity,Arts & Crafts," 1,100.00 "
02/10/2019,DEM SERVICES TEAM,Redacted Personal Data,Miscellaneous Staff Travel,Staff Expenses, 268.50 
02/10/2019,DEM SERVICES TEAM,Redacted Personal Data,Miscellaneous Staff Travel,Staff Expenses, 329.60 
02/10/2019,DEM SERVICES TEAM,Redacted Personal Data,Miscellaneous Staff Travel,Staff Expenses, 253.60 
02/10/2019,LD COST OF CARE LD,Redlands House,Residential,Residential - LD, 859.78 
02/10/2019,LD COST OF CARE LD,Redlands House,Residential,Residential - LD," 1,753.36 "
02/10/2019,LD COST OF CARE LD,Redlands House,Residential,Residential - LD," 1,922.07 "
02/10/2019,LD COST OF CARE LD,Redlands House,Residential,Residential - LD," 4,737.02 "
02/10/2019,DOMESTIC ABUSE,Reigate & Banstead Womens Aid,Grants-Third Sector and Voluntary Orgs/Charities,Grants-Member Allocs," 43,500.00 "
02/10/2019,WOKG - MEMBS ALLOCS,ReSkilled,Grants-Third Sector and Voluntary Orgs/Charities,Grants-Member Allocs," 1,500.00 "
02/10/2019,NULL,Rodney House HFE,NULL,Residential - MH, 885.00 
02/10/2019,RODNEY HSE STAFF,Rodney House HFE,Postage and Courier Charges,Residential - MH, 408.87 
02/10/2019,DOMESTIC ABUSE,Salvation Army Housing Association,Grants-Third Sector and Voluntary Orgs/Charities,Temp Ops OM Cover," 47,500.00 "
02/10/2019,AGENCY NON CWD SC,Sanctuary Affordable Housing,Independent Living Placements,Residential - MH," 1,193.40 "
02/10/2019,LD COST OF CARE LD,Sandsground,Residential,Residential - MH," 1,445.93 "
02/10/2019,MILFORD SCHOOL,SCC Milford School,Recruitment And Retention,Schools," 1,975.47 "
02/10/2019,NW IPSB - PLAYGROUPS,SCC Thorpe Lea Primary School,Agency Placement Nursery Exp,Schools," 1,647.00 "
02/10/2019,COM BUSINESS SUPPORT,SE Area Children's Reigate,Other Community Care - Vol,NT - Internal Pymt," 1,922.45 "
02/10/2019,LD COST OF CARE LD,Seeability - Royal School For The B,Supported Living,Residential - MH, 406.76 
02/10/2019,LD COST OF CARE LD,Seeability - Royal School For The B,Supported Living,Residential - MH, 855.28 
02/10/2019,LD COST OF CARE LD,Seeability - Royal School For The B,Supported Living,Residential - MH, 304.44 
02/10/2019,LD COST OF CARE LD,Seeability - Royal School For The B,Supported Living,Residential - MH, 442.76 
02/10/2019,LD COST OF CARE LD,Seeability - Royal School For The B,Supported Living,Residential - MH, 290.54 
02/10/2019,LD COST OF CARE LD,Seeability - Royal School For The B,Supported Living,Residential - MH, 333.50 
02/10/2019,LD COST OF CARE LD,Seeability - Royal School For The B,Supported Living,Residential - MH, 529.93 
02/10/2019,LD COST OF CARE LD,Seeability - Royal School For The B,Supported Living,Residential - MH, 355.60 
02/10/2019,LD COST OF CARE LD,Seeability - Royal School For The B,Supported Living,Residential - MH, 594.99 
02/10/2019,LD COST OF CARE LD,Seeability - Royal School For The B,Supported Living,Residential - MH," 13,657.68 "
02/10/2019,LD COST OF CARE LD,Seeability - Royal School For The B,Supported Living,Residential - MH," 8,065.89 "
02/10/2019,LD COST OF CARE LD,Seeability - Royal School For The B,Supported Living,Residential - MH," 4,591.41 "
02/10/2019,LD COST OF CARE LD,Seeability - Royal School For The B,Supported Living,Residential - MH," 14,354.98 "
02/10/2019,LD COST OF CARE LD,Seeability - Royal School For The B,Supported Living,Residential - MH," 9,315.23 "
02/10/2019,LD COST OF CARE LD,Seeability - Royal School For The B,Supported Living,Residential - MH," 8,269.27 "
02/10/2019,LD COST OF CARE LD,Seeability - Royal School For The B,Supported Living,Residential - MH," 7,775.35 "
02/10/2019,LD COST OF CARE LD,Seeability - Royal School For The B,Supported Living,Residential - MH," 14,267.82 "
02/10/2019,LD COST OF CARE LD,Seeability - Royal School For The B,Supported Living,Residential - MH, 536.88 
02/10/2019,LD COST OF CARE LD,Seeability - Royal School For The B,Supported Living,Residential - MH, 304.44 
02/10/2019,LD COST OF CARE LD,Seeability - Royal School For The B,Supported Living,Residential - MH, 464.87 
02/10/2019,LD COST OF CARE LD,Seeability - Royal School For The B,Supported Living,Residential - MH, 310.25 
02/10/2019,LD COST OF CARE LD,Seeability - Royal School For The B,Supported Living,Residential - MH, 493.92 
02/10/2019,LD COST OF CARE LD,Seeability - Royal School For The B,Supported Living,Residential - MH, 914.81 
02/10/2019,LD COST OF CARE LD,Seeability - Royal School For The B,Supported Living,Residential - MH," 1,059.86 "
02/10/2019,LD COST OF CARE LD,Seeability - Royal School For The B,Supported Living,Residential - MH, 420.66 
02/10/2019,LD COST OF CARE LD,Seeability - Royal School For The B,Supported Living,Residential - MH, 552.03 
02/10/2019,LD COST OF CARE LD,Seeability - Royal School For The B,Supported Living,Residential - MH," 8,718.99 "
02/10/2019,LD COST OF CARE LD,Seeability - Royal School For The B,Supported Living,Residential - MH," 14,093.49 "
02/10/2019,LD COST OF CARE LD,Seeability - Royal School For The B,Supported Living,Residential - MH, 312.65 
02/10/2019,LD COST OF CARE LD,Seeability - Royal School For The B,Supported Living,Residential - MH, 472.74 
02/10/2019,LD COST OF CARE LD,Seeability - Royal School For The B,Supported Living,Residential - MH, 668.25 
02/10/2019,LD COST OF CARE LD,Seeability - Royal School For The B,Supported Living,Residential - MH," 1,104.06 "
02/10/2019,LD COST OF CARE LD,Seeability - Royal School For The B,Supported Living,Residential - MH, 348.65 
02/10/2019,LD COST OF CARE LD,Seeability - Royal School For The B,Supported Living,Residential - MH," 8,501.71 "
02/10/2019,LD COST OF CARE LD,Seeability - Royal School For The B,Supported Living,Residential - MH," 13,512.40 "
02/10/2019,LD COST OF CARE LD,Seeability - Royal School For The B,Supported Living,Residential - MH," 15,023.23 "
02/10/2019,LD COST OF CARE LD,Seeability - Royal School For The B,Supported Living,Residential - MH," 4,918.07 "
02/10/2019,LD COST OF CARE LD,Sennen Lodge,Residential,Residential - LD," 1,306.88 "
02/10/2019,BUS SUPP & CUST SERV,Signal Services Ltd,Contractor,Highway Maintenance," 1,180.80 "
02/10/2019,SW CP & COURT TEAM,SJC Social Work Ltd,Specialist Assessments,Parent & Child Asses," 2,059.35 "
02/10/2019,PVI FAMILY CENTRES,Spurgeons,Other Community Care - Vol,Non-Staff Training," 210,066.00 "
02/10/2019,LD COST OF CARE LD,St Andrews,Residential,Residential - LD," 1,048.33 "
02/10/2019,LD COST OF CARE LD,Stokewood Care Home,Residential,Dom Care - Adults," 1,086.07 "
02/10/2019,PSSS PD,Stoughton Infant School,Other Internal Transfers,Schools," 1,145.00 "
02/10/2019,EAST CWD NONLAC CARE,The Bailey & Samuels Group Ltd,Home Base Care,Dom Care - Adults, 500.00 
02/10/2019,EAST CWD NONLAC CARE,The Bailey & Samuels Group Ltd,Home Base Care,Dom Care - Adults, 500.00 
02/10/2019,SE AGENCY PLACE-ED,The Link Secondary School,Agency Placement Expenditure,Schools," 6,616.33 "
02/10/2019,AGENCY NON CWD SC,Thornbury Nursing Services,Foster Care Placements,Dom Care - Children," 19,434.00 "
02/10/2019,LD COST OF CARE LD,Twynham House,Residential,Residential - MH," 1,265.54 "
02/10/2019,RESOURCES FUND,Ulverscroft Large Print Books Ltd,Library Resources,Publications: Books, 479.04 
02/10/2019,RESOURCES FUND,Ulverscroft Large Print Books Ltd,Library Resources,Publications: Books, 825.12 
02/10/2019,RESOURCES FUND,W F Howes Ltd,Library Resources,Subscriptions," 2,224.56 "
02/10/2019,RESOURCES FUND,W F Howes Ltd,Library Resources,Subscriptions, 296.40 
02/10/2019,CORONER,WA Truelove & Son Ltd,Fees,Funeral Directors," 4,950.00 "
02/10/2019,CONSORT HOUSE,Westgate Pest Control Ltd,Corporate Responsive Maintenance,Pest&Animal Control, 594.00 
02/10/2019,CONSORT HOUSE,Westgate Pest Control Ltd,Corporate Responsive Maintenance,Pest&Animal Control, 690.00 
02/10/2019,NULL,Weydon School,NULL,Schools," 289,000.00 "
02/10/2019,LD COST OF CARE LD,Weyview House,Residential,Residential - MH," 1,437.72 "
02/10/2019,LD COST OF CARE LD,Weyview House,Residential,Residential - MH," 2,019.99 "
02/10/2019,LD COST OF CARE LD,Weyview House,Residential,Residential - MH," 2,536.57 "
02/10/2019,LD COST OF CARE LD,Weyview House,Residential,Residential - MH," 1,712.76 "
02/10/2019,LD COST OF CARE LD,Weyview House,Residential,Residential - MH," 6,129.23 "
02/10/2019,CORP INCOME AND EXP,White Lodge Centre,Write Offs,Day Care - PSD, 308.00 
02/10/2019,POST 16 PLACEMENT SW,Young Epilepsy,Agency Placement Expenditure,Grants-Member Allocs," 39,215.00 "
02/10/2019,SW AGENCY PLACE-ED,Young Epilepsy,Agency Placement Expenditure,Grants-Member Allocs," 28,057.00 "
02/10/2019,DOMESTIC ABUSE,Your Sanctuary,Grants-Third Sector and Voluntary Orgs/Charities,Supp Living - MH," 77,171.00 "
03/10/2019,ELMB - MEMBS ALLOCS,1st Claygate Scout Group,Grants-Third Sector and Voluntary Orgs/Charities,Grants-Member Allocs," 1,200.00 "
03/10/2019,SY GROWTH STRATEGY,Arcadis Consulting UK Ltd,Consultants,Testing & Inspection," 9,689.80 "
03/10/2019,Family Resilience (E,Attenti Ltd,Consultants,Accountancy Project," 3,398.40 "
03/10/2019,NW ALTERNATIVE SEN,Barnaby Therapy Services,Other Community Care - Priv,Occupational Therapy, 400.00 
03/10/2019,NW IPSB - PLAYGROUPS,Blossom Montessori School & Pre Sch,Agency Placement Nursery Exp,Schools, 274.50 
03/10/2019,Birchlands Res,Blue Arrow Ltd,Legal Exps - Vacancy Cover,Vacancy Cover, 521.66 
03/10/2019,Birchlands Res,Blue Arrow Ltd,Legal Exps - Vacancy Cover,Vacancy Cover, 411.84 
03/10/2019,Birchlands Res,Blue Arrow Ltd,Legal Exps - Vacancy Cover,Vacancy Cover, 927.70 
03/10/2019,Birchlands Res,Blue Arrow Ltd,Legal Exps - Vacancy Cover,Vacancy Cover, 411.84 
03/10/2019,NULL,Breyer Group Plc,NULL,General Build Maint," 6,213.12 "
03/10/2019,ACL CENTRAL EXP,BT UK Business Accounts,Telecommunication Charges,Telecare, 910.60 
03/10/2019,ACL CENTRAL EXP,BT UK Business Accounts,Telecommunication Charges,Telecare, 965.44 
03/10/2019,COVEHAM,BT UK Business Accounts,Telecommunication Charges,Telecare, 328.21 
03/10/2019,ACL CENTRAL EXP,BT UK Business Accounts,Telecommunication Charges,Telecare," 1,292.44 "
03/10/2019,ACL CENTRAL EXP,BT UK Business Accounts,Telecommunication Charges,Telecare, 855.44 
03/10/2019,SRY HTH- MEMB ALLOCS,Camberley Alzheimer Cafe,Grants-Third Sector and Voluntary Orgs/Charities,Grants-Member Allocs," 2,000.00 "
03/10/2019,SEN ADAPTATIONS,Care & Independence Ltd,Equipment,Green Works," 4,882.84 "
03/10/2019,OCCUPATIONAL THERAPY,Children In Motion Ltd,Other Community Care - Priv,Occupational Therapy, 466.66 
03/10/2019,OCCUPATIONAL THERAPY,Children In Motion Ltd,Other Community Care - Priv,Occupational Therapy, 779.07 
03/10/2019,AGENCY NON CWD SC,Compass Fostering South Ltd,Foster Care Placements,Fostering IFA," 1,105.59 "
03/10/2019,AGENCY NON CWD SC,Compass Fostering South Ltd,Foster Care Placements,Fostering IFA," 1,105.59 "
03/10/2019,AGENCY NON CWD SC,Compass Fostering South Ltd,Foster Care Placements,Fostering IFA," 1,105.59 "
03/10/2019,STRAT TREE MTC - NPR,County Tree Surgeons Ltd,Upkeep of Grounds,Green Works," 30,608.90 "
03/10/2019,NULL,Curvature Solutions Ltd,CE04 Capital ICT,Hardware - Sys," 6,072.00 "
03/10/2019,NULL,DWF LLP,Miscellaneous Insurance,General Support," 2,043.08 "
03/10/2019,NULL,DWF LLP,Miscellaneous Insurance,General Support," 1,714.20 "
03/10/2019,AGENCY NON CWD SC,Fostering Solutions Ltd,Foster Care Placements,Fostering IFA," 2,780.12 "
03/10/2019,AGENCY NON CWD SC,Fostering Solutions Ltd,Foster Care Placements,Fostering IFA," 3,077.99 "
03/10/2019,AGENCY NON CWD SC,Fostering Solutions Ltd,Foster Care Placements,Fostering IFA," 3,596.51 "
03/10/2019,SE CARE - CPCRT LAC,Gary Taylor Associates Ltd,Specialist Assessments,Individual - NEC," 1,196.94 "
03/10/2019,NULL,Geometric Results International,NULL,Soc Care OM Cover," 79,888.58 "
03/10/2019,Heathside Res,Heathside Residential Home,Cleaning Materials,Non-Staff Expenses, 387.79 
03/10/2019,SCC PENSIONS,Heywood Ltd,Computer Services,Pensions," 132,242.40 "
03/10/2019,NIL REC PF 18+ ASYLM,Holmdene Housing Services,Independent Living Placements,SEN Specialist Supp," 1,748.88 "
03/10/2019,NIL REC PF 18+ ASYLM,Holmdene Housing Services,Independent Living Placements,SEN Specialist Supp," 1,807.18 "
03/10/2019,NIL REC PF 18+ ASYLM,Holmdene Housing Services,Independent Living Placements,SEN Specialist Supp," 1,748.88 "
03/10/2019,TRANSPORT,Hoses Direct,Furniture,Fire Serv Spec Equip, 467.94 
03/10/2019,UNIT 4 LEATHERHEAD,Hunter Communication Services Ltd,Security Alarm Maintenance,Access Control Serv, 577.20 
03/10/2019,ADOPTION SUPP FUND,Insight4Children Ltd,Other Community Care - Priv,Inter-Agency fee, 880.00 
03/10/2019,ELMBRIDGE LOC,Jockey Club Racecourses Ltd,Local Authorities,Venue Hire, 595.20 
03/10/2019,PUPIL PREMIUM LAC,Kent Mentor Support,Fees,Educ Tuition Fees," 1,260.00 "
03/10/2019,PUPIL PREMIUM LAC,Kent Mentor Support,Fees,Educ Tuition Fees," 2,030.00 "
03/10/2019,HIGHWAY DESIGN & DEL,Keysoft Solutions Ltd,Computer Services,Appl Serv Provision, 420.00 
03/10/2019,CAMBERLEY FIRE STN,Kier Facilities Services Ltd,Term Contract Works,General Build Maint," 3,739.20 "
03/10/2019,BROCKHURST CARE HOME,Kier Facilities Services Ltd,Term Contract Inspections,General Build Maint, 256.15 
03/10/2019,QUADRANT CT WOKING,Kier Facilities Services Ltd,Term Contract Inspections,General Build Maint, 745.42 
03/10/2019,NULL,Kier Facilities Services Ltd,NULL,General Build Maint," 11,329.92 "
03/10/2019,NULL,Kier Facilities Services Ltd,NULL,General Build Maint," 6,451.20 "
03/10/2019,NULL,Kier Facilities Services Ltd,NULL,General Build Maint," 37,188.00 "
03/10/2019,SW SURREY FANILY CTR,Kier Facilities Services Ltd,Corporate Responsive Maintenance,General Build Maint," 5,220.00 "
03/10/2019,HOPE PRU GUILDFORD,Kier Facilities Services Ltd,Buyback Works Responsive,General Build Maint," 1,827.36 "
03/10/2019,FARNHAM AEI WEST ST,Kier Facilities Services Ltd,Corporate Responsive Maintenance,General Build Maint, 587.52 
03/10/2019,SHAW FC,Kier Facilities Services Ltd,Corporate Responsive Maintenance,General Build Maint, 377.28 
03/10/2019,MALLOW CS DMHS 25-30,Kier Facilities Services Ltd,Corporate Responsive Maintenance,General Build Maint, 352.80 
03/10/2019,GUILDFORD FIRE STN,Kier Facilities Services Ltd,Term Contract Inspections,General Build Maint, 256.15 
03/10/2019,MAYFORD CENTRE-BUS,Kier Facilities Services Ltd,Term Contract Inspections,General Build Maint, 594.29 
03/10/2019,KINGS INTERNAT SCH,Kier Facilities Services Ltd,Buyback Works Responsive,General Build Maint, 345.60 
03/10/2019,TRAINING COMMS,LGcomms,Publicity,PR & Image, 300.00 
03/10/2019,GROWTH STRATEGY NHB,Minnerva Ltd,Computer Software,Staff Training, 832.04 
03/10/2019,FIRE&RESC COMM SAFTY,Mole Valley District Council,Venue Costs (including Hire of Rooms),Grants-Member Allocs," 16,035.30 "
03/10/2019,AGENCY NON CWD SC,Netpex Ltd,Independent Living Placements,Info Advice Guidance," 11,089.68 "
03/10/2019,PSSS ICT SUPPORT,Novatech Ltd,Equipment,Hardware - Sys," 4,458.00 "
03/10/2019,PSSS ICT SUPPORT,Novatech Ltd,Equipment,Hardware - Sys," 4,458.00 "
03/10/2019,FIRE&RESC COMM SAFTY,PageOne Communications Ltd,Telecommunication Charges,Mobile User Devices," 1,630.20 "
03/10/2019,SE CARE - CPCRT NONL,Parkers of Reigate Ltd,Hire of Vehicles,Multi-purpose Veh, 288.00 
03/10/2019,AGENCY NON CWD SC,Pathfinders Care Services Ltd,Residential Placements,Res Care," 34,752.00 "
03/10/2019,NIL REC PF 18+ ASYLM,Pathways To Independence Housing UK,Independent Living Placements,Sup Living Children," 1,650.00 "
03/10/2019,SEND Sustainability,Psychology Direct Ltd,Legal Exps-Witness/Prof Exps,General Support, 950.00 
03/10/2019,SEND Sustainability,Psychology Direct Ltd,Legal Exps-Witness/Prof Exps,General Support, 950.00 
03/10/2019,SEND Sustainability,Psychology Direct Ltd,Legal Exps-Witness/Prof Exps,General Support, 950.00 
03/10/2019,SEND Sustainability,Psychology Direct Ltd,Legal Exps-Witness/Prof Exps,General Support, 950.00 
03/10/2019,SEND Sustainability,Psychology Direct Ltd,Legal Exps-Witness/Prof Exps,General Support," 1,900.00 "
03/10/2019,AGENCY CWD SOCIAL CA,Rainbow Fostering Services Ltd,Foster Care Placements,LAC Agency Fees," 4,500.00 "
03/10/2019,County Hall,Records Management Girl Ltd,Consultants,Residential - OP," 9,347.70 "
03/10/2019,CARE LEAVER PACKAGES,Redacted Personal Data,Independent Living Placements,Invoicing Plan Req., 361.35 
03/10/2019,SERVICE EXPERIENCE,Redacted Personal Data,"SCC Required Car upto 8,000 miles",Non-Staff Expenses, 340.07 
03/10/2019,SERVICE EXPERIENCE,Redacted Personal Data,"SCC Required Car upto 8,000 miles",Staff Expenses, 331.98 
03/10/2019,SERVICE EXPERIENCE,Redacted Personal Data,"SCC Required Car upto 8,000 miles",Staff Expenses, 316.15 
03/10/2019,COMMUNITY ARTS,Redacted Personal Data,Educ Visits/Hols/Camps/Toys,Performing Arts, 860.00 
03/10/2019,NW AREA SEN MGT,Redacted Personal Data,Compensation and Ex-Gratia,Invoicing Plan Req., 500.00 
03/10/2019,SERVICE EXPERIENCE,Redacted Personal Data,"SCC Required Car upto 8,000 miles",Staff Expenses, 270.58 
03/10/2019,ASSET STRAT & PL MGR,Redacted Personal Data,Minor Bldg Works-Prop Servs,Individual - NEC, 756.00 
03/10/2019,SERVICE EXPERIENCE,Redacted Personal Data,"SCC Required Car upto 8,000 miles",Staff Expenses, 261.05 
03/10/2019,SERVICE EXPERIENCE,Redacted Personal Data,"SCC Required Car upto 8,000 miles",Staff Expenses, 634.53 
03/10/2019,SERVICE EXPERIENCE,Redacted Personal Data,"SCC Required Car upto 8,000 miles",Staff Expenses, 320.09 
03/10/2019,SERVICE EXPERIENCE,Redacted Personal Data,"SCC Required Car upto 8,000 miles",Staff Expenses, 568.94 
03/10/2019,SERVICE EXPERIENCE,Redacted Personal Data,"SCC Required Car upto 8,000 miles",Staff Expenses, 266.97 
03/10/2019,SERVICE EXPERIENCE,Redacted Personal Data,"SCC Required Car upto 8,000 miles",Staff Expenses, 325.35 
03/10/2019,SERVICE EXPERIENCE,Redacted Personal Data,"SCC Required Car upto 8,000 miles",Staff Expenses, 343.50 
03/10/2019,SERVICE EXPERIENCE,Redacted Personal Data,"SCC Required Car upto 8,000 miles",Staff Expenses, 378.85 
03/10/2019,ADOPTION CARE,Redacted Personal Data,Other Community Care - Priv,Individual - NEC," 1,190.00 "
03/10/2019,UASC 18+ CARE,Redacted Personal Data,Equipment,Adult direct payment, 300.00 
03/10/2019,SFRS-PENSIONS FUND,Redacted Personal Data,Lump Sums,Staff Expenses," 145,546.07 "
03/10/2019,NULL,Redacted Personal Data,NULL,Staff Expenses," 1,784.00 "
03/10/2019,SFRS-PENSIONS FUND,Redacted Personal Data,Lump Sums,Staff Expenses," 119,244.01 "
03/10/2019,SW AGENCY PLACE-ED,Redacted Personal Data,Agency Placement Expenditure,SEND Agncy Placement," 1,375.00 "
03/10/2019,SPEECH & LNG THERAPY,Redacted Personal Data,Other Community Care - Priv,Individual - NEC, 260.10 
03/10/2019,SW CARE - CARE LVRS,Redacted Personal Data,Education Season Tickets,Invoicing Plan Req., 358.80 
03/10/2019,SERVICE EXPERIENCE,Redacted Personal Data,"SCC Required Car upto 8,000 miles",Staff Expenses, 377.01 
03/10/2019,ORBIS AUDIT,River Abs Ltd,Consultants,Org & Bus Consult," 2,100.00 "
03/10/2019,COMPLAINT & ADVOCACY,ROL Solutions Ltd,Computer Services,Web Design & Hosting," 5,670.00 "
03/10/2019,LBSC DIRECT,Runnymede Borough Council,Contractor,Local Government," 5,283.90 "
03/10/2019,CHILWORTH CEI,SCC Chilworth COE (A) Infant School,BUPA Health Insurance,Schools, 908.72 
03/10/2019,FMR MERSTHAM LIBRARY,Secure Site UK Ltd,Security Alarm Maintenance,Security Equipment, 736.56 
03/10/2019,SE CARE - CPCRT LAC,Seraphim Group Ltd,Independent Living Placements,Subscriptions, 504.00 
03/10/2019,Educational Effectiv,Shrewsbury House Pre Preparatory Sc,Consultants,Nursery, 630.00 
03/10/2019,CORP INCOME AND EXP,Siemens Plc,Write Offs,Mobile User Devices," 2,454.44 "
03/10/2019,BUS SUPP & CUST SERV,Signal Services Ltd,Contractor,Highway Maintenance," 1,492.80 "
03/10/2019,SEN ADAPTATIONS,Silvalea Ltd,Equipment,Green Works, 432.00 
03/10/2019,PLANNING DEVELOPMENT,South Godstone Sports & Community A,Venue Costs (including Hire of Rooms),Grants-Member Allocs, 480.00 
03/10/2019,AGENCY NON CWD SC,Southern Adolescent Care Services L,Residential Placements,Sup Living Children," 14,100.00 "
03/10/2019,NW ALTERNATIVE SEN,Speak2me Hants Ltd,Other Community Care - Priv,Speech & Language, 669.34 
03/10/2019,NW ALTERNATIVE SEN,Speak2me Hants Ltd,Other Community Care - Priv,Speech & Language, 739.25 
03/10/2019,NW AGENCY PLACE-ED,Surrey Care Trust,Agency Placement Expenditure,Grants-Member Allocs, 300.00 
03/10/2019,VOL SECTOR SUPPORT,Surrey Community Action,Grants-Third Sector and Voluntary Orgs/Charities,Grants-Member Allocs," 51,250.00 "
03/10/2019,NULL,Surrey Wildlife Trust,CE02 Works,Grants-Member Allocs," 1,098.00 "
03/10/2019,ELMB - MEMBS ALLOCS,Talk,Grants-Third Sector and Voluntary Orgs/Charities,Grants-Member Allocs, 500.00 
03/10/2019,ADOPTION SUPP FUND,The Cherrycroft Practice,Other Community Care - Priv,Psychiatric Therapy, 360.00 
03/10/2019,ADOPTION SUPP FUND,The Cherrycroft Practice,Other Community Care - Priv,Psychiatric Therapy," 1,260.00 "
03/10/2019,ELMB - MEMBS ALLOCS,The Whiteley Homes Trust,Grants-Third Sector and Voluntary Orgs/Charities,Residential - LD," 3,935.00 "
03/10/2019,POST 16 PLACEMENT SW,Treloar Trust,Agency Placement Expenditure,School Support Serv," 41,161.02 "
03/10/2019,SW ALTERNATIVE SEN,Tutorone,Agency Placement Expenditure,SEND Agncy Placement, 449.28 
03/10/2019,SW ALTERNATIVE SEN,Tutorone,Agency Placement Expenditure,SEND Agncy Placement, 516.00 
03/10/2019,SW ALTERNATIVE SEN,Tutorone,Agency Placement Expenditure,SEND Agncy Placement, 619.20 
03/10/2019,SW ALTERNATIVE SEN,Tutorone,Agency Placement Expenditure,SEND Agncy Placement, 403.20 
03/10/2019,SW ALTERNATIVE SEN,Tutorone,Agency Placement Expenditure,SEND Agncy Placement, 258.00 
04/10/2019,AGENCY CWD SOCIAL CA,Action For Children (Charity),Residential Placements,Res Care," 13,915.71 "
04/10/2019,WEST CWD NONLAC CARE,Allied Healthcare (UK) Ltd,Home Care - Priv,Dom Care - Adults," 1,656.00 "
04/10/2019,WEST CWD NONLAC CARE,Allied Healthcare (UK) Ltd,Home Care - Priv,Dom Care - Adults," 1,932.00 "
04/10/2019,WEST CWD NONLAC CARE,Allied Healthcare (UK) Ltd,Home Care - Priv,Dom Care - Adults," 1,150.00 "
04/10/2019,EAST CWD NONLAC CARE,Ambition 24 Hours,Home Care - Priv,Supp Living - MH, 929.09 
04/10/2019,EAST CWD NONLAC CARE,Ambition 24 Hours,Home Care - Priv,Supp Living - MH, 346.94 
04/10/2019,EAST CWD NONLAC CARE,Ambition 24 Hours,Home Care - Priv,Supp Living - MH," 1,152.58 "
04/10/2019,WEST CWD LAC CARE,Ambition 24 Hours,New GR/IR Account,Supp Living - MH," 1,414.88 "
04/10/2019,EAST CWD NONLAC CARE,Ambition 24 Hours,Home Care - Priv,Supp Living - MH, 303.74 
04/10/2019,DBS CHECKING,Atlantic Data Ltd,Criminal Records Bureau,Leasing - Services," 4,332.60 "
04/10/2019,Family Resilience (E,Attenti Ltd,Consultants,Accountancy Project," 3,398.40 "
04/10/2019,PYRFORD CEAP,Barconwood Ltd,Equipment,Catering Supplies, 543.86 
04/10/2019,PVI FAMILY CENTRES,Barnardo Services Ltd,Other Community Care - Vol,School Support Serv," 107,976.00 "
04/10/2019,SPELTHORNE CARE OP,Beechwood Court,Extra Care Housing,Extra Care," 2,565.72 "
04/10/2019,CATERHAM LIB,Bilfinger Europa Facility,Corporate Responsive Maintenance,Edu Establishments, 269.56 
04/10/2019,DORKING NURSERY SCH,Bilfinger Europa Facility,Buyback Works Responsive,Edu Establishments," 1,258.25 "
04/10/2019,DORKING NURSERY SCH,Bilfinger Europa Facility,Buyback Works Responsive,Edu Establishments, 774.58 
04/10/2019,ESHER LIB,Bilfinger Europa Facility,Corporate Responsive Maintenance,Edu Establishments," 2,165.93 "
04/10/2019,PERM SURP LAND,Bilfinger Europa Facility,Corporate Responsive Maintenance,Edu Establishments," 1,186.61 "
04/10/2019,APPLEWOOD SCHOOL,Bilfinger Europa Facility,Corporate Responsive Maintenance,Edu Establishments, 633.42 
04/10/2019,CATERHAM VALLEY LBRY,Bilfinger Europa Facility,Corporate Responsive Maintenance,Edu Establishments," 1,357.51 "
04/10/2019,NE CARE - CPCRT LAC,Bindmans LLP,Legal Exps-Costs,General Support," 2,376.00 "
04/10/2019,PLD TRANSITION,Boyntons Executive Cars,Creditors Control Account,Multi-purpose Veh," 1,140.00 "
04/10/2019,AGENCY NON CWD SC,Bramley Care Ltd,Residential Placements,Res Care," 17,099.70 "
04/10/2019,TRANSPRT DEV CONTROL,Breheny Civil Engineering Ltd,Contractor,Road Repair Material," 1,445.75 "
04/10/2019,AGENCY NON CWD SC,Brighter Futures Foster Care Ltd,Foster Care Placements,Sup Living Children," 3,094.20 "
04/10/2019,HYTHE SCH,BTU Installation & Maintenance Ltd,Buyback Works Responsive,"Comm, Res & Inv Prop", 317.28 
04/10/2019,WEST HOUSE COMPLEX,BTU Installation & Maintenance Ltd,Corporate Responsive Maintenance,"Comm, Res & Inv Prop", 354.17 
04/10/2019,PARK HOUSE SHALFORD,BTU Installation & Maintenance Ltd,Corporate Responsive Maintenance,"Comm, Res & Inv Prop", 405.11 
04/10/2019,MALLOW CS DMHS 25-30,BTU Installation & Maintenance Ltd,Corporate Responsive Maintenance,"Comm, Res & Inv Prop", 392.95 
04/10/2019,Abbeywood,BTU Installation & Maintenance Ltd,Corporate Responsive Maintenance,"Comm, Res & Inv Prop", 336.38 
04/10/2019,HILLSIDE CAMBERLEY,BTU Installation & Maintenance Ltd,Corporate Responsive Maintenance,"Comm, Res & Inv Prop", 293.81 
04/10/2019,EGHAM LIB,BTU Installation & Maintenance Ltd,Corporate Responsive Maintenance,"Comm, Res & Inv Prop", 291.84 
04/10/2019,FRANCE HILL HOUSE,BTU Installation & Maintenance Ltd,Corporate Responsive Maintenance,"Comm, Res & Inv Prop", 470.05 
04/10/2019,WEST HOUSE COMPLEX,BTU Installation & Maintenance Ltd,Corporate Responsive Maintenance,"Comm, Res & Inv Prop", 667.68 
04/10/2019,29B LITTLE MR LN FM,BTU Installation & Maintenance Ltd,Corporate Responsive Maintenance,"Comm, Res & Inv Prop"," 1,352.40 "
04/10/2019,GUILDFORD AEI,BTU Installation & Maintenance Ltd,Corporate Responsive Maintenance,"Comm, Res & Inv Prop"," 2,264.33 "
04/10/2019,HIGHLANDS CTR BONSEY,BTU Installation & Maintenance Ltd,Corporate Responsive Maintenance,"Comm, Res & Inv Prop", 278.93 
04/10/2019,2 SCHOOL COTTAGES,BTU Installation & Maintenance Ltd,Corporate Responsive Maintenance,"Comm, Res & Inv Prop", 355.73 
04/10/2019,FRIMLEY CE SCHOOL,BTU Installation & Maintenance Ltd,Buyback Works Term,"Comm, Res & Inv Prop", 301.69 
04/10/2019,ASH MANOR SCHOOL,BTU Installation & Maintenance Ltd,Education Responsive Maintenance,"Comm, Res & Inv Prop"," 1,114.30 "
04/10/2019,ASH MANOR SCHOOL,BTU Installation & Maintenance Ltd,Buyback Works Responsive,"Comm, Res & Inv Prop", 339.74 
04/10/2019,14 THE PINES,BTU Installation & Maintenance Ltd,Corporate Responsive Maintenance,"Comm, Res & Inv Prop", 344.35 
04/10/2019,QUADRANT CT WOKING,BTU Installation & Maintenance Ltd,Corporate Responsive Maintenance,"Comm, Res & Inv Prop", 790.03 
04/10/2019,QUADRANT CT WOKING,BTU Installation & Maintenance Ltd,Corporate Responsive Maintenance,"Comm, Res & Inv Prop", 413.11 
04/10/2019,POST 16 PLACEMENT NW,Cambian Asperger Syndrome Services,Agency Placement Expenditure,SEN Specialist Supp," 44,141.00 "
04/10/2019,AGENCY NON CWD SC,Cambian Childcare Ltd,Residential Placements,Res Care," 21,257.01 "
04/10/2019,BUS OPS SOUTH MGMT,CFH Total Document Management Ltd,Printing,Printing & Repro, 419.51 
04/10/2019,LOWER MOLE CSIDE PRJ,Challenge Fencing Ltd,Upkeep of Grounds,Green Works, 414.53 
04/10/2019,SERV DELIVERY RES,Chertsey Fire Station,Meals,Fire Service, 287.04 
04/10/2019,SERV DELIVERY RES,Chertsey Fire Station,Meals,Fire Service, 293.51 
04/10/2019,NULL,Colours Decorating Ltd,NULL,"Comm, Res & Inv Prop"," 156,386.87 "
04/10/2019,NULL,Colours Decorating Ltd,NULL,"Comm, Res & Inv Prop"," 19,897.07 "
04/10/2019,AGENCY NON CWD SC,Compass Fostering Esatern Ltd,Foster Care Placements,Fostering IFA," 2,742.72 "
04/10/2019,AGENCY NON CWD SC,Compass Fostering South Ltd,Foster Care Placements,Fostering IFA," 3,042.24 "
04/10/2019,POST 16 PLACEMENT SE,Croydon College,Agency Placement Expenditure,Staff Training," 1,767.22 "
04/10/2019,LEADERSHIP TEAM,Different Business Ltd,Subscriptions to an Organisation,Subscriptions, 945.90 
04/10/2019,ASC OPEN PROGRAMME,Docklands Training Consultants Ltd,Training Expenses - External General,Staff Training, 714.00 
04/10/2019,SERV DELIVERY RES,Dorking Fire Station,Car Allowances,Fire Service, 298.99 
04/10/2019,SERV DELIVERY RES,Dorking Fire Station,Car Allowances,Fire Service, 281.66 
04/10/2019,Elmbridge C&G OP,Elmbridge Borough Council,Other Community Care,Local Government," 6,180.00 "
04/10/2019,Elmbridge C&G OP,Elmbridge Borough Council,Other Community Care,Local Government," 3,178.50 "
04/10/2019,ACTIVE SURREY,Elmbridge Borough Council,Grants-Public Bodies and Statutory Partnerships,Local Government," 1,050.00 "
04/10/2019,ACTIVE SURREY,Elmbridge Borough Council,Grants-Public Bodies and Statutory Partnerships,Local Government, 860.00 
04/10/2019,S.D. EAST AREA MGMT,Epsom Fire Station,Car Allowances,Fire Service, 285.94 
04/10/2019,AGENCY NON CWD SC,Fitzgerald Fostering & Consultancy,Foster Care Placements,Fostering IFA," 3,001.88 "
04/10/2019,AGENCY NON CWD SC,Foster Care Associates Ltd,Foster Care Placements,Sup Living Children," 6,865.80 "
04/10/2019,AGENCY NON CWD SC,Fostering Solutions Ltd,Foster Care Placements,Fostering IFA," 2,978.70 "
04/10/2019,AGENCY NON CWD SC,Fostering Solutions Ltd,Foster Care Placements,Fostering IFA," 1,489.35 "
04/10/2019,AGENCY NON CWD SC,Fostering Solutions Ltd,Foster Care Placements,Fostering IFA," 1,191.48 "
04/10/2019,AGENCY NON CWD SC,Fostering Solutions Ltd,Foster Care Placements,Fostering IFA," 1,147.10 "
04/10/2019,AGENCY NON CWD SC,Fostering Solutions Ltd,Foster Care Placements,Fostering IFA," 1,720.65 "
04/10/2019,ASYLUM SKRS 16-17,Fresh Start Independence Project Lt,Independent Living Placements,Sup Living Children," 1,150.03 "
04/10/2019,COMMISSIONING HUB,Gatenby Sanderson Ltd,Agency Staff Providing Project Support,Prof OM Cover," 16,401.00 "
04/10/2019,SERV DELIVERY RES,Guildford Fire Station,Car Allowances,Fire Service, 329.81 
04/10/2019,AGENCY NON CWD SC,Halliwell Homes Ltd,Residential Placements,Res Care," 20,550.00 "
04/10/2019,SW AGENCY PLACE-ED,Hawley Hurst School,Agency Placement Expenditure,Doc Archive & Store," 6,105.33 "
04/10/2019,SW AGENCY PLACE-ED,Hawley Hurst School,Agency Placement Expenditure,Doc Archive & Store," 1,100.00 "
04/10/2019,SCC PENSIONS,Heywood Ltd,Computer Services,Pensions," 37,800.00 "
04/10/2019,SE CARE - CPCRT LAC,HM Courts & Tribunals Service,Legal Expenses,Court Fees, 385.00 
04/10/2019,NIL REC PF 18+ ASYLM,Holmdene Housing Services,Independent Living Placements,SEN Specialist Supp," 2,364.80 "
04/10/2019,ASYLUM SKRS 16-17,Holmdene Housing Services,Independent Living Placements,SEN Specialist Supp," 3,115.20 "
04/10/2019,NE ALTERNATIVE SEN,Hounslow & Richmond Community Healt,Other Community Care - Priv,Speech & Language, 652.50 
04/10/2019,WEST CWD NONLAC CARE,Interserve Healthcare Ltd,Home Care - Priv,Grants - Community," 1,566.00 "
04/10/2019,WEST CWD NONLAC CARE,Interserve Healthcare Ltd,Home Care - Priv,Grants - Community, 389.14 
04/10/2019,WEST CWD NONLAC CARE,Interserve Healthcare Ltd,Home Care - Priv,Grants - Community, 389.14 
04/10/2019,WEST CWD NONLAC CARE,Interserve Healthcare Ltd,Home Care - Priv,Grants - Community, 389.14 
04/10/2019,PSSS PD,Jenx Ltd,Equipment,Furniture - Office," 2,268.00 "
04/10/2019,LOCAL ASSIST SCHEME,John Gillman & Sons Electrical Ltd,Equipment,Comm Appliances, 340.80 
04/10/2019,POST 16 PLACEMENT NE,Kingston College,Agency Placement Expenditure,Staff Training," 2,824.67 "
04/10/2019,POST 16 PLACEMENT SE,Kingston College,Agency Placement Expenditure,Staff Training, 996.67 
04/10/2019,SERV DELIVERY RES,Leatherhead Fire Station,Car Allowances,Fire Service, 264.74 
04/10/2019,ASSET INV & REGN MGR,Lee Bolton Monier-Williams,Fees,Costs," 1,020.00 "
04/10/2019,C&C DIRECTORATE SPRT,Local Registration Services Associa,Subscriptions to an Organisation,Staff Training, 480.00 
04/10/2019,ACTIVE SURREY,London Irish Foundation,Grants-Third Sector and Voluntary Orgs/Charities,Coaching, 962.50 
04/10/2019,SOLD ESTATES MNGT,Loos For Do's Ltd,Day To Day Maintenance,Portable Build Hire, 486.36 
04/10/2019,SOLD ESTATES MNGT,Loos For Do's Ltd,Day To Day Maintenance,Portable Build Hire," 2,646.36 "
04/10/2019,SW AGENCY PLACE-ED,Milton Abbey School,New GR/IR Account,SEND Agncy Placement," 7,775.00 "
04/10/2019,GUILDFORD CARE LD,MP Cars,Creditors Control Account,Multi-purpose Veh," 3,624.00 "
04/10/2019,PLD TRANSITION,MP Cars,Creditors Control Account,Multi-purpose Veh," 2,545.20 "
04/10/2019,PLD TRANSITION,MP Cars,Creditors Control Account,Multi-purpose Veh, 882.00 
04/10/2019,S CHOICES TRANSPORT,MP Cars,Creditors Control Account,Multi-purpose Veh," 1,260.00 "
04/10/2019,WEST CWD NONLAC CARE,MP Cars,Creditors Control Account,Multi-purpose Veh, 486.00 
04/10/2019,WEST CWD LAC CARE,MP Cars,Creditors Control Account,Multi-purpose Veh, 360.00 
04/10/2019,WOKING CARE LD,MP Cars,Creditors Control Account,Multi-purpose Veh, 648.00 
04/10/2019,GUILDFORD CARE LD,MP Cars,Creditors Control Account,Multi-purpose Veh," 1,512.00 "
04/10/2019,PLD TRANSITION,MP Cars,Creditors Control Account,Multi-purpose Veh, 924.00 
04/10/2019,GUILDFORD CARE LD,MP Cars,Creditors Control Account,Multi-purpose Veh," 3,624.00 "
04/10/2019,WEST CWD NONLAC CARE,MP Cars,Creditors Control Account,Multi-purpose Veh," 1,560.00 "
04/10/2019,WEST CWD NONLAC CARE,MP Cars,Creditors Control Account,Multi-purpose Veh, 702.00 
04/10/2019,WEST CWD LAC CARE,MP Cars,Creditors Control Account,Multi-purpose Veh, 288.00 
04/10/2019,GUILDFORD CARE OP,MP Cars,Creditors Control Account,Multi-purpose Veh," 1,188.00 "
04/10/2019,NW TRANSPORT,MP Cars,Creditors Control Account,Multi-purpose Veh, 432.00 
04/10/2019,GUILDFORD CARE LD,MP Cars,Creditors Control Account,Multi-purpose Veh," 1,752.00 "
04/10/2019,GUILDFORD CARE LD,MP Cars,Creditors Control Account,Multi-purpose Veh," 1,656.00 "
04/10/2019,S CHOICES TRANSPORT,MP Cars,Creditors Control Account,Multi-purpose Veh," 1,380.00 "
04/10/2019,GUILDFORD CARE PD,MP Cars,Creditors Control Account,Multi-purpose Veh, 288.00 
04/10/2019,ELMBRIDGE CARE LD,MP Cars,Creditors Control Account,Multi-purpose Veh," 2,052.00 "
04/10/2019,SW CARE - LAC,MP Cars,Creditors Control Account,Multi-purpose Veh," 1,134.00 "
04/10/2019,PLD TRANSITION,MP Cars,Creditors Control Account,Multi-purpose Veh, 360.00 
04/10/2019,GUILDFORD CARE LD,MP Cars,Creditors Control Account,Multi-purpose Veh," 1,800.00 "
04/10/2019,WEST CWD NONLAC CARE,MP Cars,Creditors Control Account,Multi-purpose Veh," 1,080.00 "
04/10/2019,GUILDFORD CARE PD,MP Cars,Creditors Control Account,Multi-purpose Veh, 288.00 
04/10/2019,ELMBRIDGE CARE LD,MP Cars,Creditors Control Account,Multi-purpose Veh," 2,052.00 "
04/10/2019,GUILDFORD CARE OP,MP Cars,Creditors Control Account,Multi-purpose Veh," 1,188.00 "
04/10/2019,PLD TRANSITION,MP Cars,Creditors Control Account,Multi-purpose Veh," 2,666.40 "
04/10/2019,CARE LEAVER PACKAGES,National Fostering Agency,Foster Care Placements,Sup Living Children," 3,020.08 "
04/10/2019,AGENCY NON CWD SC,National Fostering Agency,Foster Care Placements,Sup Living Children," 3,256.20 "
04/10/2019,AD OPS HIGH C'SIDE,Neopost Finance Ltd -Leasing Only,Postage and Courier Charges,Postage, 575.94 
04/10/2019,NEW HAW LIB,New Haw Library Community Partnersh,Rates,Grants-Member Allocs, 295.00 
04/10/2019,AGENCY NON CWD SC,New Horizons Stockport Ltd,Residential Placements,Fostering IFA," 15,000.00 "
04/10/2019,SW ALTERNATIVE SEN,Newcross Healthcare Solutions Ltd,Home Care - Priv,Youth Offending Serv, 768.90 
04/10/2019,NW AGENCY PLACE-ED,Northern House School Academy Trust,Agency Placement Expenditure,SEND Agncy Placement," 8,289.40 "
04/10/2019,TRANSPRT DEV CONTROL,Parallel Project Management Ltd,Training Expenses - External General,Accredited Learning," 1,980.00 "
04/10/2019,MOLE VALLEY CARE LD,Parkers of Reigate Ltd,Creditors Control Account,Multi-purpose Veh," 1,260.00 "
04/10/2019,MOLE VALLEY CARE LD,Parkers of Reigate Ltd,Creditors Control Account,Multi-purpose Veh, 336.00 
04/10/2019,ASYLUM SEEKERS 18+,Pathways To Independence Housing UK,New GR/IR Account,Sup Living Children," 1,127.34 "
04/10/2019,ASYLUM SEEKERS 18+,Pathways To Independence Housing UK,New GR/IR Account,Sup Living Children," 1,111.07 "
04/10/2019,NULL,Poulsom,CE02 Works,Green Works," 25,800.00 "
04/10/2019,SEND Sustainability,Psychology Direct Ltd,Legal Exps-Witness/Prof Exps,General Support, 950.00 
04/10/2019,SEND Sustainability,Psychology Direct Ltd,Legal Exps-Witness/Prof Exps,General Support, 950.00 
04/10/2019,SEND Sustainability,Psychology Direct Ltd,Legal Exps-Witness/Prof Exps,General Support, 950.00 
04/10/2019,SEND Sustainability,Psychology Direct Ltd,Legal Exps-Witness/Prof Exps,General Support, 950.00 
04/10/2019,SEND Sustainability,Psychology Direct Ltd,Legal Exps-Witness/Prof Exps,General Support," 4,987.50 "
04/10/2019,SEND Sustainability,Psychology Direct Ltd,Legal Exps-Witness/Prof Exps,General Support, 950.00 
04/10/2019,SEND Sustainability,Psychology Direct Ltd,Legal Exps-Witness/Prof Exps,General Support, 950.00 
04/10/2019,LABORATORY TEAM,Quartz Scientific Co Ltd,Fees,Lab Equip & Supplies, 307.20 
04/10/2019,CORP INCOME AND EXP,Raj Bharkhada Consultancy Services,Consultants,Org & Bus Consult," 6,480.00 "
04/10/2019,DOLS TEAM,Recruitment Team Nine Ltd,Fees,Specialist Assess, 420.00 
04/10/2019,DOLS TEAM,Recruitment Team Nine Ltd,Fees,Specialist Assess, 300.00 
04/10/2019,DOLS TEAM,Recruitment Team Nine Ltd,Fees,Specialist Assess, 300.00 
04/10/2019,DOLS TEAM,Recruitment Team Nine Ltd,Fees,Specialist Assess, 300.00 
04/10/2019,DOLS TEAM,Recruitment Team Nine Ltd,Fees,Specialist Assess, 300.00 
04/10/2019,DOLS TEAM,Recruitment Team Nine Ltd,Fees,Specialist Assess, 420.00 
04/10/2019,DOLS TEAM,Recruitment Team Nine Ltd,Fees,Specialist Assess, 420.00 
04/10/2019,NW CARE - LAC,Redacted Personal Data,Specialist Assessments,Occupational Therapy, 400.00 
04/10/2019,CUSTOMER INTERACT,Redacted Personal Data,Miscellaneous Staff Travel,Non-Staff Expenses, 263.90 
04/10/2019,CSF OPEN PROGRAMME,Redacted Personal Data,Training Expenses - External General,Staff Training," 2,300.00 "
04/10/2019,Orchard Court Res,Redacted Personal Data,Residential Dementia,Residential - OP, 376.00 
04/10/2019,CUSTOMER INTERACT,Redacted Personal Data,Miscellaneous Staff Travel,Staff Expenses, 466.65 
04/10/2019,NE FOSTERING CARE,Redacted Personal Data,Foster Care Placements,CYP Indiv Foster Car, 429.75 
04/10/2019,CUSTOMER INTERACT,Redacted Personal Data,Miscellaneous Staff Travel,Staff Expenses, 260.60 
04/10/2019,CUSTOMER INTERACT,Redacted Personal Data,Miscellaneous Staff Travel,Staff Expenses, 289.35 
04/10/2019,CUSTOMER INTERACT,Redacted Personal Data,Miscellaneous Staff Travel,Staff Expenses, 262.85 
04/10/2019,CUSTOMER INTERACT,Redacted Personal Data,Miscellaneous Staff Travel,Staff Expenses, 793.50 
04/10/2019,CUSTOMER INTERACT,Redacted Personal Data,Miscellaneous Staff Travel,Staff Expenses, 462.84 
04/10/2019,CUSTOMER INTERACT,Redacted Personal Data,Miscellaneous Staff Travel,Staff Expenses, 303.09 
04/10/2019,CUSTOMER INTERACT,Redacted Personal Data,Miscellaneous Staff Travel,Staff Expenses, 335.87 
04/10/2019,CUSTOMER INTERACT,Redacted Personal Data,Miscellaneous Staff Travel,Staff Expenses, 483.07 
04/10/2019,CUSTOMER INTERACT,Redacted Personal Data,Miscellaneous Staff Travel,Staff Expenses, 307.77 
04/10/2019,CUSTOMER INTERACT,Redacted Personal Data,Miscellaneous Staff Travel,Staff Expenses, 385.60 
04/10/2019,CUSTOMER INTERACT,Redacted Personal Data,Miscellaneous Staff Travel,Staff Expenses, 288.79 
04/10/2019,CUSTOMER INTERACT,Redacted Personal Data,Miscellaneous Staff Travel,Staff Expenses, 350.92 
04/10/2019,CUSTOMER INTERACT,Redacted Personal Data,Miscellaneous Staff Travel,Staff Expenses, 498.15 
04/10/2019,CUSTOMER INTERACT,Redacted Personal Data,Miscellaneous Staff Travel,Staff Expenses, 358.50 
04/10/2019,SE CARE - CARE LVRS,Redacted Personal Data,Curric - Consumables,Invoicing Plan Req., 250.00 
04/10/2019,NE CARE - CPCRT NONL,Redacted Personal Data,Other Community Care - Vol,Invoicing Plan Req., 450.00 
04/10/2019,CWD CONTRACTS/SLA'S,Redacted Personal Data,Direct Payments - Carers of Disabled Children,Invoicing Plan Req., 300.00 
04/10/2019,CWD CONTRACTS/SLA'S,Redacted Personal Data,Direct Payments - Carers of Disabled Children,Invoicing Plan Req., 300.00 
04/10/2019,FIRE&RESC COMM SAFTY,Redacted Personal Data,"SCC Required Car upto 8,000 miles",Staff Expenses, 343.80 
04/10/2019,FIRE&RESC COMM SAFTY,Redacted Personal Data,"SCC Required Car upto 8,000 miles",Staff Expenses," 1,794.82 "
04/10/2019,SERV DELIVERY RES,Redacted Personal Data,Miscellaneous Staff Travel,Invoicing Plan Req., 351.00 
04/10/2019,S.D. DUNSFD FS (WAV),Redacted Personal Data,"SCC Required Car upto 8,000 miles",Staff Expenses, 334.13 
04/10/2019,CHILD ARRANGE ORDERS,Redacted Personal Data,Special Guardianship Orders,Invoicing Plan Req.," 1,422.70 "
04/10/2019,FOSTERING SERV CENT,Redacted Personal Data,Foster Care Placements,CYP Indiv Foster Car, 854.48 
04/10/2019,S.D. EAST AREA MGMT,Reigate Fire Station,Car Allowances,Fire Service, 261.91 
04/10/2019,NE IPSB - OUT COUNTY,Rowan Preparatory School,New GR/IR Account,Schools, 424.00 
04/10/2019,CARE LEAVER PACKAGES,Sanctuary Affordable Housing,Independent Living Placements,Residential - MH," 1,099.56 "
04/10/2019,CARE LEAVER PACKAGES,Sanctuary Affordable Housing,Independent Living Placements,Residential - MH," 1,099.56 "
04/10/2019,CARE LEAVER PACKAGES,Sanctuary Affordable Housing,Independent Living Placements,Residential - MH," 1,099.56 "
04/10/2019,SE IPSB - PLAYGROUPS,SCC Epsom Downs Primary School &,New GR/IR Account,Schools," 1,812.70 "
04/10/2019,SE IPSB - PLAYGROUPS,SCC Epsom Downs Primary School &,Agency Placement Nursery Exp,Schools," 1,812.70 "
04/10/2019,Hillside Res,SCC Hillside HFE Welfare,Refreshment Costs,SEN Specialist Supp, 313.97 
04/10/2019,ACTIVE SURREY,Scorchers Basketball Foundation,Grants-Third Sector and Voluntary Orgs/Charities,Grants - Community," 1,652.00 "
04/10/2019,ACTIVE SURREY,Scorchers Basketball Foundation,Grants-Third Sector and Voluntary Orgs/Charities,Grants - Community," 1,414.50 "
04/10/2019,ACTIVE SURREY,Scorchers Basketball Foundation,Grants-Third Sector and Voluntary Orgs/Charities,Grants - Community," 1,414.50 "
04/10/2019,RUNNYMEDE CARE PD,Sharpe Waste Services,Third Party Payments-Other Agencies,Waste Disposal Serv, 360.00 
04/10/2019,DOLS TEAM,Smartwork.Com Ltd,Fees,Specialist Serv, 307.67 
04/10/2019,LOCAL DELIVERY TEAM,SMI Group,"Clothing, Uniforms and Laundry",Uniforms, 287.35 
04/10/2019,HERITAGE ENTERPRISE,Souterrain Archeological Services L,Fees,Subscriptions, 387.00 
04/10/2019,HERITAGE ENTERPRISE,Souterrain Archeological Services L,Fees,Subscriptions, 305.00 
04/10/2019,PSSS ICT SUPPORT,Splash! City Ltd,Equipment,Comm Off-The-Shelf, 950.00 
04/10/2019,NW AGENCY PLACE-ED,Stepping Stones School,Agency Placement Expenditure,SEN Specialist Supp," 9,513.00 "
04/10/2019,SW AGENCY PLACE-ED,Stepping Stones School,Agency Placement Expenditure,SEN Specialist Supp," 9,608.00 "
04/10/2019,SW AGENCY PLACE-ED,Stepping Stones School,Agency Placement Expenditure,SEN Specialist Supp," 8,943.00 "
04/10/2019,BUS SUPP & CUST SERV,Stone Surfacing,Contractor,Highways Structures," 2,040.00 "
04/10/2019,SW TRANSPORT,Street Cars Redhill Ltd,Hire of Vehicles,Multi-purpose Veh, 369.60 
04/10/2019,NE TRANSPORT,Supreme Freedom to Travel,Creditors Control Account,Taxi Hire (SEN Only), 444.00 
04/10/2019,C&C SAFER & STRONGER,Surrey Heath Borough Council,Grants-Third Sector and Voluntary Orgs/Charities,Grants-Member Allocs," 3,000.00 "
04/10/2019,ACTIVE SURREY,Surrey Heath Borough Council,Grants-Public Bodies and Statutory Partnerships,Grants-Member Allocs," 1,125.00 "
04/10/2019,PLD TRANSITION,Swan School Services Ltd,Creditors Control Account,Multi-purpose Veh," 1,386.00 "
04/10/2019,ELMBRIDGE CARE LD,Swan School Services Ltd,Creditors Control Account,Multi-purpose Veh, 336.00 
04/10/2019,PLD TRANSITION,Swan School Services Ltd,Creditors Control Account,Multi-purpose Veh," 1,248.00 "
04/10/2019,PLD TRANSITION,Swan School Services Ltd,Creditors Control Account,Multi-purpose Veh, 624.00 
04/10/2019,LD-Aut Cntr Tm Staff,Swan School Services Ltd,Creditors Control Account,Multi-purpose Veh," 2,505.60 "
04/10/2019,PLD TRANSITION,Swan School Services Ltd,Creditors Control Account,Multi-purpose Veh," 2,772.00 "
04/10/2019,PLD TRANSITION,Swan School Services Ltd,Creditors Control Account,Multi-purpose Veh," 1,008.00 "
04/10/2019,ELMBRIDGE CARE LD,Swan School Services Ltd,Creditors Control Account,Multi-purpose Veh, 621.60 
04/10/2019,PLD TRANSITION,Swan School Services Ltd,Creditors Control Account,Multi-purpose Veh, 453.60 
04/10/2019,S CHOICES TRANSPORT,Swan School Services Ltd,Creditors Control Account,Multi-purpose Veh," 2,052.00 "
04/10/2019,PLD TRANSITION,Swan School Services Ltd,Creditors Control Account,Multi-purpose Veh," 1,176.00 "
04/10/2019,MEMBER LH FUND EPS,T Earis Countryside Ltd,Upkeep of Grounds,Green Works, 471.36 
04/10/2019,MEMBER LH FUND EPS,T Earis Countryside Ltd,Upkeep of Grounds,Green Works, 533.14 
04/10/2019,_-,Tandridge District Council,Third Party Payments-Other Agencies,Local Government," 1,955.10 "
04/10/2019,ELMB - MEMBS ALLOCS,Thames Ditton Christmas Fair,Grants-Third Sector and Voluntary Orgs/Charities,Grants-Member Allocs, 950.00 
04/10/2019,REIGATE PRIORY,The Acme Facilities Group Ltd,Equipment,Cat Equip Supply&Fit, 741.60 
04/10/2019,ACTIVE SURREY,The Eikon Charity,Grants-Third Sector and Voluntary Orgs/Charities,Grants-Member Allocs, 900.00 
04/10/2019,ACTIVE SURREY,The Matrix Trust,Grants-Third Sector and Voluntary Orgs/Charities,Grants-Member Allocs," 1,519.84 "
04/10/2019,ACTIVE SURREY,The Matrix Trust,Grants-Third Sector and Voluntary Orgs/Charities,Grants-Member Allocs," 1,519.84 "
04/10/2019,Commissioning,The Public Office,Subsistence and Conference Expenses,Org & Bus Consult," 3,548.16 "
04/10/2019,Stroke Support,The Stroke Association,Other Community Care,Specialist Serv," 28,500.00 "
04/10/2019,ORBIS CHF PROP OFFIC,Tile Hill,Consultants,Professional Project," 12,420.00 "
04/10/2019,Asset & Place Strate,Tile Hill,Agency Staff Non-OM (Irregular Cover),Professional Project," 18,354.00 "
04/10/2019,CHILD'S ADULTS EDUC,Tile Hill,Agency Staff Providing Project Support,Professional Project," 9,418.50 "
04/10/2019,PARKING TM,TMP Worldwide,Advertising (Statutory Notices),Advert Promo & Rec, 334.78 
04/10/2019,NULL,TMP Worldwide,NULL,Advert Promo & Rec, 302.33 
04/10/2019,NULL,TMP Worldwide,NULL,Advert Promo & Rec, 269.02 
04/10/2019,PARKING TM,TMP Worldwide,Advertising (Statutory Notices),Advert Promo & Rec, 317.64 
04/10/2019,NULL,TMP Worldwide,NULL,Advert Promo & Rec, 475.63 
04/10/2019,NULL,TMP Worldwide,NULL,Advert Promo & Rec, 528.48 
04/10/2019,PARKING TM,TMP Worldwide,Advertising (Statutory Notices),Advert Promo & Rec, 348.48 
04/10/2019,NULL,Traffic Technology Ltd,CE02 Furniture and Equipment,Conference Attend," 38,577.00 "
04/10/2019,POST 16 PLACEMENT NW,Treloar Trust,Agency Placement Expenditure,School Support Serv," 20,878.48 "
04/10/2019,TROUBLED FAMILIES,Triangle,Training Expenses - External General,Comm Off-The-Shelf," 5,880.00 "
04/10/2019,RESOURCES FUND,W F Howes Ltd,Library Resources,Subscriptions," 1,414.39 "
04/10/2019,ACTIVE SURREY,Waverley Borough Council,Grants-Public Bodies and Statutory Partnerships,Grants-Member Allocs," 1,000.00 "
04/10/2019,Keswick Res,Wightman & Parrish Ltd,Cleaning Materials,Cleaning Equipment, 399.77 
04/10/2019,Keswick Res,Wightman & Parrish Ltd,Cleaning Materials,Cleaning Equipment, 305.82 
04/10/2019,QUADRANT CT WOKING,Wightman & Parrish Ltd,Cleaning Materials,Cleaning Equipment, 342.47 
04/10/2019,ACL CENTRAL EXP,Wightman & Parrish Ltd,Cleaning Materials,Cleaning Equipment, 292.64 
04/10/2019,ESTATES DELIVERY MGR,Wilks Head & Eve LLP,Fees,Individual - NEC, 321.38 
04/10/2019,ACTIVE SURREY,Woking Dance Festival,Grants-Third Sector and Voluntary Orgs/Charities,Centre based Youthwk, 691.45 
04/10/2019,ACTIVE SURREY,Woking Dance Festival,Grants-Third Sector and Voluntary Orgs/Charities,Centre based Youthwk, 691.45 
04/10/2019,NULL,Workplace Creations Ltd,NULL,Furniture - Office," 128,651.30 "
04/10/2019,ASYLUM SKRS 16-17,YMCA Downslink Group,Independent Living Placements,LocPrevFwork," 2,315.57 "
04/10/2019,ACTIVE SURREY,YMCA East Surrey,Grants-Third Sector and Voluntary Orgs/Charities,Grants-Member Allocs, 435.00 
07/10/2019,AGENCY NON CWD SC,5Fostering,Foster Care Placements,Fostering IFA," 4,140.00 "
07/10/2019,AGENCY NON CWD SC,5Fostering,Foster Care Placements,Fostering IFA," 4,140.00 "
07/10/2019,AGENCY NON CWD SC,Abiding Ltd,Independent Living Placements,Care Leaver Living," 3,928.54 "
07/10/2019,ASYLUM SEEKERS 18+,Abiding Ltd,Independent Living Placements,Care Leaver Living," 3,613.30 "
07/10/2019,ASYLUM SEEKERS 18+,Abiding Ltd,Independent Living Placements,Care Leaver Living," 13,854.14 "
07/10/2019,CARE LEAVER PACKAGES,Abiding Ltd,Independent Living Placements,Care Leaver Living," 20,114.10 "
07/10/2019,Fire Service,Affinity Healthcare Solutions Ltd,Agency Staff Providing Project Support,Temp Ops OM Cover," 2,400.00 "
07/10/2019,MALLOW CS DMHS 25-30,Alarm Radio Monitoring Ltd,Equipment,Security Equipment, 540.00 
07/10/2019,Family Resilience (E,Allen Lane Ltd,Agency Staff Providing Project Support,Professional Project," 3,450.00 "
07/10/2019,Asset & Place Strate,Allen Lane Ltd,Agency Staff Providing Project Support,Professional Project," 3,300.00 "
07/10/2019,NULL,Allied Healthcare (UK) Ltd,NULL,Dom Care - Adults," 1,150.00 "
07/10/2019,NW AREA SEN MGT,Anastasi Education Ltd,Training Expenses - External General,Staff Training," 1,243.40 "
07/10/2019,NE AGENCY PLACE-ED,Arun Court Setting,Agency Placement Expenditure,SEND Agncy Placement," 23,760.00 "
07/10/2019,PRI GROWING SCHS,Ashley COE (A) Primary School,Agency Placement Expenditure,Schools," 8,598.00 "
07/10/2019,PR HN TOP UP UNALLOC,Auriol Junior School,Agency Placement Expenditure,Schools," 4,172.00 "
07/10/2019,NURSERY CLASS CTGCY,Barnsbury Primary School Academy,Agency Placement Expenditure,Schools," 9,077.00 "
07/10/2019,NURSERY CLASS CTGCY,Beaufort Primary School,Agency Placement Expenditure,Grants-Member Allocs," 17,933.00 "
07/10/2019,PRI ADDIT SEN THRESH,Beaufort Primary School,Agency Placement Expenditure,Grants-Member Allocs," 1,534.00 "
07/10/2019,CHILD ARRANGE ORDERS,Berry Redmond Gordon & Penny,Fees,SGO Assessment, 315.36 
07/10/2019,COUNTY HALL,Bilfinger Europa Facility,Term Contract Inspections,Edu Establishments," 4,627.38 "
07/10/2019,CLAYGATE PRY SCH,Bilfinger Europa Facility,Buyback Inspections,Edu Establishments, 323.50 
07/10/2019,BELL FARM JUN SCH,Bilfinger Europa Facility,Buyback Inspections,Edu Establishments, 323.50 
07/10/2019,BELL FARM JUN SCH,Bilfinger Europa Facility,Buyback Inspections,Edu Establishments, 646.66 
07/10/2019,APPLEWOOD SCHOOL,Bilfinger Europa Facility,Term Contract Inspections,Edu Establishments, 279.17 
07/10/2019,ASHFORD LIB,Bilfinger Europa Facility,Term Contract Inspections,Edu Establishments, 375.13 
07/10/2019,ESHER LIB,Bilfinger Europa Facility,Term Contract Inspections,Edu Establishments, 323.33 
07/10/2019,STYCHENS LANE BLETCH,Bilfinger Europa Facility,Term Contract Inspections,Edu Establishments, 323.33 
07/10/2019,CONSORT HOUSE,Bilfinger Europa Facility,Term Contract Inspections,Edu Establishments, 680.40 
07/10/2019,CLARENDON PRY SCH,Bilfinger Europa Facility,Buyback Inspections,Edu Establishments, 614.09 
07/10/2019,UNIT 4 LEATHERHEAD,Bilfinger Europa Facility,Term Contract Inspections,Edu Establishments, 763.21 
07/10/2019,LIMPSFIELD GRANGE,Bilfinger Europa Facility,Buyback Inspections,Edu Establishments, 306.04 
07/10/2019,NEXUS DAY CENTRE,Bilfinger Europa Facility,Term Contract Inspections,Edu Establishments, 410.03 
07/10/2019,ESHER FIRE STATION,Bilfinger Europa Facility,Term Contract Inspections,Edu Establishments, 305.34 
07/10/2019,DORKING FIRE STATION,Bilfinger Europa Facility,Term Contract Inspections,Edu Establishments, 287.89 
07/10/2019,WELLS HOUSE,Bilfinger Europa Facility,Term Contract Inspections,Edu Establishments, 610.68 
07/10/2019,LEATHERHEAD FIRE STN,Bilfinger Europa Facility,Term Contract Inspections,Edu Establishments, 375.13 
07/10/2019,PAINSHILL FIRE STN,Bilfinger Europa Facility,Term Contract Inspections,Edu Establishments, 323.33 
07/10/2019,Birchlands,Bilfinger Europa Facility,Corporate Responsive Maintenance,Edu Establishments, 253.37 
07/10/2019,NULL,Bilfinger Europa Facility,NULL,Edu Establishments," 2,634.47 "
07/10/2019,WEST EWELL INF SCH,Bilfinger Europa Facility,Buyback Inspections,Edu Establishments, 471.58 
07/10/2019,MERSTHAM PRY SCH,Bilfinger Europa Facility,Buyback Inspections,Edu Establishments, 614.09 
07/10/2019,MERSTHAM PRY SCH,Bilfinger Europa Facility,Buyback Inspections,Edu Establishments, 471.58 
07/10/2019,CLAYGATE PRY SCH,Bilfinger Europa Facility,Buyback Inspections,Edu Establishments," 3,291.31 "
07/10/2019,FAIRMOUNT HOUSE,Bilfinger Europa Facility,Term Contract Inspections,Edu Establishments," 1,564.07 "
07/10/2019,ST JOSEPHS CTH PRY D,Bilfinger Europa Facility,Buyback Inspections,Edu Establishments, 323.33 
07/10/2019,BUCKLAND PRIMARY SCH,Bilfinger Europa Facility,Buyback Inspections,Edu Establishments, 614.09 
07/10/2019,BURHILL CI HERSHAM,Bilfinger Europa Facility,Buyback Inspections,Edu Establishments, 471.58 
07/10/2019,EPSOM DOWNS PRY,Bilfinger Europa Facility,Buyback Inspections,Edu Establishments, 471.58 
07/10/2019,NORTH DOWNS PRY,Bilfinger Europa Facility,Buyback Inspections,Edu Establishments, 471.58 
07/10/2019,OAKWOOD  HORLEY,Bilfinger Europa Facility,Buyback Inspections,Edu Establishments," 1,034.88 "
07/10/2019,THAMES DITTON JUNSCH,Bilfinger Europa Facility,Buyback Inspections,Edu Establishments, 620.93 
07/10/2019,HENRIETTA PARKER CTR,Bilfinger Europa Facility,Term Contract Inspections,Edu Establishments," 1,405.02 "
07/10/2019,AURIOL JUN EWELL,Bilfinger Europa Facility,Buyback Inspections,Edu Establishments, 484.99 
07/10/2019,SPRINGFIELD PRY SCH,Bilfinger Europa Facility,Buyback Inspections,Edu Establishments, 323.33 
07/10/2019,FAIRWAYS,Bilfinger Europa Facility,Term Contract Inspections,Edu Establishments, 261.72 
07/10/2019,STAINES FIRE STATION,Bilfinger Europa Facility,Term Contract Inspections,Edu Establishments, 348.96 
07/10/2019,COUNTY HALL,Bilfinger Europa Facility,Corporate Responsive Maintenance,Edu Establishments," 1,803.98 "
07/10/2019,ASHFORD PARK PRY SCH,Bilfinger Europa Facility,Buyback Inspections,Edu Establishments, 614.09 
07/10/2019,WALLACE FIELDS FIRST,Bilfinger Europa Facility,Buyback Inspections,Edu Establishments, 471.58 
07/10/2019,HINCHLEY WOOD PRY,Bilfinger Europa Facility,Buyback Inspections,Edu Establishments, 458.74 
07/10/2019,ASHFORD YOUTH CENTRE,Bilfinger Europa Facility,Term Contract Inspections,Edu Establishments, 758.21 
07/10/2019,PERFORMING ARTS LIBR,Bilfinger Europa Facility,Term Contract Inspections,Edu Establishments, 305.34 
07/10/2019,WRAY PARK COMPLEX,Bilfinger Europa Facility,Corporate Planned Maintenance,Edu Establishments," 19,765.80 "
07/10/2019,NULL,Bilfinger Europa Facility,NULL,Edu Establishments," 3,443.50 "
07/10/2019,WRAY PARK COMPLEX,Bilfinger Europa Facility,Term Contract Inspections,Edu Establishments," 2,460.17 "
07/10/2019,BURHILL CI HERSHAM,Bilfinger Europa Facility,Buyback Inspections,Edu Establishments, 323.50 
07/10/2019,EPSOM FIRE STATION,Bilfinger Europa Facility,Term Contract Inspections,Edu Establishments, 436.20 
07/10/2019,PUBLIC LIB OFFS WEYB,Bilfinger Europa Facility,Term Contract Inspections,Edu Establishments, 375.13 
07/10/2019,FMR SUNBURY FS,Bilfinger Europa Facility,Term Contract Inspections,Edu Establishments, 261.72 
07/10/2019,FERNLEIGH,Bilfinger Europa Facility,Term Contract Inspections,Edu Establishments, 479.48 
07/10/2019,ASHFORD PARK PRY SCH,Bilfinger Europa Facility,Buyback Inspections,Edu Establishments, 471.58 
07/10/2019,ST MARTINS CEP DORK,Bilfinger Europa Facility,Buyback Inspections,Edu Establishments, 614.09 
07/10/2019,TOWN FARM PRY SCH,Bilfinger Europa Facility,Buyback Inspections,Edu Establishments, 471.58 
07/10/2019,LINDEN BRIDGE SCHOOL,Bilfinger Europa Facility,Buyback Inspections,Edu Establishments, 928.51 
07/10/2019,VALE PRY,Bilfinger Europa Facility,Buyback Inspections,Edu Establishments, 386.88 
07/10/2019,HURST PARK PRY SCH,Bilfinger Europa Facility,Buyback Inspections,Edu Establishments, 959.62 
07/10/2019,RYLSTON WEYBRIDGE,Bilfinger Europa Facility,Term Contract Inspections,Edu Establishments, 330.88 
07/10/2019,ST FAITHS FC,Bilfinger Europa Facility,Term Contract Inspections,Edu Establishments," 1,990.27 "
07/10/2019,GODSTONE FIRE STN,Bilfinger Europa Facility,Corporate Responsive Maintenance,Edu Establishments," 1,026.47 "
07/10/2019,SEC LNG SPT UNITS,Bishop David Brown School,Agency Placement Expenditure,Grants-Member Allocs," 3,441.00 "
07/10/2019,SALP ACADEMY PMTS,Blenheim High School,Agency Placement Expenditure,Schools," 20,407.00 "
07/10/2019,NURSERY CLASS CTGCY,Broadmere Primary Academy,Agency Placement Expenditure,Schools," 10,982.00 "
07/10/2019,PRI GROWING SCHS,Broadmere Primary Academy,Agency Placement Expenditure,Schools," 5,452.00 "
07/10/2019,POST 16 PLACEMENT NW,Cambian Asperger Syndrome Services,Agency Placement Expenditure,SEN Specialist Supp," 21,019.17 "
07/10/2019,SEN ADAPTATIONS,Care & Independence Ltd,Equipment,Green Works," 3,111.00 "
07/10/2019,NW CARE - CPCRT LAC,Careoline Carers Services Ltd,New GR/IR Account,Supervised Contact, 661.50 
07/10/2019,SPECIAL SCHOOLS,Carwarden House Community School,Agency Placement Expenditure,Schools," 45,103.00 "
07/10/2019,SPECIAL SCHS OTHER,Carwarden House Community School,Agency Placement Expenditure,Schools," 4,482.00 "
07/10/2019,AGENCY NON CWD SC,Castle Home Care Ltd,Residential Placements,Res Care," 7,403.40 "
07/10/2019,SPECIAL SCHOOLS,Chart Wood School,Agency Placement Expenditure,Schools," 121,365.00 "
07/10/2019,WEST CWD NONLAC CARE,Cherry Trees,Respite Nursing - Priv,Respite - OP, 640.80 
07/10/2019,WEST CWD NONLAC CARE,Cherry Trees,Residential CWD Placements,Respite - OP," 1,388.40 "
07/10/2019,WEST CWD NONLAC CARE,Cherry Trees,Residential CWD Placements,Respite - OP," 1,254.90 "
07/10/2019,WEST CWD NONLAC CARE,Cherry Trees,Residential CWD Placements,Respite - OP, 534.00 
07/10/2019,WEST CWD NONLAC CARE,Cherry Trees,Respite Nursing - Priv,Respite - OP, 320.40 
07/10/2019,WEST CWD NONLAC CARE,Cherry Trees,Respite Nursing - Priv,Respite - OP, 427.20 
07/10/2019,WEST CWD NONLAC CARE,Cherry Trees,Respite Nursing - Priv,Respite - OP," 1,802.25 "
07/10/2019,WEST CWD NONLAC CARE,Cherry Trees,Residential CWD Placements,Respite - OP, 801.00 
07/10/2019,OCCUPATIONAL THERAPY,Children In Motion Ltd,Other Community Care - Priv,Occupational Therapy, 414.94 
07/10/2019,NULL,Clarke Roofing Southern Ltd,NULL,"Comm, Res & Inv Prop"," 84,993.58 "
07/10/2019,NULL,Clarke Roofing Southern Ltd,NULL,"Comm, Res & Inv Prop"," 24,983.18 "
07/10/2019,SEC ADDIT SEN THRESH,Cobham Free School,Agency Placement Expenditure,Grants-Member Allocs," 4,187.00 "
07/10/2019,AGENCY NON CWD SC,Compass Fostering South Ltd,Foster Care Placements,Fostering IFA," 2,661.96 "
07/10/2019,DRCT CSTS CONC FARES,Compass Travel,Contractor,Local Bus," 5,645.66 "
07/10/2019,PRI GROWING SCHS,Connaught Junior School,Agency Placement Expenditure,Schools," 1,817.00 "
07/10/2019,NULL,Corrigenda Ltd,NULL,General Build Maint," 2,345.54 "
07/10/2019,PR HN TOP UP UNALLOC,Cuddington Community Primary School,Agency Placement Expenditure,Schools," 6,158.00 "
07/10/2019,NURSERY CLASS CTGCY,Cuddington Croft Primary School,Agency Placement Expenditure,Schools," 8,956.00 "
07/10/2019,SIT,Cyfas Systems Ltd,Telecommunication Charges,Fire Mobilisation an," 1,816.36 "
07/10/2019,PRI GROWING SCHS,Danetree Junior School,Agency Placement Expenditure,Schools," 10,282.00 "
07/10/2019,NURSERY CLASS CTGCY,Danetree Junior School,Agency Placement Expenditure,Schools," 18,177.00 "
07/10/2019,Barnfield Res,DDC Dolphin Ltd,Security Alarm Maintenance,Cat Equip Supply&Fit, 598.98 
07/10/2019,SEC HN TOPUP UNALLOC,De Stafford School,Agency Placement Expenditure,Schools," 1,136.00 "
07/10/2019,FC SE VETERANS HUB,Dover District Council,Grants-Third Sector and Voluntary Orgs/Charities,Grants - Community," 4,800.00 "
07/10/2019,PR HN TOP UP UNALLOC,Dovers Green School,Agency Placement Expenditure,Schools," 7,318.00 "
07/10/2019,DRCT CSTS CONC FARES,East Surrey Rural Transport Partner,Contractor,Multi-purpose Veh, 556.75 
07/10/2019,C'SIDE PROJECT DEV,East Sussex County Council,Subscriptions to an Organisation,Local Government," 2,900.00 "
07/10/2019,SEC LNG SPT UNITS,Epsom & Ewell High School,Agency Placement Expenditure,Staff Training," 3,441.00 "
07/10/2019,SEC HN TOPUP UNALLOC,Epsom & Ewell High School,Agency Placement Expenditure,Staff Training," 7,754.00 "
07/10/2019,SALP ACADEMY PMTS,Epsom & Ewell High School,Agency Placement Expenditure,Staff Training," 19,301.00 "
07/10/2019,PRI GROWING SCHS,Esher COE High School,Agency Placement Expenditure,Schools," 5,260.00 "
07/10/2019,AGENCY NON CWD SC,Fairways Care (UK) Ltd,Residential Placements,Fostering IFA, 600.10 
07/10/2019,NULL,Farmwood Mechanical & Electrical Se,NULL,"Comm, Res & Inv Prop", 909.60 
07/10/2019,PLD TRANSITION,Fives & Sixes Taxis,Creditors Control Account,Multi-purpose Veh," 1,560.00 "
07/10/2019,EPSOM & EWELL CARE L,Fives & Sixes Taxis,Creditors Control Account,Multi-purpose Veh," 3,684.00 "
07/10/2019,SW TRANSPORT,Fives & Sixes Taxis,Creditors Control Account,Multi-purpose Veh, 312.00 
07/10/2019,EPSOM & EWELL CARE L,Fives & Sixes Taxis,Creditors Control Account,Multi-purpose Veh," 1,135.20 "
07/10/2019,TRANSPORT,Fixings & Power Tool Center,Day To Day Maintenance,Fire Serv Spec Equip, 351.00 
07/10/2019,SW CARE - LAC,Gemini Taxis,Hire of Vehicles,Multi-purpose Veh," 1,920.00 "
07/10/2019,SW CARE - LAC,Gemini Taxis,Hire of Vehicles,Multi-purpose Veh," 1,860.00 "
07/10/2019,STREETWORKS TEAM,GeoPlace LLP,Fees,Subscriptions, 450.00 
07/10/2019,SEC HN TOPUP UNALLOC,George Abbot School -Academy,Agency Placement Expenditure,Schools," 4,101.00 "
07/10/2019,SALP ACADEMY PMTS,Glyn School,Agency Placement Expenditure,Info Advice Guidance," 19,374.00 "
07/10/2019,SEC ADDIT SEN THRESH,Glyn School,Agency Placement Expenditure,Info Advice Guidance, 500.00 
07/10/2019,PRI ADDIT SEN THRESH,Goldsworth Primary School,Agency Placement Expenditure,Schools," 2,128.00 "
07/10/2019,SEC ADDIT SEN THRESH,Gordons School Academy Trust,Agency Placement Expenditure,Schools," 3,579.00 "
07/10/2019,ORB FIN ASST DIR,Grant Thornton UK LLP,Subscriptions to an Organisation,Audit Services," 15,000.00 "
07/10/2019,NURSERY CLASS CTGCY,Guildford Grove Primary School,Agency Placement Expenditure,Schools," 11,429.00 "
07/10/2019,PR HN TOP UP UNALLOC,Guildford Grove Primary School,Agency Placement Expenditure,Schools," 18,588.00 "
07/10/2019,ADOPTION SUPP FUND,Heads & Hearts Ltd,Other Community Care - Priv,Psychiatric Therapy, 405.00 
07/10/2019,Family Resilience (E,Hertfordshire County Council,Local Authorities,Local Government," 2,100.00 "
07/10/2019,NURSERY CLASS CTGCY,Highfield South Farnham Primary Sch,Agency Placement Expenditure,Schools," 13,691.00 "
07/10/2019,NW AGENCY PLACE-ED,Hillcrest Care Services Ltd,Agency Placement Expenditure,Residential - MH," 1,494.86 "
07/10/2019,NW AGENCY PLACE-ED,Hillcrest Care Services Ltd,Agency Placement Expenditure,Residential - MH," 26,204.39 "
07/10/2019,AGENCY NON CWD SC,Hillcrest Children Services 2 Ltd,Residential Placements,Res Care," 13,928.70 "
07/10/2019,AGENCY NON CWD EDUC,Hillcrest Children Services 2 Ltd,Residential Placements,Res Care," 4,671.30 "
07/10/2019,NURSERY CLASS CTGCY,Hillcroft Primary School,Agency Placement Expenditure,Schools," 10,600.00 "
07/10/2019,SEC HN TOPUP UNALLOC,Hinchley Wood School,Agency Placement Expenditure,Grants-Member Allocs," 21,176.00 "
07/10/2019,SE CARE - CPCRT LAC,HM Courts & Tribunals Service,Legal Expenses,Court Fees," 2,055.00 "
07/10/2019,NW CARE - CPCRT LAC,HM Courts & Tribunals Service,Legal Expenses,Court Fees," 2,055.00 "
07/10/2019,NURSERY CLASS CTGCY,Holmesdale Community Infant School,Agency Placement Expenditure,Schools," 11,323.00 "
07/10/2019,PRI ADDIT SEN THRESH,Holmesdale Community Infant School,Agency Placement Expenditure,Schools," 1,040.00 "
07/10/2019,WEST CWD NONLAC CARE,Hughes Mini Services,Creditors Control Account,Multi-purpose Veh, 390.00 
07/10/2019,PSD TRANSITION,Hughes Mini Services,Creditors Control Account,Multi-purpose Veh," 1,820.00 "
07/10/2019,WEST CWD NONLAC CARE,Hughes Mini Services,Creditors Control Account,Multi-purpose Veh," 1,430.00 "
07/10/2019,NE AGENCY PLACE-ED,I Can Services Ltd,Agency Placement Expenditure,Sup Living Children," 9,512.40 "
07/10/2019,EAST CWD NONLAC CARE,I Can Services Ltd,Residential CWD Placements,Sup Living Children," 1,716.00 "
07/10/2019,SW AGENCY PLACE-ED,I Can Services Ltd,Agency Placement Expenditure,Sup Living Children," 6,069.68 "
07/10/2019,CENTRAL COMMS,Idsall Ltd,Consultants,Professional Project," 3,865.80 "
07/10/2019,SENCPD PSSS,Interpreting Pathways,Training Expenses - External General,Staff Training, 700.00 
07/10/2019,WEST CWD NONLAC CARE,Interserve Healthcare Ltd,Home Care - Priv,Grants - Community, 298.80 
07/10/2019,WEST CWD NONLAC CARE,Interserve Healthcare Ltd,Home Care - Priv,Grants - Community, 298.80 
07/10/2019,BUSINESS IMPROVEMNTS,J & J Franks Ltd,Third Party Payments-Other Agencies,Fire Service Vehicle, 678.00 
07/10/2019,PSSS PD,James Leckey Design Ltd,Equipment,Green Works, 276.00 
07/10/2019,SEC HN TOPUP UNALLOC,Jubilee High Academy,Agency Placement Expenditure,Schools," 1,646.00 "
07/10/2019,NURSERY CLASS CTGCY,Kenyngton Manor Primary School,Agency Placement Expenditure,Schools," 17,007.00 "
07/10/2019,NULL,Keoghs LLP,NULL,Non-Staff Expenses, 553.00 
07/10/2019,Keswick Res,Keswick Residential Home,Day To Day Maintenance,Non-Staff Expenses, 526.10 
07/10/2019,COUNTY HALL,Kier Facilities Services Ltd,Corporate Responsive Maintenance,General Build Maint," 136,723.37 "
07/10/2019,KINGS INTERNAT SCH,Kings International College,Ctkers Hndmn Cleanrs,Schools," 8,583.28 "
07/10/2019,KNAPHILL SCHOOLS FED,Knaphill Federation of Schools,Support Staff,Schools," 15,240.46 "
07/10/2019,NURSERY CLASS CTGCY,Lakeside Primary School,Agency Placement Expenditure,Schools," 11,508.00 "
07/10/2019,NURSERY CLASS CTGCY,Lime Tree Primary,Agency Placement Expenditure,Schools," 9,919.00 "
07/10/2019,SPECIAL SCHOOLS,Linden Bridge School,Agency Placement Expenditure,Grants-Member Allocs," 142,593.00 "
07/10/2019,SPECIAL SCHOOLS,Linden Bridge School,Agency Placement Expenditure,Grants-Member Allocs," 6,667.00 "
07/10/2019,SPECIAL SCHS OTHER,Linden Bridge School,Agency Placement Expenditure,Grants-Member Allocs," 8,829.00 "
07/10/2019,FC SE VETERANS HUB,Littlehampton Armed Forces Veterans,Grants-Third Sector and Voluntary Orgs/Charities,Grants - Community," 1,460.00 "
07/10/2019,PLANNING POLICY TEAM,London South Bank University,Training Expenses - External General,Staff Training," 6,935.00 "
07/10/2019,TRANSPRT DEV CONTROL,London South Bank University,Training Expenses - External General,Staff Training," 6,935.00 "
07/10/2019,PR HN TOP UP UNALLOC,Loseley Fields Primary School,Agency Placement Expenditure,Schools," 3,789.00 "
07/10/2019,PRI GROWING SCHS,Loseley Fields Primary School,Agency Placement Expenditure,Schools," 9,601.00 "
07/10/2019,SURREY HEATH,Maltaward (Barriers) Ltd,Security Alarm Maintenance,General Build Maint," 1,177.70 "
07/10/2019,SE AGENCY PLACE-ED,Manor Green College,Local Authorities,SEN Specialist Supp," 2,093.00 "
07/10/2019,SE AGENCY PLACE-ED,Manor Green College,Local Authorities,SEN Specialist Supp," 2,093.00 "
07/10/2019,SE AGENCY PLACE-ED,Manor Green College,Local Authorities,SEN Specialist Supp," 10,093.00 "
07/10/2019,NURSERY CLASS CTGCY,Marden Lodge Primary School,Agency Placement Expenditure,Schools," 10,984.00 "
07/10/2019,NURSERY CLASS CTGCY,Maybury Primary School,Agency Placement Expenditure,Schools," 12,572.00 "
07/10/2019,NURSERY CLASS CTGCY,Meadhurst Primary School,Agency Placement Expenditure,Grants-Member Allocs," 17,770.00 "
07/10/2019,PR HN TOP UP UNALLOC,Meadhurst Primary School,Agency Placement Expenditure,Grants-Member Allocs," 3,751.00 "
07/10/2019,OCCUPATIONAL HLTH TM,Medigold Health Consultancy Ltd,New GR/IR Account,Venue Hire," 4,462.56 "
07/10/2019,NURSERY CLASS CTGCY,Merstham Primary School,Agency Placement Expenditure,Schools," 4,220.00 "
07/10/2019,NULL,My Staff Shop,NULL,Staff Benefits," 6,220.00 "
07/10/2019,NURSERY CLASS CTGCY,Mytchett Primary School,Agency Placement Expenditure,Schools," 10,321.00 "
07/10/2019,SW ALTERNATIVE SEN,Newcross Healthcare Solutions Ltd,Home Care - Priv,Youth Offending Serv, 651.60 
07/10/2019,SW ALTERNATIVE SEN,Newcross Healthcare Solutions Ltd,Home Care - Priv,Youth Offending Serv, 651.60 
07/10/2019,PR HN TOP UP UNALLOC,Northmead Junior School,Agency Placement Expenditure,Schools," 3,557.00 "
07/10/2019,TECH DELIVERY,NTA Monitor Ltd,Computer Hardware,Subscriptions, 990.00 
07/10/2019,Family Resilience (E,Number 10 Interim Ltd,Agency Staff & Contractors,Prof OM Cover," 2,970.00 "
07/10/2019,GATWICK DIAMOND PH 3,Odyssey Markides LLP,Fees,M-D (Roads)," 1,800.00 "
07/10/2019,MGMT - ORBIS,Orange - Equipment,Telecommunication Charges,Mobile User Devices, 672.00 
07/10/2019,ORB BLDNG SURVEYORS,Orange - Equipment,Telecommunication Charges,Mobile User Devices, 336.00 
07/10/2019,SPELTHORNE LOC,Orange - Equipment,Telecommunication Charges,Mobile User Devices, 672.00 
07/10/2019,DOLS TEAM,Orange - Equipment,Telecommunication Charges,Mobile User Devices, 336.00 
07/10/2019,NURSERY CLASS CTGCY,Ottershaw COE School,Agency Placement Expenditure,Non-Staff Expenses," 10,704.00 "
07/10/2019,CSF STRAT RISK MGMT,Outdoor Education Advisers Panel Lt,Subscriptions to an Organisation,Subscriptions, 312.00 
07/10/2019,SW ALTERNATIVE SEN,Oxford Home Schooling,Agency Placement Expenditure,SEN Specialist Supp," 1,075.00 "
07/10/2019,SEC HN TOPUP UNALLOC,Oxted School,Agency Placement Expenditure,Schools," 18,692.00 "
07/10/2019,DOLS TEAM,Phillips Brown Social Care Ltd,Fees,Specialist Serv, 311.34 
07/10/2019,PRI ADDIT SEN THRESH,Pirbright Village Primary School,Agency Placement Expenditure,Schools, 724.00 
07/10/2019,NW CARE - CPCRT NONL,Places for People Living+,Independent Living Placements,Sup Living Children," 1,577.08 "
07/10/2019,SPECIAL SCHOOLS,Pond Meadow School,Agency Placement Expenditure,Short break," 111,928.00 "
07/10/2019,SPECIAL SCHOOLS,Pond Meadow School,Agency Placement Expenditure,Short break," 10,000.00 "
07/10/2019,SOLD PROF TRNG DELV,Primary Science Teaching Trust Trad,Subsistence and Conference Expenses,Conference Attend, 300.00 
07/10/2019,PR HN TOP UP UNALLOC,Pyrcroft Grange Primary School,Agency Placement Expenditure,Schools," 10,570.00 "
07/10/2019,NURSERY CLASS CTGCY,Pyrford COE (A) Primary School,Agency Placement Expenditure,Schools," 12,602.00 "
07/10/2019,PRI GROWING SCHS,Pyrford COE (A) Primary School,Agency Placement Expenditure,Schools," 8,030.00 "
07/10/2019,HOPE SERVICE,Redacted Personal Data,Training Expenses - External General,School Support Serv," 1,625.00 "
07/10/2019,C&C SAFER & STRONGER,Redacted Personal Data,Miscellaneous Staff Travel,Staff Expenses, 295.95 
07/10/2019,C&C SAFER & STRONGER,Redacted Personal Data,Miscellaneous Staff Travel,Staff Expenses, 272.60 
07/10/2019,C&C SAFER & STRONGER,Redacted Personal Data,Miscellaneous Staff Travel,Staff Expenses, 295.30 
07/10/2019,DOLS TEAM,Redacted Personal Data,Fees,Specialist Serv, 262.15 
07/10/2019,C&C SAFER & STRONGER,Redacted Personal Data,Miscellaneous Staff Travel,Staff Expenses, 547.08 
07/10/2019,UASC 18+ CARE,Redacted Personal Data,Equipment,Individual - NEC, 327.00 
07/10/2019,NIL REC PF 18+ ASYLM,Redacted Personal Data,Independent Living Placements,Invoicing Plan Req.," 1,290.00 "
07/10/2019,C&C SAFER & STRONGER,Redacted Personal Data,Miscellaneous Staff Travel,Staff Expenses, 915.04 
07/10/2019,SE ALTERNATIVE SEN,Redacted Personal Data,Agency Placement Expenditure,Invoicing Plan Req., 720.00 
07/10/2019,NE CARE - CPCRT NONL,Redacted Personal Data,Other Community Care - Vol,Invoicing Plan Req., 993.32 
07/10/2019,C&C SAFER & STRONGER,Redacted Personal Data,Miscellaneous Staff Travel,Staff Expenses, 301.52 
07/10/2019,C&C SAFER & STRONGER,Redacted Personal Data,Miscellaneous Staff Travel,Staff Expenses, 655.87 
07/10/2019,C&C SAFER & STRONGER,Redacted Personal Data,Miscellaneous Staff Travel,Staff Expenses, 303.90 
07/10/2019,C&C SAFER & STRONGER,Redacted Personal Data,Miscellaneous Staff Travel,Staff Expenses, 273.83 
07/10/2019,C&C SAFER & STRONGER,Redacted Personal Data,Miscellaneous Staff Travel,Staff Expenses, 279.00 
07/10/2019,C&C SAFER & STRONGER,Redacted Personal Data,Miscellaneous Staff Travel,Staff Expenses, 288.52 
07/10/2019,C&C SAFER & STRONGER,Redacted Personal Data,Miscellaneous Staff Travel,Staff Expenses, 356.95 
07/10/2019,C&C SAFER & STRONGER,Redacted Personal Data,Miscellaneous Staff Travel,Staff Expenses, 292.15 
07/10/2019,C&C SAFER & STRONGER,Redacted Personal Data,Miscellaneous Staff Travel,Staff Expenses, 643.75 
07/10/2019,C&C SAFER & STRONGER,Redacted Personal Data,Miscellaneous Staff Travel,Staff Expenses, 284.85 
07/10/2019,C&C SAFER & STRONGER,Redacted Personal Data,Miscellaneous Staff Travel,Staff Expenses, 253.85 
07/10/2019,SW UASC UNDER 18,Redacted Personal Data,Children Act Sec 24 Payments,Adult direct payment, 509.00 
07/10/2019,NRPF 18+ CARE,Redacted Personal Data,Children Act Sec 24 Payments,Invoicing Plan Req., 289.50 
07/10/2019,NE CARE - CPCRT NONL,Redacted Personal Data,Other Community Care - Vol,Invoicing Plan Req., 960.00 
07/10/2019,CWD CONTRACTS/SLA'S,Redacted Personal Data,Direct Payments - Carers of Disabled Children,Invoicing Plan Req., 300.00 
07/10/2019,NURSERY CLASS CTGCY,Riverbridge Primary School,Agency Placement Expenditure,Schools," 14,923.00 "
07/10/2019,SEC HN TOPUP UNALLOC,Rodborough Technology College Acade,Agency Placement Expenditure,Schools," 20,127.00 "
07/10/2019,SALP ACADEMY PMTS,Rosebery School,Agency Placement Expenditure,Schools," 17,926.00 "
07/10/2019,NE IPSB - OUT COUNTY,Rowan Preparatory School,Agency Placement Expenditure,Schools, 424.00 
07/10/2019,SEC HN TOPUP UNALLOC,Salesian School,Agency Placement Expenditure,Schools," 27,770.00 "
07/10/2019,NURSERY CLASS CTGCY,Sandcross Primary School,Agency Placement Expenditure,Schools," 11,991.00 "
07/10/2019,PRI GROWING SCHS,Sandcross Primary School,Agency Placement Expenditure,Schools," 6,217.00 "
07/10/2019,NURSERY CLASS CTGCY,Sandringham School & Little Badgers,Agency Placement Expenditure,Schools," 10,430.00 "
07/10/2019,PRI ADDIT SEN THRESH,Saxon Primary School,Agency Placement Expenditure,Schools, 498.00 
07/10/2019,PRI GROWING SCHS,Saxon Primary School,Agency Placement Expenditure,Schools," 8,365.00 "
07/10/2019,NURSERY CLASS CTGCY,Sayes Court School,Agency Placement Expenditure,Schools," 8,682.00 "
07/10/2019,Arundel Res,SCC Arundel Hostel HFE,Refreshment Costs,Supp Living - MH, 445.50 
07/10/2019,ASH MANOR SCHOOL,SCC Ash Manor School,Support Staff,Schools," 24,675.75 "
07/10/2019,BAGSHOT INF,SCC Bagshot Infant School,Training Expenses - External General,Schools," 3,243.58 "
07/10/2019,BROOKLANDS SCHOOL,SCC Brooklands School,Recruitment And Retention,Schools," 6,811.89 "
07/10/2019,BUCKLAND PRIMARY SCH,SCC Buckland Primary School,Agency Supply Cover Teaching,Schools," 3,722.72 "
07/10/2019,CLIFTON HILL SCHOOL,SCC Clifton Hill School,Agency Supply Cover Teaching,Schools," 3,489.68 "
07/10/2019,DAWNAY SCHOOL,SCC Dawnay School,Recruitment And Retention,Schools," 1,916.20 "
07/10/2019,DORMANSLAND PRY,SCC Dormansland Primary School,Training Expenses - External General,Schools," 1,648.93 "
07/10/2019,ENGLEFIELD GREEN CI,SCC Englefield Green Infant School,Recruitment And Retention,Nursery," 3,635.68 "
07/10/2019,GREVILLE PRY,SCC Greville Primary School,Agency Supply Cover Teaching,Grants-Member Allocs," 9,552.82 "
07/10/2019,LIMPSFIELD GRANGE,SCC Limpsfield Grange School,Supply Cover Delegated Budget,Schools," 4,927.85 "
07/10/2019,MANBY LODGE INF,SCC Manby Lodge Infant School,Agency Supply Cover Teaching,Schools," 6,284.30 "
07/10/2019,MANORFIELD P&N SCH,SCC Manorfield Primary & Nursery Sc,Recruitment And Retention,Schools," 1,497.47 "
07/10/2019,OUR LADY ROSARY RCP,SCC Our Lady Of The Rosary RC Prima,Supply Cover Delegated Budget,Schools," 2,942.91 "
07/10/2019,PHILIP SOUTHCOTE SCH,SCC Philip Southcote School,Agency Supply Cover Teaching,Schools," 12,897.33 "
07/10/2019,SCOTT BROADWOOD CEI,SCC Scott Broadwood COE(A) Infant S,Midday Assistants,Schools, 519.94 
07/10/2019,SCOTT BROADWOOD CEI,SCC Scott Broadwood COE(A) Infant S,Midday Assistants,Schools, 263.09 
07/10/2019,ST MARTINS CEP DORK,SCC St Martins COE (C) Primary Scho,Agency Supply Cover Teaching,Schools," 3,989.04 "
07/10/2019,ST MARYS CEI SHACKFD,SCC St Marys COE (VC) Infant School,Training Expenses - External General,Schools, 526.96 
07/10/2019,ST PETERS CATH PRY L,SCC St Peter's RC Primary School,Supply Cover Delegated Budget,Schools," 3,559.60 "
07/10/2019,BREWERS HSE STAINES,Secure Site UK Ltd,Security Alarm Maintenance,Security Equipment," 1,058.88 "
07/10/2019,FMR SUNBURY FS,Secure Site UK Ltd,Security Alarm Maintenance,Security Equipment, 456.00 
07/10/2019,FMR MERSTHAM LIBRARY,Secure Site UK Ltd,Security Alarm Maintenance,Security Equipment, 736.56 
07/10/2019,FMR PORTESBERY SCH,Secure Site UK Ltd,Security Alarm Maintenance,Security Equipment," 1,612.80 "
07/10/2019,SE CARE - CPCRT LAC,Seraphim Group Ltd,Independent Living Placements,Subscriptions, 288.00 
07/10/2019,ORBIS TRAINING PROP,Shelton Development Services Ltd,Computer Software,Estates Mgt Services," 5,760.00 "
07/10/2019,SW CARE - LAC,Sonic Carz Epsom,Non-Staff Related Transport Costs,Taxi Hire (SEN Only), 260.00 
07/10/2019,NURSERY CLASS CTGCY,South Camberley Primary & Nursery S,Agency Placement Expenditure,Schools," 19,569.00 "
07/10/2019,C&C SAFER & STRONGER,Spelthorne Borough Council,Grants-Third Sector and Voluntary Orgs/Charities,Grants-Member Allocs," 3,000.00 "
07/10/2019,NURSERY CLASS CTGCY,Springfield Primary School & Nurser,Agency Placement Expenditure,Schools," 11,359.00 "
07/10/2019,PRI GROWING SCHS,St Albans Catholic Primary School,Agency Placement Expenditure,Schools," 8,278.00 "
07/10/2019,PRI ADDIT SEN THRESH,St Albans Catholic Primary School,Agency Placement Expenditure,Schools," 2,197.00 "
07/10/2019,NURSERY CLASS CTGCY,St Charles Borromeo Catholic Primar,Agency Placement Expenditure,Schools," 9,893.00 "
07/10/2019,ACL CENTRAL EXP,St John Ambulance Surrey,Training Expenses - External General,Multi-purpose Veh, 498.00 
07/10/2019,NURSERY CLASS CTGCY,St Johns COE Primary School,Agency Placement Expenditure,Schools," 9,699.00 "
07/10/2019,PRI NURTURE &OUTRCH,St Johns COE Primary School,Agency Placement Expenditure,Schools," 2,969.00 "
07/10/2019,NURSERY CLASS CTGCY,St Johns Primary School,Agency Placement Expenditure,Schools," 11,914.00 "
07/10/2019,ST JUDES CE SCHOOL,St Judes COE Junior School,Recruitment And Retention,Schools," 2,762.68 "
07/10/2019,NURSERY CLASS CTGCY,St Marks & All Saints COFE Primary,Agency Placement Expenditure,Schools," 1,806.00 "
07/10/2019,BUSINESS IMPROVEMNTS,St Marys Church Centre,Venue Costs (including Hire of Rooms),Venue Hire, 527.00 
07/10/2019,PRI GROWING SCHS,St Marys COE (A) Primary School,Agency Placement Expenditure,Schools," 2,152.00 "
07/10/2019,NW CARE - CPCRT LAC,St Marys Nursery,Third Party Payments-Other Agencies,Nursery, 510.00 
07/10/2019,NURSERY CLASS CTGCY,St Matthews School Redhill,Agency Placement Expenditure,Grants-Member Allocs," 10,332.00 "
07/10/2019,PR HN TOP UP UNALLOC,St Matthews School Redhill,Agency Placement Expenditure,Grants-Member Allocs," 7,291.00 "
07/10/2019,ST PAUL RC COLL,St Paul's Roman Catholic College,Ctkers Hndmn Cleanrs,Schools," 20,154.57 "
07/10/2019,PRIMARY SCHOOLS,St Polycarps RC Primary School,Agency Placement Expenditure,Grants-Member Allocs, 850.00 
07/10/2019,PRIMARY SCHOOLS,St Polycarps RC Primary School,Agency Placement Expenditure,Grants-Member Allocs," 41,170.00 "
07/10/2019,PR HN TOP UP UNALLOC,St Stephens COE Primary School,Agency Placement Expenditure,Schools," 8,509.00 "
07/10/2019,NURSERY CLASS CTGCY,St Stephens COE Primary School,Agency Placement Expenditure,Schools," 8,721.00 "
07/10/2019,PRI NURTURE &OUTRCH,St Thomas of Canterbury RC Primary,Agency Placement Expenditure,Schools," 3,124.00 "
07/10/2019,PRIMARY SCHOOLS,St Thomas of Canterbury RC Primary,Agency Placement Expenditure,Schools," 40,277.00 "
07/10/2019,NURSERY CLASS CTGCY,Stanwell Fields COE Primary School,Agency Placement Expenditure,Schools," 4,896.00 "
07/10/2019,CARE LEAVER PACKAGES,Step Ahead Services Ltd,Independent Living Placements,Youth Offending Serv," 1,437.82 "
07/10/2019,CARE LEAVER PACKAGES,Step Ahead Services Ltd,Independent Living Placements,Youth Offending Serv," 1,485.74 "
07/10/2019,CARE LEAVER PACKAGES,Step Ahead Services Ltd,Independent Living Placements,Youth Offending Serv," 1,437.82 "
07/10/2019,CARE LEAVER PACKAGES,Step Ahead Services Ltd,Independent Living Placements,Youth Offending Serv," 1,485.74 "
07/10/2019,NURSERY CLASS CTGCY,Stoughton Infant School,Agency Placement Expenditure,Schools," 17,380.00 "
07/10/2019,SEC HN TOPUP UNALLOC,Sunbury Manor School,Agency Placement Expenditure,Schools," 1,648.00 "
07/10/2019,Haven Staines,Surrey & Borders Partnership NHS Tr,Third Party Payments-Other Agencies,Residential - MH," 9,728.43 "
07/10/2019,Haven Staines,Surrey & Borders Partnership NHS Tr,Third Party Payments-Other Agencies,Residential - MH," 9,807.32 "
07/10/2019,Haven Staines,Surrey & Borders Partnership NHS Tr,Third Party Payments-Other Agencies,Residential - MH," 9,777.33 "
07/10/2019,Haven Staines,Surrey & Borders Partnership NHS Tr,Third Party Payments-Other Agencies,Residential - MH," 9,357.11 "
07/10/2019,Haven Staines,Surrey & Borders Partnership NHS Tr,Third Party Payments-Other Agencies,Residential - MH," 10,248.94 "
07/10/2019,TRANSPORT,Sutton & East Surrey Water Plc - Wo,Operational Fire Equipment,Utilities - Water," 1,665.14 "
07/10/2019,TRANSPORT,Sutton & East Surrey Water Plc - Wo,Operational Fire Equipment,Utilities - Water, 411.06 
07/10/2019,TRANSPORT,Sutton & East Surrey Water Plc - Wo,Operational Fire Equipment,Utilities - Water, 411.05 
07/10/2019,FMR LONGMEAD AEC,SWT Ecology Services Ltd,Corporate Planned Maintenance,M-D (Property)," 5,760.00 "
07/10/2019,NURSERY CLASS CTGCY,Sythwood Primary School,Agency Placement Expenditure,Schools," 24,451.00 "
07/10/2019,PR HN TOP UP UNALLOC,Sythwood Primary School,Agency Placement Expenditure,Schools," 7,990.00 "
07/10/2019,MEMBER LH FUND SYH,T Earis Countryside Ltd,Upkeep of Grounds,Green Works," 4,363.20 "
07/10/2019,CONDTN REPS T1 NPR,T Earis Countryside Ltd,Upkeep of Grounds,Green Works," 3,883.02 "
07/10/2019,PR HN TOP UP UNALLOC,Tandridge Learning Trust,Agency Placement Expenditure,Schools," 4,892.00 "
07/10/2019,NURSERY CLASS CTGCY,Tandridge Learning Trust,Agency Placement Expenditure,Schools," 6,980.00 "
07/10/2019,SPECIAL SCHOOLS,The Abbey School,Agency Placement Expenditure,School Support Serv," 43,143.00 "
07/10/2019,SPECIAL SCHOOLS,The Abbey School,Agency Placement Expenditure,School Support Serv," 6,667.00 "
07/10/2019,SPECIAL SCHS OTHER,The Abbey School,Agency Placement Expenditure,School Support Serv," 4,482.00 "
07/10/2019,WILLIAM COBBETT JUN,The Acme Facilities Group Ltd,Equipment,Cat Equip Supply&Fit, 831.60 
07/10/2019,SEC LNG SPT UNITS,The Beacon School,Agency Placement Expenditure,Schools," 3,441.00 "
07/10/2019,SEC FAIR ACCESS,The Beacon School,Third Party Payments-Other Agencies,Schools," 1,000.00 "
07/10/2019,PR HN TOP UP UNALLOC,The Eastwick Schools,Agency Placement Expenditure,Grants-Member Allocs," 21,759.00 "
07/10/2019,NURSERY CLASS CTGCY,The Federation Of Pine Ridge & Lorr,Agency Placement Expenditure,Grants-Member Allocs," 12,671.00 "
07/10/2019,PR HN TOP UP UNALLOC,The Grove Academy,Agency Placement Expenditure,Grants-Member Allocs," 4,285.00 "
07/10/2019,PR HN TOP UP UNALLOC,The Hermitage School,Agency Placement Expenditure,Schools," 5,517.00 "
07/10/2019,TRAINING AND DEV,The Institute of Fire Engineers,Training Expenses - External General,Subscriptions, 528.00 
07/10/2019,NULL,The McAvoy Group Ltd,NULL,Edu Establishments," 179,256.00 "
07/10/2019,NULL,The McAvoy Group Ltd,NULL,Edu Establishments," 62,739.60 "
07/10/2019,TRANSPORT,The Police & Crime Commissioner,Operational Premises,Banking Services," 11,479.32 "
07/10/2019,SPECIAL SCHOOLS,The Ridgeway School,Agency Placement Expenditure,Schools," 100,718.00 "
07/10/2019,PRI ADDIT SEN THRESH,The Vale Primary School,Agency Placement Expenditure,Schools," 1,273.00 "
07/10/2019,SEC LNG SPT UNITS,The Warwick School,Agency Placement Expenditure,Schools," 3,441.00 "
07/10/2019,PRI ADDIT SEN THRESH,The Weald C of E Primary School,Agency Placement Expenditure,Schools," 3,873.00 "
07/10/2019,THERFIELD CS,Therfield School,Contract Catering,Schools, 293.64 
07/10/2019,SEC HN TOPUP UNALLOC,Therfield School,Agency Placement Expenditure,Schools," 3,573.00 "
07/10/2019,SEC LNG SPT UNITS,Therfield School,Agency Placement Expenditure,Schools," 3,441.00 "
07/10/2019,SEC LNG SPT UNITS,Thomas Knyvett College,Agency Placement Expenditure,Grants-Member Allocs," 3,441.00 "
07/10/2019,PSSS ICT SUPPORT,Tobii Dynavox Ltd,Equipment,SEN Equipment," 1,340.40 "
07/10/2019,SEC HN TOPUP UNALLOC,Tomlinscote School & Sixth Form Col,Agency Placement Expenditure,Schools, 847.00 
07/10/2019,TRANSITION TEAM,Transition Team Petty Cash,Fees,NT - Internal Pymt, 414.01 
07/10/2019,NURSERY CLASS CTGCY,Walton Oak Primary School,Agency Placement Expenditure,Schools," 13,469.00 "
07/10/2019,TRANSPORT,Watson Fuels,Vehicle Running Costs,Veh Repair & Maint," 4,741.03 "
07/10/2019,PRI GROWING SCHS,Waverley Abbey COE Junior School,Agency Placement Expenditure,Schools," 2,272.00 "
07/10/2019,PRI GROWING SCHS,West Ewell Primary School & Nursery,Agency Placement Expenditure,Schools," 1,125.00 "
07/10/2019,PR HN TOP UP UNALLOC,West Ewell Primary School & Nursery,Agency Placement Expenditure,Schools," 4,648.00 "
07/10/2019,NURSERY CLASS CTGCY,West Ewell Primary School & Nursery,Agency Placement Expenditure,Schools," 19,701.00 "
07/10/2019,SPECIAL SCHOOLS,West Hill School,Agency Placement Expenditure,Schools," 52,946.00 "
07/10/2019,WEST CWD NONLAC CARE,White Lodge Centre,Respite Nursing - Priv,Day Care - PSD," 1,849.00 "
07/10/2019,WEST CWD NONLAC CARE,White Lodge Centre,Respite Nursing - Priv,Day Care - PSD, 688.00 
07/10/2019,WEST CWD LAC CARE,White Lodge Centre,Respite Nursing - Priv,Day Care - PSD," 2,371.20 "
07/10/2019,WEST CWD LAC CARE,White Lodge Centre,Residential CWD Placements,Day Care - PSD, 258.00 
07/10/2019,WINSTON CHURCHILL SC,White Young Green Environmental,Buyback Inspections,Env Consultancy, 872.04 
07/10/2019,29L LONGHURST MR LN,White Young Green Environmental,Term Contract Inspections,Env Consultancy," 1,334.89 "
07/10/2019,Smallholdings Gen,White Young Green Environmental,Term Contract Inspections,Env Consultancy, 261.61 
07/10/2019,REDHILL LIB (NEW),White Young Green Environmental,Term Contract Inspections,Env Consultancy, 261.61 
07/10/2019,DRILL HALL DORKING,White Young Green Environmental,Term Contract Inspections,Env Consultancy, 261.61 
07/10/2019,59D ASHURST FM LEIGH,White Young Green Environmental,Term Contract Inspections,Env Consultancy, 261.61 
07/10/2019,WELLS HOUSE,White Young Green Environmental,Term Contract Inspections,Env Consultancy, 261.61 
07/10/2019,60L KEEPERS FARM,White Young Green Environmental,Term Contract Inspections,Env Consultancy, 261.61 
07/10/2019,FMR SUNBURY FS,White Young Green Environmental,Term Contract Inspections,Env Consultancy, 261.61 
07/10/2019,ASHTEAD LIB,White Young Green Environmental,Term Contract Inspections,Env Consultancy, 261.61 
07/10/2019,WAVERLEY ABBEY CE,White Young Green Environmental,Buyback Inspections,Env Consultancy, 509.81 
07/10/2019,48/40 40 LWE,White Young Green Environmental,Term Contract Inspections,Env Consultancy, 261.61 
07/10/2019,48/27 27 LWE,White Young Green Environmental,Term Contract Inspections,Env Consultancy, 261.61 
07/10/2019,ASH SSC ASH LIBRARY,White Young Green Environmental,Term Contract Inspections,Env Consultancy, 261.61 
07/10/2019,BRAMLEY LIB,White Young Green Environmental,Term Contract Inspections,Env Consultancy, 261.61 
07/10/2019,GODSTONE DEPOT,White Young Green Environmental,Term Contract Inspections,Env Consultancy, 261.61 
07/10/2019,ASHTEAD YOUTH CENTRE,White Young Green Environmental,Term Contract Inspections,Env Consultancy, 261.61 
07/10/2019,LINES CWIDE PR,Wilson & Scott (Highways) Ltd,Contractor,Green Works," 55,438.63 "
07/10/2019,SPECIAL SCHOOLS,Wishmore Cross Academy,Agency Placement Expenditure,Schools," 93,598.00 "
07/10/2019,SEC HN TOPUP UNALLOC,Woking High School,Agency Placement Expenditure,Schools," 13,757.00 "
07/10/2019,PRI GROWING SCHS,Wray Common Primary School,Agency Placement Expenditure,Schools," 2,152.00 "
07/10/2019,NULL,WS Atkins Plc T/A Atkins Ltd,CE02 Works,Veh Repair & Maint," 3,982.80 "
07/10/2019,NULL,WS Atkins Plc T/A Atkins Ltd,CE02 Works,Veh Repair & Maint," 10,918.80 "
07/10/2019,QUEEN ELEANORS CEJ,WV Howe Ltd,Equipment,Cat Equip Supply&Fit, 265.44 
07/10/2019,NEW MONUMENT SCH,WV Howe Ltd,Equipment,Cat Equip Supply&Fit, 332.76 
07/10/2019,WOKING HIGH,WV Howe Ltd,Equipment,Cat Equip Supply&Fit, 324.46 
07/10/2019,WESTFIELD PRY,WV Howe Ltd,Equipment,Cat Equip Supply&Fit, 552.58 
07/10/2019,REIGATE SCHOOL,WV Howe Ltd,Equipment,Cat Equip Supply&Fit, 268.32 
07/10/2019,EDCAT SE DIST E OHDS,WV Howe Ltd,Equipment,Cat Equip Supply&Fit, 669.02 
07/10/2019,ASHCOMBE SCHOOL,WV Howe Ltd,Equipment,Cat Equip Supply&Fit, 268.32 
07/10/2019,ST PAULS RCP T DITTN,WV Howe Ltd,Equipment,Cat Equip Supply&Fit, 879.06 
07/10/2019,BISHOP WAND CES,WV Howe Ltd,Equipment,Cat Equip Supply&Fit, 268.32 
07/10/2019,WARLINGHAM CS,WV Howe Ltd,Equipment,Cat Equip Supply&Fit, 268.32 
07/10/2019,OAKFIELD JUNIOR,WV Howe Ltd,Equipment,Cat Equip Supply&Fit, 264.00 
07/10/2019,EDCAT N DIST D OHDS,WV Howe Ltd,Equipment,Cat Equip Supply&Fit, 331.20 
07/10/2019,EDCAT N DIST D OHDS,WV Howe Ltd,Equipment,Cat Equip Supply&Fit, 737.11 
07/10/2019,LIMPSFIELD CEI,WV Howe Ltd,Equipment,Cat Equip Supply&Fit, 542.10 
07/10/2019,LAC CELEB & BURSARY,Ysgol Bryngwyn School,Other Community Care - Vol,Grants-Member Allocs, 500.00 
08/10/2019,BUS SUPP & CUST SERV,A R Cook & Son (Plant Hire) Ltd,Contractor,Individual - NEC," 1,920.00 "
08/10/2019,BUS SUPP & CUST SERV,A R Cook & Son (Plant Hire) Ltd,Contractor,Individual - NEC," 2,100.00 "
08/10/2019,Spelthorne C&G OP,A2Dominion Group Ltd,Home Base Care,Dom Care - Adults, 934.75 
08/10/2019,NULL,ACS Trees Consulting,NULL,Estates Mgt Services," 1,716.00 "
08/10/2019,NE ALTERNATIVE SEN,Active Sen Recruitment Ltd,Agency Placement Expenditure,SEND Agncy Placement," 3,378.00 "
08/10/2019,NE ALTERNATIVE SEN,Active Sen Recruitment Ltd,Agency Placement Expenditure,SEND Agncy Placement," 2,040.00 "
08/10/2019,CONSORT HOUSE,Admiral Security Systems Ltd,Security Alarm Maintenance,Fire Service Vehicle, 504.00 
08/10/2019,ASC Market Managemen,Affinity Healthcare Solutions Ltd,Agency Staff Providing Project Support,Temp Ops OM Cover," 2,340.00 "
08/10/2019,Fire Service,Affinity Healthcare Solutions Ltd,Agency Staff Providing Project Support,Temp Ops OM Cover," 1,188.00 "
08/10/2019,NE ALTERNATIVE SEN,All Behaviour Consultancy Ltd,Agency Placement Expenditure,SEND Agncy Placement," 1,980.00 "
08/10/2019,ALL HALLOWS CATH,All Hallows Catholic School,Ctkers Hndmn Cleanrs,Schools," 54,337.20 "
08/10/2019,ORB FIN ASST DIR,Allen Lane Ltd,Agency Staff Providing Project Support,Professional Project," 2,068.96 "
08/10/2019,HALLEYS APPROACH,Alpenbest Ltd,Home Base Care,Dom Care - Adults," 1,328.16 "
08/10/2019,OP CONTRACTS,Alpenbest Ltd,Other Community Care,Dom Care - Adults," 6,440.00 "
08/10/2019,EPSOM HOSP,Alpenbest Ltd,Home Base Care,Dom Care - Adults, 584.78 
08/10/2019,TRANSPORT,Angus Fire Ltd,Operational Fire Equipment,Fire Serv Spec Equip," 3,139.92 "
08/10/2019,AGENCY NON CWD SC,ARC HD Services Ltd,Residential Placements,Res Care," 4,798.05 "
08/10/2019,SW AGENCY PLACE-ED,Arun Court Setting,Agency Placement Expenditure,SEND Agncy Placement," 19,200.00 "
08/10/2019,LAC REVWS & CP CONF,Attenti Ltd,Consultants,Accountancy Project," 2,808.00 "
08/10/2019,DEM SERVICES TEAM,Batchelor Associates,Subscriptions to an Organisation,Costs, 300.00 
08/10/2019,NE AGENCY PLACE-ED,Beckmead School,Local Authorities,SEN OLA," 8,588.00 "
08/10/2019,SOLD CATERING,Betchleys Butchers,Refreshment Costs,Non-Staff Expenses, 324.72 
08/10/2019,NE AGENCY PLACE-ED,Blossom House School,Agency Placement Expenditure,School Support Serv," 13,150.00 "
08/10/2019,TRAINING AND DEV,Boatability Portsmouth Ltd,Training Expenses - External General,Fire Serv Training," 1,692.00 "
08/10/2019,TRANSPORT,BOC Ltd,Vehicle Repairs and Maintenance,Fire Serv Spec Equip," 1,081.44 "
08/10/2019,NW AGENCY PLACE-ED,Brantridge School,Agency Placement Expenditure,SEND Agncy Placement," 9,438.78 "
08/10/2019,NW AGENCY PLACE-ED,Brantridge School,Agency Placement Expenditure,SEND Agncy Placement," 9,438.78 "
08/10/2019,NW AGENCY PLACE-ED,Brantridge School,Agency Placement Expenditure,SEND Agncy Placement," 9,438.78 "
08/10/2019,NW AGENCY PLACE-ED,Brantridge School,Agency Placement Expenditure,SEND Agncy Placement," 9,438.78 "
08/10/2019,NW AGENCY PLACE-ED,Brantridge School,Agency Placement Expenditure,SEND Agncy Placement," 9,438.78 "
08/10/2019,SE AGENCY PLACE-ED,Brantridge School,Agency Placement Expenditure,SEND Agncy Placement," 1,559.14 "
08/10/2019,TRANSPORT,Bristol Uniforms Ltd,"Clothing, Uniforms and Laundry",Clothing PPE, 680.54 
08/10/2019,SIT,BT UK Business Accounts,Telecommunication Charges,Telecare," 6,505.79 "
08/10/2019,SIT,BT UK Business Accounts,Telecommunication Charges,Telecare," 1,572.48 "
08/10/2019,TRAINING AND DEV,Buffets4business,Refreshment Costs,Catering Supplies, 515.58 
08/10/2019,BUS SUPP & CUST SERV,C P Kinch Ltd,Contractor,Highways Structures," 2,640.00 "
08/10/2019,ADOPTION SUPP FUND,Cain Snipp Therapeutic Services,Other Community Care - Priv,Psychiatric Therapy, 354.25 
08/10/2019,ADOPTION SUPP FUND,Cain Snipp Therapeutic Services,Other Community Care - Priv,Psychiatric Therapy, 354.25 
08/10/2019,NW AGENCY PLACE-ED,Cambian Asperger Syndrome Services,Agency Placement Expenditure,SEN Specialist Supp," 73,463.84 "
08/10/2019,SEN ADAPTATIONS,Care & Independence Ltd,Equipment,Green Works," 2,800.50 "
08/10/2019,SEN ADAPTATIONS,Care & Independence Ltd,Equipment,Green Works," 1,438.03 "
08/10/2019,SEN ADAPTATIONS,Care & Independence Ltd,Equipment,Green Works," 1,580.54 "
08/10/2019,SEN ADAPTATIONS,Care & Independence Ltd,Equipment,Green Works, 751.03 
08/10/2019,TANDRIDGE CARE OP,Caterham Domiciliary Care Agency,Home Base Care,Dom Care - Adults," 1,269.00 "
08/10/2019,TRANSPORT,Certas Energy Uk Ltd,Vehicle Running Costs,Vehicle Fuel," 4,337.76 "
08/10/2019,TRANSPORT,Certas Energy Uk Ltd,Vehicle Running Costs,Vehicle Fuel," 7,796.81 "
08/10/2019,RECRUITMENT FUND,Charles Hunter Associates Ltd,New GR/IR Account,Educ Recruitment," 8,839.68 "
08/10/2019,NW AGENCY PLACE-ED,Charlton Park Academy,Agency Placement Expenditure,SEND Agncy Placement," 18,949.35 "
08/10/2019,EAST CWD NONLAC CARE,Cherry Trees,Respite Nursing - Priv,Respite - OP, 801.00 
08/10/2019,EAST CWD NONLAC CARE,Cherry Trees,Residential CWD Placements,Respite - OP," 1,561.95 "
08/10/2019,EAST CWD NONLAC CARE,Cherry Trees,Residential CWD Placements,Respite - OP," 1,815.60 "
08/10/2019,EAST CWD NONLAC CARE,Cherry Trees,Residential CWD Placements,Respite - OP, 640.80 
08/10/2019,CHERTSEY NURSERY,Chertsey Nursery School,Additional Staff Payments,Schools, 316.58 
08/10/2019,ACTIVE SURREY,Coachwise Ltd,Fees,Local Bus, 477.79 
08/10/2019,ACTIVE SURREY,Corporate Document Services Ltd,Printing,Printing & Repro, 553.30 
08/10/2019,Keswick,Corrigenda Ltd,Corporate Responsive Maintenance,General Build Maint, 491.12 
08/10/2019,BELL FARM JUN SCH,Corrigenda Ltd,Buyback Works Term,General Build Maint, 522.00 
08/10/2019,SUNNYDOWN SCH,Corrigenda Ltd,Buyback Works Responsive,General Build Maint," 1,258.51 "
08/10/2019,CONSORT HOUSE,Corrigenda Ltd,Corporate Responsive Maintenance,General Build Maint, 478.62 
08/10/2019,CHENNESTONE CP SCH,Corrigenda Ltd,Buyback Inspections,General Build Maint, 420.00 
08/10/2019,CONSORT HOUSE,Corrigenda Ltd,Corporate Responsive Maintenance,General Build Maint, 309.85 
08/10/2019,THAMES YG MARINERS,Corrigenda Ltd,Corporate Responsive Maintenance,General Build Maint," 1,931.53 "
08/10/2019,FAIRMOUNT HOUSE,Corrigenda Ltd,Term Contract Inspections,General Build Maint, 270.34 
08/10/2019,YTH CTR GODSTONE RD,Corrigenda Ltd,Term Contract Inspections,General Build Maint, 264.42 
08/10/2019,HOLLAND JUN,Corrigenda Ltd,Buyback Inspections,General Build Maint, 420.00 
08/10/2019,CONSORT HOUSE,Corrigenda Ltd,Corporate Responsive Maintenance,General Build Maint, 366.80 
08/10/2019,ASHFORD PARK PRY SCH,Corrigenda Ltd,Buyback Inspections,General Build Maint, 967.20 
08/10/2019,STAMFORD GREEN PRY,Corrigenda Ltd,Buyback Inspections,General Build Maint, 900.00 
08/10/2019,ORCHARD SCHOOL,Corrigenda Ltd,Buyback Inspections,General Build Maint, 600.00 
08/10/2019,COUNTY HALL,Corrigenda Ltd,Corporate Responsive Maintenance,General Build Maint, 271.20 
08/10/2019,THAMES YG MARINERS,Corrigenda Ltd,Corporate Responsive Maintenance,General Build Maint, 381.24 
08/10/2019,TOWN FARM PRY SCH,Corrigenda Ltd,Buyback Works Responsive,General Build Maint, 322.73 
08/10/2019,FAIRWAYS,Corrigenda Ltd,Corporate Responsive Maintenance,General Build Maint, 378.20 
08/10/2019,CONSORT HOUSE,Corrigenda Ltd,Corporate Responsive Maintenance,General Build Maint, 258.90 
08/10/2019,Keswick,Corrigenda Ltd,Corporate Responsive Maintenance,General Build Maint, 403.72 
08/10/2019,FAIRCROFT,Corrigenda Ltd,Term Contract Works,General Build Maint, 846.12 
08/10/2019,CLARENDON PRY SCH,Corrigenda Ltd,Buyback Inspections,General Build Maint, 360.00 
08/10/2019,NULL,Corrigenda Ltd,NULL,General Build Maint," 3,646.36 "
08/10/2019,COUNTY HALL,Corrigenda Ltd,Corporate Responsive Maintenance,General Build Maint, 368.83 
08/10/2019,SOUTHFIELD PARK,Corrigenda Ltd,Buyback Works Responsive,General Build Maint, 274.97 
08/10/2019,OCCUPATIONAL HLTH TM,Cranlea Human Performance Ltd,Equipment,Sports Equipment," 1,340.16 "
08/10/2019,SE AGENCY PLACE-ED,Cressey Oasis Education Ltd,Agency Placement Expenditure,SEND Agncy Placement," 8,922.00 "
08/10/2019,NULL,Currie & Brown UK Ltd,NULL,M-D (Property), 600.00 
08/10/2019,GATWICK DIAMOND PH 3,Cushman & Wakefield Debenham Tie,Fees,CIN Pathfinder," 1,140.00 "
08/10/2019,CORPORATE GRP LEGAL,Deepstore,Equipment,Doc Archive & Store, 796.68 
08/10/2019,NULL,Dell Products,CE04 Capital ICT,Hardware - Sys," 4,533.30 "
08/10/2019,NULL,DWF LLP,Miscellaneous Insurance,General Support, 370.20 
08/10/2019,NULL,DWF LLP,Miscellaneous Insurance,General Support, 912.00 
08/10/2019,NULL,DWF LLP,Miscellaneous Insurance,General Support," 1,108.80 "
08/10/2019,LBSC DIRECT,East Surrey Rural Transport Partner,Contractor,Multi-purpose Veh," 17,012.96 "
08/10/2019,NULL,Epsom & Ewell Borough Council,Deferred Charges,Grants-Member Allocs," 14,090.00 "
08/10/2019,HENLEY FORT OEC,European Asbestos Services,Corporate Planned Maintenance,General Build Maint, 528.00 
08/10/2019,NE AGENCY PLACE-ED,Ewell Castle School,Agency Placement Expenditure,Schools," 8,954.00 "
08/10/2019,FAIRCROFT COMM HOME,Faircroft Community Home,Day To Day Maintenance,Residential - MH," 1,775.62 "
08/10/2019,AGENCY NON CWD SC,Fairways Care (UK) Ltd,Residential Placements,Fostering IFA, 600.10 
08/10/2019,AGENCY NON CWD SC,Fairways Care (UK) Ltd,Residential Placements,Fostering IFA, 607.74 
08/10/2019,ASSET INV & REGN MGR,Freeths LLP,Legal Expenses,Legal Spec Supp NEC," 4,578.00 "
08/10/2019,Heathside,Gazprom Energy,Gas,Utilities - Gas, 587.58 
08/10/2019,Chalkmead,Gazprom Energy,Gas,Utilities - Gas," 1,021.60 "
08/10/2019,Keswick,Gazprom Energy,Gas,Utilities - Gas, 264.95 
08/10/2019,Barnfield,Gazprom Energy,Gas,Utilities - Gas, 508.22 
08/10/2019,NULL,Geometric Results International,NULL,Soc Care OM Cover," 67,782.36 "
08/10/2019,DOLS TEAM,GKM Medical Ltd,Fees,Specialist Serv, 379.14 
08/10/2019,LEAP PROJECT YP,GLS Educational Supplies Ltd,Furniture,Arts & Crafts, 917.64 
08/10/2019,Meadowside Res,Goodfellow Foot Health Care,Home Base Care,Extra Care, 306.00 
08/10/2019,TRANSPORT,Greenhams,Security Alarm Maintenance,Lab Equip & Supplies, 540.00 
08/10/2019,Guildford C&G OP,Guildford Borough Council,Day Care,Grants-Member Allocs," 12,864.75 "
08/10/2019,Guildford C&G OP,Guildford Borough Council,Day Care,Grants-Member Allocs," 14,225.00 "
08/10/2019,NULL,Guildford Borough Council,Deferred Charges,Grants-Member Allocs," 1,892.09 "
08/10/2019,NULL,Guildford Borough Council,Deferred Charges,Grants-Member Allocs, 293.88 
08/10/2019,NULL,Guildford Borough Council,Deferred Charges,Grants-Member Allocs, 717.81 
08/10/2019,GUILDFORD AEI,Guildford Borough Council,Trade Refuse,Grants-Member Allocs, 653.25 
08/10/2019,HENLEY FORT OEC,Guildford Borough Council,Trade Refuse,Grants-Member Allocs, 653.25 
08/10/2019,CORONER,Guys & St Thomas NHS Trust,Inquest Exps.,Healthcare (Part Org," 2,600.40 "
08/10/2019,CORONER,Guys & St Thomas NHS Trust,Inquest Exps.,Healthcare (Part Org," 2,600.40 "
08/10/2019,ROW MAINTENANCE,Heathland Management Services,Upkeep of Grounds,Green Works," 1,882.19 "
08/10/2019,ASYLUM SKRS 16-17,Holmdene Housing Services,Independent Living Placements,SEN Specialist Supp," 1,902.85 "
08/10/2019,ASYLUM SKRS 16-17,Holmdene Housing Services,Independent Living Placements,SEN Specialist Supp," 1,902.85 "
08/10/2019,ASYLUM SKRS 16-17,Holmdene Housing Services,Independent Living Placements,SEN Specialist Supp," 1,966.39 "
08/10/2019,ASYLUM SKRS 16-17,Holmdene Housing Services,Independent Living Placements,SEN Specialist Supp," 1,966.28 "
08/10/2019,EAST CWD NONLAC CARE,Hughes Mini Services,Creditors Control Account,Multi-purpose Veh, 770.00 
08/10/2019,NULL,IBM United Kingdom Ltd,CE04 Capital ICT,Appl Serv Provision," 8,007.00 "
08/10/2019,LABORATORY TEAM,Impact Test Equipment Ltd,Equipment,Testing & Inspection," 2,388.00 "
08/10/2019,SW IPSB - PLAYGROUPS,Incy Wincys Playgroup,New GR/IR Account,Nursery," 1,011.07 "
08/10/2019,EAST CWD NONLAC CARE,Interserve Healthcare Ltd,Home Care - Priv,Grants - Community, 875.50 
08/10/2019,WEST CWD NONLAC CARE,Interserve Healthcare Ltd,Home Care - Priv,Grants - Community," 1,566.00 "
08/10/2019,CSF OPEN PROGRAMME,In-Trac Training & Consultancy Ltd,Training Expenses - External General,Staff Training, 660.00 
08/10/2019,ASSET STRAT & PL MGR,Investigo Ltd,Agency Staff Providing Project Support,Professional Project," 2,520.00 "
08/10/2019,PSSS PD,James Leckey Design Ltd,Equipment,Green Works," 1,420.80 "
08/10/2019,PSSS PD,James Leckey Design Ltd,Equipment,Green Works," 1,471.20 "
08/10/2019,PSSS PD,Jenx Ltd,Equipment,Furniture - Office," 4,653.60 "
08/10/2019,LOCAL ASSIST SCHEME,John Gillman & Sons Electrical Ltd,Equipment,Comm Appliances, 340.80 
08/10/2019,LOCAL ASSIST SCHEME,John Gillman & Sons Electrical Ltd,Equipment,Comm Appliances, 571.20 
08/10/2019,LOCAL ASSIST SCHEME,John Gillman & Sons Electrical Ltd,Equipment,Comm Appliances, 250.80 
08/10/2019,LOCAL ASSIST SCHEME,John Gillman & Sons Electrical Ltd,Equipment,Comm Appliances, 571.20 
08/10/2019,LOCAL ASSIST SCHEME,John Gillman & Sons Electrical Ltd,Equipment,Comm Appliances, 340.80 
08/10/2019,LOCAL ASSIST SCHEME,John Gillman & Sons Electrical Ltd,Equipment,Comm Appliances, 571.20 
08/10/2019,LOCAL ASSIST SCHEME,John Gillman & Sons Electrical Ltd,Equipment,Comm Appliances, 340.80 
08/10/2019,LOCAL ASSIST SCHEME,John Gillman & Sons Electrical Ltd,Equipment,Comm Appliances, 571.20 
08/10/2019,BUS SUPP & CUST SERV,Kane Construction Services Ltd,Contractor,Highway Maintenance," 1,814.16 "
08/10/2019,BUS SUPP & CUST SERV,Kane Construction Services Ltd,Contractor,Highway Maintenance," 2,146.80 "
08/10/2019,ASYLUM SKRS 16-17,Keywork Central,Foster Care Placements,Sup Living Children," 1,877.10 "
08/10/2019,WEY HOUSE SCHOOL,Kier Facilities Services Ltd,Buyback Works Responsive,General Build Maint," 1,331.71 "
08/10/2019,NULL,Kier Facilities Services Ltd,NULL,General Build Maint," 94,086.14 "
08/10/2019,NULL,Kier Facilities Services Ltd,NULL,General Build Maint," 15,757.36 "
08/10/2019,WAVERLEY SITE MMGT,Kier Facilities Services Ltd,Corporate Responsive Maintenance,General Build Maint, 388.80 
08/10/2019,WOKING GIPSY SITE,Kier Facilities Services Ltd,Corporate Responsive Maintenance,General Build Maint, 320.40 
08/10/2019,HERMITAGE SCH,Kier Facilities Services Ltd,Education Responsive Maintenance,General Build Maint, 443.46 
08/10/2019,NULL,Kier Facilities Services Ltd,NULL,General Build Maint," 7,500.53 "
08/10/2019,RUTH HOUSE MAYFORD,Kier Facilities Services Ltd,Corporate Responsive Maintenance,General Build Maint, 367.20 
08/10/2019,HYTHE SCH,Kier Facilities Services Ltd,Buyback Works Responsive,General Build Maint, 280.80 
08/10/2019,NULL,Kier Facilities Services Ltd,NULL,General Build Maint," 5,193.82 "
08/10/2019,COTT-BAS CANAL CTRE,Kier Facilities Services Ltd,Corporate Responsive Maintenance,General Build Maint," 3,250.22 "
08/10/2019,GUILDFORD AEI,Kier Facilities Services Ltd,Corporate Responsive Maintenance,General Build Maint, 410.40 
08/10/2019,BROOMFIELD-LIBERTAS,Kier Facilities Services Ltd,Corporate Responsive Maintenance,General Build Maint, 619.20 
08/10/2019,HENLEY FORT OEC,Kier Facilities Services Ltd,Corporate Responsive Maintenance,General Build Maint," 1,209.60 "
08/10/2019,WEST BYFLEET CI SCH,Kier Facilities Services Ltd,Buyback Works Responsive,General Build Maint, 266.40 
08/10/2019,SHOTTERMILL JUN SCH,Kier Facilities Services Ltd,Buyback Works Responsive,General Build Maint," 1,260.00 "
08/10/2019,GUILDFORD AEI,Kier Facilities Services Ltd,Corporate Responsive Maintenance,General Build Maint, 748.80 
08/10/2019,SQUIRREL LODGE,Kier Facilities Services Ltd,Corporate Responsive Maintenance,General Build Maint, 709.94 
08/10/2019,MERROW DEPOT,Kier Facilities Services Ltd,Corporate Responsive Maintenance,General Build Maint," 16,689.02 "
08/10/2019,NULL,Kier Facilities Services Ltd,NULL,General Build Maint," 4,448.08 "
08/10/2019,SPELTHORNE,Kier Facilities Services Ltd,Corporate Responsive Maintenance,General Build Maint, 579.31 
08/10/2019,BAGSHOT INFANT,Kier Facilities Services Ltd,Buyback Works Term,General Build Maint, 707.04 
08/10/2019,MALLOW CS DMHS 25-30,Kier Facilities Services Ltd,Corporate Responsive Maintenance,General Build Maint, 400.90 
08/10/2019,RUTH HOUSE MAYFORD,Kier Facilities Services Ltd,Corporate Responsive Maintenance,General Build Maint, 352.80 
08/10/2019,FRIMLEY GRN LIB,Kier Facilities Services Ltd,Corporate Responsive Maintenance,General Build Maint, 317.80 
08/10/2019,ST PETER'S PRU,Kier Facilities Services Ltd,Buyback Works Responsive,General Build Maint, 259.20 
08/10/2019,MAYFORD CENTRE-BUS,Kier Facilities Services Ltd,Corporate Responsive Maintenance,General Build Maint," 1,360.80 "
08/10/2019,RUTH HOUSE MAYFORD,Kier Facilities Services Ltd,Corporate Responsive Maintenance,General Build Maint," 1,052.64 "
08/10/2019,ESTATES DELIVERY MGR,Lambert Smith Hampton,Fees,Highway - Construct," 1,800.00 "
08/10/2019,ESTATES DELIVERY MGR,Lambert Smith Hampton,Fees,Highway - Construct," 1,800.00 "
08/10/2019,SIGNS ENERGY 2,Laser Energy,Contractor,Electricity," 131,448.23 "
08/10/2019,SIGNS ENERGY 2,Laser Energy,Contractor,Electricity," 47,625.32 "
08/10/2019,SIGNS ENERGY 2,Laser Energy,Contractor,Electricity," 61,226.63 "
08/10/2019,SE CARE - CPCRT LAC,LGC Ltd,DNA & Drug Testing,Testing & Inspection, 702.00 
08/10/2019,AGENCY NON CWD SC,Lighthouse Care Services Ltd,Residential Placements,Res Care," 4,453.53 "
08/10/2019,STRATEGIC LEADERSHIP,Local Government Association,Agency Staff Providing Project Support,Subscriptions," 11,290.52 "
08/10/2019,STRATEGIC LEADERSHIP,Local Government Association,New GR/IR Account,Subscriptions," 22,297.84 "
08/10/2019,TS SERVICE MGMT,London Fire & Emergency Planning Au,Fees,Fire Serv Spec Equip, 625.00 
08/10/2019,ELMB - MEMBS ALLOCS,Long Ditton Residents Association,Grants-Third Sector and Voluntary Orgs/Charities,Grants-Member Allocs," 1,000.00 "
08/10/2019,Abbeywood Res,Loving your feet,Residential Dementia,Extra Care (IL), 610.00 
08/10/2019,TRAINING CHILDREN'S,MA Education Ltd,Subsistence and Conference Expenses,Printing & Repro," 23,940.00 "
08/10/2019,SW AGENCY PLACE-ED,Marchant-Holliday School Ltd,Agency Placement Expenditure,SEND Agncy Placement," 21,667.00 "
08/10/2019,PE/CDT MTCE OVERHEAD,Mardon Engineering Co Ltd,Equipment,Highway - Construct," 1,166.40 "
08/10/2019,TRANSPORT,MC Truck & Bus Ltd,Vehicle Repairs and Maintenance,Fire Service Vehicle, 450.31 
08/10/2019,SE AGENCY PLACE-ED,Moon Hall School,Agency Placement Expenditure,Schools," 7,334.00 "
08/10/2019,SE AGENCY PLACE-ED,Moon Hall School,Agency Placement Expenditure,Schools," 9,359.00 "
08/10/2019,SE AGENCY PLACE-ED,Moon Hall School,Agency Placement Expenditure,Schools," 7,749.00 "
08/10/2019,SE AGENCY PLACE-ED,Moon Hall School,Agency Placement Expenditure,Schools," 8,032.00 "
08/10/2019,SE AGENCY PLACE-ED,Moon Hall School,Agency Placement Expenditure,Schools, 545.00 
08/10/2019,SE AGENCY PLACE-ED,Moon Hall School,Agency Placement Expenditure,Schools," 10,075.00 "
08/10/2019,SE AGENCY PLACE-ED,Moon Hall School,Agency Placement Expenditure,Schools," 7,785.00 "
08/10/2019,SE AGENCY PLACE-ED,Moon Hall School,Agency Placement Expenditure,Schools," 7,910.00 "
08/10/2019,NW AGENCY PLACE-ED,More House School,Agency Placement Expenditure,SEN Specialist Supp," 6,341.00 "
08/10/2019,NW AGENCY PLACE-ED,More House School,Agency Placement Expenditure,SEN Specialist Supp," 6,341.00 "
08/10/2019,NW AGENCY PLACE-ED,More House School,Agency Placement Expenditure,SEN Specialist Supp," 6,341.00 "
08/10/2019,NW AGENCY PLACE-ED,More House School,Agency Placement Expenditure,SEN Specialist Supp," 6,341.00 "
08/10/2019,NW AGENCY PLACE-ED,More House School,Agency Placement Expenditure,SEN Specialist Supp," 2,512.00 "
08/10/2019,NW AGENCY PLACE-ED,More House School,Agency Placement Expenditure,SEN Specialist Supp," 6,341.00 "
08/10/2019,AGENCY NON CWD SC,Moving On Care Management Ltd,Independent Living Placements,LocPrevFwork," 1,633.83 "
08/10/2019,ASYLUM SEEKERS 18+,Moving On Care Management Ltd,Independent Living Placements,LocPrevFwork," 1,461.22 "
08/10/2019,ASYLUM SEEKERS 18+,Moving On Care Management Ltd,Independent Living Placements,LocPrevFwork," 1,842.89 "
08/10/2019,ASYLUM SEEKERS 18+,Moving On Care Management Ltd,Independent Living Placements,LocPrevFwork," 1,842.89 "
08/10/2019,ASYLUM SEEKERS 18+,Moving On Care Management Ltd,Independent Living Placements,LocPrevFwork," 1,783.44 "
08/10/2019,ASYLUM SEEKERS 18+,Moving On Care Management Ltd,Independent Living Placements,LocPrevFwork," 1,842.89 "
08/10/2019,NIL REC PF 18+ ASYLM,Moving On Care Management Ltd,Independent Living Placements,LocPrevFwork," 2,813.81 "
08/10/2019,ASYLUM SEEKERS 18+,Moving On Care Management Ltd,Independent Living Placements,LocPrevFwork," 1,414.08 "
08/10/2019,ASYLUM SEEKERS 18+,Moving On Care Management Ltd,Independent Living Placements,LocPrevFwork," 1,461.22 "
08/10/2019,ASYLUM SEEKERS 18+,Moving On Care Management Ltd,Independent Living Placements,LocPrevFwork," 1,461.22 "
08/10/2019,ASYLUM SEEKERS 18+,Moving On Care Management Ltd,Independent Living Placements,LocPrevFwork," 1,783.44 "
08/10/2019,NIL REC PF 18+ ASYLM,Moving On Care Management Ltd,Independent Living Placements,LocPrevFwork," 2,813.81 "
08/10/2019,CARE LEAVER PACKAGES,Moving On Care Management Ltd,Independent Living Placements,LocPrevFwork," 1,993.82 "
08/10/2019,CARE LEAVER PACKAGES,Moving On Care Management Ltd,Independent Living Placements,LocPrevFwork," 2,040.48 "
08/10/2019,CARE LEAVER PACKAGES,Moving On Care Management Ltd,Independent Living Placements,LocPrevFwork," 2,108.50 "
08/10/2019,CARE LEAVER PACKAGES,Moving On Care Management Ltd,Independent Living Placements,LocPrevFwork, 949.44 
08/10/2019,ASYLUM SEEKERS 18+,Moving On Care Management Ltd,Independent Living Placements,LocPrevFwork," 1,414.08 "
08/10/2019,ASYLUM SEEKERS 18+,Moving On Care Management Ltd,Independent Living Placements,LocPrevFwork," 1,842.89 "
